Ref No,Fund Type,Dept,Cost Centre Description    ,Description    ,Creditor Name    ,GL Code Net Amount,Payment date        
2,Revenue,CCHD,Under 65s PWLD - KD,Residential Homes,.,6770.72, 24-Jan-2012
3,Revenue,CCHD,Supporting People Programme,Grants to Voluntary Bodies,1625 Independent People,3658.32, 30-Jan-2012
4,Revenue,CCHD,Supporting People Programme,Grants to Voluntary Bodies,1625 Independent People,14490.12, 30-Jan-2012
5,Revenue,CCHD,Supported Living - PS,Private & Voluntary Home Care,3 Trees Community Support Ltd,622.85, 18-Jan-2012
6,Revenue,CCHD,Purchase of Non-Res Care - KH,Private & Voluntary Day Care,3 Trees Community Support Ltd,3082.84, 09-Jan-2012
7,Revenue,CCHD,Supported Living - KH,Private & Voluntary Home Care,3 Trees Community Support Ltd,7613.7, 09-Jan-2012
8,Revenue,CCHD,Supported Living (S28a),Private & Voluntary Home Care,3 Trees Community Support Ltd,6085.56, 13-Jan-2012
9,Revenue,CCHD,Supported Living - KD,Private & Voluntary Home Care,3 Trees Community Support Ltd,2025.02, 26-Jan-2012
10,Revenue,CCHD,Purchase of Non-Res Care - KD,Private & Voluntary Day Care,3 Trees Community Support Ltd,1866.83, 26-Jan-2012
11,Revenue,CCHD,Alexandra Way,Prop.Serv. General Repairs,A E Horder (Contracting) Limited,492.26, 19-Jan-2012
12,Revenue,CCHD,Woodleaze,Prop.Serv. General Repairs,A E Horder (Contracting) Limited,865.29, 20-Jan-2012
13,Revenue,CCHD,PD Direct Payments North,Grants to Voluntary Bodies,A4E Management Limited,22857.93, 20-Jan-2012
14,Revenue,CCHD,Elderly Purchasing - South,Nursing Homes,Aabletone Nursing Home,1177.52, 24-Jan-2012
15,Revenue,CCHD,Elderly Purchasing - South,Residential Homes,Ablecare Homes,903.4, 24-Jan-2012
16,Revenue,CCHD,Southmead Hospital Purchasing,Residential Homes,Ablecare Homes,1418.08, 24-Jan-2012
17,Revenue,CCHD,Elderly Purchasing - North,Residential Homes,Ablecare Homes,871.04, 24-Jan-2012
18,Revenue,CCHD,Southmead Hospital Purchasing,Residential Homes,Ablecare Homes,1736.25, 24-Jan-2012
19,Revenue,CCHD,Frenchay Hospital Purchasing,Residential Homes,Ablecare Homes,1422.8, 24-Jan-2012
20,Revenue,CCHD,Southmead Hospital Purchasing,Residential Homes,Ablecare Homes,1921, 24-Jan-2012
21,Revenue,CCHD,Elderly Purchasing - South,Residential Homes,Ablecare Homes,1572.44, 24-Jan-2012
22,Revenue,CCHD,Elderly Purchasing - North,Residential Homes,Ablecare Homes,1226.72, 24-Jan-2012
23,Revenue,CCHD,Frenchay Hospital Purchasing,Residential Homes,Ablecare Homes,1232.16, 24-Jan-2012
24,Revenue,CCHD,Southmead Hospital Purchasing,Residential Homes,Ablecare Homes,1152.08, 24-Jan-2012
25,Revenue,CCHD,Elderly Mental Health,Residential Homes,Ablecare Homes,1180.8, 24-Jan-2012
26,Revenue,CCHD,Elderly Mental Health,Residential Homes,Ablecare Homes,1381, 24-Jan-2012
27,Revenue,CCHD,Elderly Purchasing - South,Residential Homes,Ablecare Homes,1263.6, 24-Jan-2012
28,Revenue,CCHD,Tenancy Start Up Scheme,Other Supplies & Services,ADA Glossop Ltd,1250, 19-Jan-2012
29,Revenue,CCHD,Day Care - North,Private & Voluntary Day Care,Age UK South Gloucestershire,1693.12, 12-Jan-2012
30,Revenue,CCHD,Day Care - North,Private & Voluntary Day Care,Age UK South Gloucestershire,1465.28, 12-Jan-2012
31,Revenue,CCHD,Day Care - South,Private & Voluntary Day Care,Age UK South Gloucestershire,769.6, 13-Jan-2012
32,Revenue,CCHD,Day Care - South,Private & Voluntary Day Care,Age UK South Gloucestershire,821.76, 23-Jan-2012
33,Revenue,CCHD,Home Care Purch South,Other Small Contracts,Agincare UK Limited,516.52, 09-Jan-2012
34,Revenue,CCHD,Home Care Purch South,Other Small Contracts,Agincare UK Limited,531.72, 09-Jan-2012
35,Revenue,CCHD,Home Care Purch South,Other Small Contracts,Agincare UK Limited,531.72, 11-Jan-2012
36,Revenue,CCHD,Home Care Purch South,Other Small Contracts,Agincare UK Limited,524.12, 19-Jan-2012
37,Revenue,CCHD,Home Care Purch South,Other Small Contracts,Agincare UK Limited,508.92, 30-Jan-2012
38,Revenue,CCHD,Home Care Purch South,Other Small Contracts,Agincare UK Limited,520.33, 30-Jan-2012
39,Revenue,CCHD,Home Care Purch South,Other Small Contracts,Agincare UK Limited,531.72, 30-Jan-2012
40,Revenue,CCHD,Home Care Purch South,Other Small Contracts,Agincare UK Limited,531.72, 30-Jan-2012
41,Revenue,CCHD,Home Care Purch South,Other Small Contracts,Agincare UK Limited,531.72, 30-Jan-2012
42,Revenue,CCHD,Home Care Purch North,Other Small Contracts,Agincare UK Limited,799.96, 09-Jan-2012
43,Revenue,CCHD,Home Care Purch North,Other Small Contracts,Agincare UK Limited,799.96, 09-Jan-2012
44,Revenue,CCHD,Home Care Purch North,Other Small Contracts,Agincare UK Limited,799.96, 09-Jan-2012
45,Revenue,CCHD,Home Care Purch North,Other Small Contracts,Agincare UK Limited,799.96, 16-Jan-2012
46,Revenue,CCHD,Home Care Purch South,Other Small Contracts,Agincare UK Limited,1280.6, 24-Jan-2012
47,Revenue,CCHD,Home Care Purch North,Other Small Contracts,Agincare UK Limited,1200.8, 24-Jan-2012
48,Revenue,CCHD,Day Care - South,Private & Voluntary Day Care,Agincare UK Limited,148.2, 24-Jan-2012
49,Revenue,CCHD,Day Care - North,Private & Voluntary Day Care,Agincare UK Limited,30.4, 24-Jan-2012
50,Revenue,CCHD,Elderly MH Home Care,Other Small Contracts,Agincare UK Limited,98.8, 24-Jan-2012
51,Revenue,CCHD,Elderly MH non-res purchasing,Private & Voluntary Day Care,Agincare UK Limited,83.6, 24-Jan-2012
52,Revenue,CCHD,Home Care Purch South,Other Small Contracts,Agincare UK Limited,1550.4, 26-Jan-2012
53,Revenue,CCHD,Home Care Purch North,Other Small Contracts,Agincare UK Limited,1318.6, 26-Jan-2012
54,Revenue,CCHD,Day Care - South,Private & Voluntary Day Care,Agincare UK Limited,190, 26-Jan-2012
55,Revenue,CCHD,Day Care - North,Private & Voluntary Day Care,Agincare UK Limited,53.2, 26-Jan-2012
56,Revenue,CCHD,Elderly MH Home Care,Other Small Contracts,Agincare UK Limited,106.4, 26-Jan-2012
57,Revenue,CCHD,Elderly MH non-res purchasing,Private & Voluntary Day Care,Agincare UK Limited,106.4, 26-Jan-2012
58,Revenue,CCHD,Home Care Purch South,Other Small Contracts,Agincare UK Limited,1710, 10-Jan-2012
59,Revenue,CCHD,Home Care Purch North,Other Small Contracts,Agincare UK Limited,1140, 10-Jan-2012
60,Revenue,CCHD,Day Care - South,Private & Voluntary Day Care,Agincare UK Limited,243.2, 10-Jan-2012
61,Revenue,CCHD,Day Care - North,Private & Voluntary Day Care,Agincare UK Limited,53.2, 10-Jan-2012
62,Revenue,CCHD,Elderly MH Home Care,Other Small Contracts,Agincare UK Limited,102.6, 10-Jan-2012
63,Revenue,CCHD,Elderly MH non-res purchasing,Private & Voluntary Day Care,Agincare UK Limited,201.4, 10-Jan-2012
64,Revenue,CCHD,Home Care Purch South,Other Small Contracts,Agincare UK Limited,1964.6, 04-Jan-2012
65,Revenue,CCHD,Home Care Purch North,Other Small Contracts,Agincare UK Limited,1516.2, 04-Jan-2012
66,Revenue,CCHD,Day Care - South,Private & Voluntary Day Care,Agincare UK Limited,250.8, 04-Jan-2012
67,Revenue,CCHD,Day Care - North,Private & Voluntary Day Care,Agincare UK Limited,117.8, 04-Jan-2012
68,Revenue,CCHD,Elderly MH Home Care,Other Small Contracts,Agincare UK Limited,106.4, 04-Jan-2012
69,Revenue,CCHD,Elderly MH non-res purchasing,Private & Voluntary Day Care,Agincare UK Limited,197.6, 04-Jan-2012
70,Revenue,CCHD,Home Care Purch South,Other Small Contracts,Agincare UK Limited,1573.2, 31-Jan-2012
71,Revenue,CCHD,Home Care Purch North,Other Small Contracts,Agincare UK Limited,1383.2, 31-Jan-2012
72,Revenue,CCHD,Day Care - South,Private & Voluntary Day Care,Agincare UK Limited,220.4, 31-Jan-2012
73,Revenue,CCHD,Day Care - North,Private & Voluntary Day Care,Agincare UK Limited,87.4, 31-Jan-2012
74,Revenue,CCHD,Elderly MH Home Care,Other Small Contracts,Agincare UK Limited,125.4, 31-Jan-2012
75,Revenue,CCHD,Elderly MH non-res purchasing,Private & Voluntary Day Care,Agincare UK Limited,106.4, 31-Jan-2012
76,Revenue,CCHD,Home Care Purch South,Other Small Contracts,Agincare UK Limited,1869.6, 09-Jan-2012
77,Revenue,CCHD,Home Care Purch North,Other Small Contracts,Agincare UK Limited,1485.8, 09-Jan-2012
78,Revenue,CCHD,Day Care - South,Private & Voluntary Day Care,Agincare UK Limited,243.2, 09-Jan-2012
79,Revenue,CCHD,Day Care - North,Private & Voluntary Day Care,Agincare UK Limited,125.4, 09-Jan-2012
80,Revenue,CCHD,Elderly MH Home Care,Other Small Contracts,Agincare UK Limited,102.6, 09-Jan-2012
81,Revenue,CCHD,Elderly MH non-res purchasing,Private & Voluntary Day Care,Agincare UK Limited,205.2, 09-Jan-2012
82,Revenue,CCHD,S117 Placements PCT,Residential Homes,Alexandra House,6697.76, 24-Jan-2012
83,Revenue,CCHD,Home Care Purch North,Other Small Contracts,Allied  Healthcare Group Limited,857.75, 27-Jan-2012
84,Revenue,CCHD,Home Care Purch North,Other Small Contracts,Allied  Healthcare Group Limited,862.89, 27-Jan-2012
85,Revenue,CCHD,Home Care Purch North,Other Small Contracts,Allied  Healthcare Group Limited,862.89, 27-Jan-2012
86,Revenue,CCHD,Home Care Purch North,Other Small Contracts,Allied  Healthcare Group Limited,862.89, 31-Jan-2012
87,Revenue,CCHD,Home Care Purch South,Other Small Contracts,Allied Healthcare Group,1234.2, 04-Jan-2012
88,Revenue,CCHD,Home Care Purch North,Other Small Contracts,Allied Healthcare Group,1013.54, 04-Jan-2012
89,Revenue,CCHD,Day Care - North,Private & Voluntary Day Care,Allied Healthcare Group,52.36, 04-Jan-2012
90,Revenue,CCHD,Home Care Purch South,Other Small Contracts,Allied Healthcare Group,1080.86, 04-Jan-2012
91,Revenue,CCHD,Home Care Purch North,Other Small Contracts,Allied Healthcare Group,905.08, 04-Jan-2012
92,Revenue,CCHD,Day Care - North,Private & Voluntary Day Care,Allied Healthcare Group,22.44, 04-Jan-2012
93,Revenue,CCHD,Home Care Purch South,Other Small Contracts,Allied Healthcare Group,928.86, 19-Jan-2012
94,Revenue,CCHD,Home Care Purch North,Other Small Contracts,Allied Healthcare Group,979.88, 19-Jan-2012
95,Revenue,CCHD,Day Care - North,Private & Voluntary Day Care,Allied Healthcare Group,29.92, 19-Jan-2012
96,Revenue,CCHD,Home Care Purch South,Other Small Contracts,Allied Healthcare Group,985.83, 19-Jan-2012
97,Revenue,CCHD,Home Care Purch North,Other Small Contracts,Allied Healthcare Group,867.68, 19-Jan-2012
98,Revenue,CCHD,Day Care - North,Private & Voluntary Day Care,Allied Healthcare Group,22.44, 19-Jan-2012
99,Revenue,CCHD,Frenchay Hospital Purchasing,Residential Homes,Anbridge Care Home,832, 24-Jan-2012
100,Revenue,CCHD,Under 65s PWLD - KD,Residential Homes,Ark Care Homes Ltd,10342.92, 24-Jan-2012
101,Revenue,CCHD,Bed and Breakfast,Bed & Breakfast,Ashley Guest Houses Ltd,1008, 27-Jan-2012
102,Revenue,CCHD,Bed and Breakfast,Bed & Breakfast,Ashley Guest Houses Ltd,576, 09-Jan-2012
103,Revenue,CCHD,Bed and Breakfast,Bed & Breakfast,Ashley Guest Houses Ltd,1152, 27-Jan-2012
104,Revenue,CCHD,Bed and Breakfast,Bed & Breakfast,Ashley Guest Houses Ltd,600, 09-Jan-2012
105,Revenue,CCHD,Bed and Breakfast,Bed & Breakfast,Ashley Guest Houses Ltd,744, 26-Jan-2012
106,Revenue,CCHD,Bed and Breakfast,Bed & Breakfast,Ashley Guest Houses Ltd,720, 26-Jan-2012
107,Revenue,CCHD,Bed and Breakfast,Bed & Breakfast,Ashley Guest Houses Ltd,1104, 26-Jan-2012
108,Revenue,CCHD,S28A - Over 65,Residential Homes,Aspects &  Milestones Trust,3828.08, 24-Jan-2012
109,Revenue,CCHD,Elderly Purchasing - South,Residential Homes,Aspects &  Milestones Trust,1379, 24-Jan-2012
110,Revenue,CCHD,Under 65s PWLD - PS,Residential Homes,Aspects &  Milestones Trust,5985.48, 24-Jan-2012
111,Revenue,CCHD,Section 117 Placements,Residential Homes,Aspects &  Milestones Trust,1304, 24-Jan-2012
112,Revenue,CCHD,Elderly Mental Health,Nursing Homes,Aspects &  Milestones Trust,797.08, 24-Jan-2012
113,Revenue,CCHD,Section 117 Placements,Nursing Homes,Aspects &  Milestones Trust,1911.96, 24-Jan-2012
114,Revenue,CCHD,Elderly PWLD - KD,Residential Homes,Aspects &  Milestones Trust,3505.52, 24-Jan-2012
115,Revenue,CCHD,Under 65s PWLD - PS,Residential Homes,Aspects &  Milestones Trust,5152, 24-Jan-2012
116,Revenue,CCHD,Under 65s PWLD - PS,Residential Homes,Aspects &  Milestones Trust,5601.08, 24-Jan-2012
117,Revenue,CCHD,Under 65s PWLD - KD,Nursing Homes,Aspects &  Milestones Trust,2703.44, 24-Jan-2012
118,Revenue,CCHD,Section 117 Placements,Nursing Homes,Aspects &  Milestones Trust,1912, 24-Jan-2012
119,Revenue,CCHD,Elderly Mental Health,Nursing Homes,Aspects &  Milestones Trust,1453, 24-Jan-2012
120,Revenue,CCHD,Section 117 Placements,Residential Homes,Aspects &  Milestones Trust,8198.86, 24-Jan-2012
121,Revenue,CCHD,South Glos Users in South Glos Homes,Nursing Homes,Aspects &  Milestones Trust,1739.2, 24-Jan-2012
122,Revenue,CCHD,Elderly PWLD - PS,Residential Homes,Aspects &  Milestones Trust,4295.72, 24-Jan-2012
123,Revenue,CCHD,S28A - Under 65,Nursing Homes,Aspects &  Milestones Trust,5712.32, 24-Jan-2012
124,Revenue,CCHD,S28A - Under 65,Residential Homes,Aspects &  Milestones Trust,5272.24, 24-Jan-2012
125,Revenue,CCHD,Under 65s PWLD - KH,Residential Homes,Aspects &  Milestones Trust,2827.16, 24-Jan-2012
126,Revenue,CCHD,S28A - Under 65,Residential Homes,Aspects &  Milestones Trust,5251.04, 24-Jan-2012
127,Revenue,CCHD,Under 65s PWLD - KD,Residential Homes,Aspects &  Milestones Trust,5638.32, 24-Jan-2012
128,Revenue,CCHD,Under 65s PWLD - KH,Residential Homes,Aspects &  Milestones Trust,3782.04, 24-Jan-2012
129,Revenue,CCHD,S28A - Under 65,Nursing Homes,Aspects &  Milestones Trust,7624.84, 24-Jan-2012
130,Revenue,CCHD,MH Purchasing - Younger,Residential Homes,Aspects &  Milestones Trust,1009, 24-Jan-2012
131,Revenue,CCHD,Elderly PWLD - PS,Residential Homes,Aspects &  Milestones Trust,5191.2, 24-Jan-2012
132,Revenue,CCHD,Elderly PWLD - PS,Residential Homes,Aspects &  Milestones Trust,3739.2, 24-Jan-2012
133,Revenue,CCHD,Elderly PWLD - KH,Residential Homes,Aspects &  Milestones Trust,4664.24, 24-Jan-2012
134,Revenue,CCHD,S28A - Under 65,Residential Homes,Aspects &  Milestones Trust,5187.68, 24-Jan-2012
135,Revenue,CCHD,S28A - Under 65,Residential Homes,Aspects &  Milestones Trust,6036, 24-Jan-2012
136,Revenue,CCHD,S28A - Under 65,Nursing Homes,Aspects &  Milestones Trust,6122.48, 24-Jan-2012
137,Revenue,CCHD,Under 65s PWLD - PS,Residential Homes,Aspects &  Milestones Trust,3648.4, 24-Jan-2012
138,Revenue,CCHD,S28A - Under 65,Residential Homes,Aspects &  Milestones Trust,6036, 24-Jan-2012
139,Revenue,CCHD,S28A - Under 65,Residential Homes,Aspects &  Milestones Trust,4787.92, 24-Jan-2012
140,Revenue,CCHD,S28A - Over 65,Residential Homes,Aspects &  Milestones Trust,4664.48, 24-Jan-2012
141,Revenue,CCHD,S28A - Over 65,Residential Homes,Aspects &  Milestones Trust,3959.08, 24-Jan-2012
142,Revenue,CCHD,S28A - Under 65,Residential Homes,Aspects &  Milestones Trust,6036, 24-Jan-2012
143,Revenue,CCHD,S28A - Over 65,Residential Homes,Aspects &  Milestones Trust,4179.08, 24-Jan-2012
144,Revenue,CCHD,S28A - Under 65,Residential Homes,Aspects &  Milestones Trust,6036, 24-Jan-2012
145,Revenue,CCHD,S28A - Over 65,Residential Homes,Aspects &  Milestones Trust,3854.92, 24-Jan-2012
146,Revenue,CCHD,S28A - Under 65,Residential Homes,Aspects &  Milestones Trust,4980, 24-Jan-2012
147,Revenue,CCHD,S28A - Under 65,Residential Homes,Aspects &  Milestones Trust,6528.04, 24-Jan-2012
148,Revenue,CCHD,S28A - Under 65,Residential Homes,Aspects &  Milestones Trust,3992.16, 24-Jan-2012
149,Revenue,CCHD,S28A - Over 65,Residential Homes,Aspects &  Milestones Trust,5737.96, 24-Jan-2012
150,Revenue,CCHD,S28A - Over 65,Residential Homes,Aspects &  Milestones Trust,3351.52, 24-Jan-2012
151,Revenue,CCHD,S28A - Over 65,Residential Homes,Aspects &  Milestones Trust,4691.8, 24-Jan-2012
152,Revenue,CCHD,S28A - Over 65,Residential Homes,Aspects &  Milestones Trust,4837.04, 24-Jan-2012
153,Revenue,CCHD,S28A - Over 65,Residential Homes,Aspects &  Milestones Trust,4556.16, 24-Jan-2012
154,Revenue,CCHD,S28A - Under 65,Residential Homes,Aspects &  Milestones Trust,4440, 24-Jan-2012
155,Revenue,CCHD,S28A - Over 65,Residential Homes,Aspects &  Milestones Trust,4112.28, 24-Jan-2012
156,Revenue,CCHD,S28A - Over 65,Residential Homes,Aspects &  Milestones Trust,3419.64, 24-Jan-2012
157,Revenue,CCHD,S28A - Under 65,Residential Homes,Aspects &  Milestones Trust,7200, 24-Jan-2012
158,Revenue,CCHD,S28A - Under 65,Nursing Homes,Aspects &  Milestones Trust,6203.68, 24-Jan-2012
159,Revenue,CCHD,S28A - Over 65,Residential Homes,Aspects &  Milestones Trust,3445.12, 24-Jan-2012
160,Revenue,CCHD,S28A - Over 65,Residential Homes,Aspects &  Milestones Trust,3207.68, 24-Jan-2012
161,Revenue,CCHD,S28A - Over 65,Residential Homes,Aspects &  Milestones Trust,3263.96, 24-Jan-2012
162,Revenue,CCHD,S28A - Over 65,Residential Homes,Aspects &  Milestones Trust,4652.36, 24-Jan-2012
163,Revenue,CCHD,Elderly Mental Health,Residential Homes,Aspects &  Milestones Trust,845.36, 24-Jan-2012
164,Revenue,CCHD,S28A - Under 65,Residential Homes,Aspects &  Milestones Trust,4723.04, 24-Jan-2012
165,Revenue,CCHD,Elderly PWLD - KD,Residential Homes,Aspects &  Milestones Trust,2722.88, 24-Jan-2012
166,Revenue,CCHD,Elderly PWLD - KH,Residential Homes,Aspects &  Milestones Trust,5344.36, 24-Jan-2012
167,Revenue,CCHD,Under 65s PWLD - KD,Residential Homes,Aspects &  Milestones Trust,5420.08, 24-Jan-2012
168,Revenue,CCHD,Elderly PWLD - KD,Residential Homes,Aspects &  Milestones Trust,4180.6, 24-Jan-2012
169,Revenue,CCHD,Under 65s PWLD - PS,Residential Homes,Aspects &  Milestones Trust,3797.04, 24-Jan-2012
170,Revenue,CCHD,S28A - Under 65,Residential Homes,Aspects &  Milestones Trust,5687.48, 24-Jan-2012
171,Revenue,CCHD,S28A - Over 65,Residential Homes,Aspects &  Milestones Trust,3227.36, 24-Jan-2012
172,Revenue,CCHD,Section 117 Placements MH Younger,Residential Homes,Aspects &  Milestones Trust,1688, 24-Jan-2012
173,Revenue,CCHD,MH Purchasing - Younger,Residential Homes,Aspects &  Milestones Trust,1009, 24-Jan-2012
174,Revenue,CCHD,S28A - Over 65,Residential Homes,Aspects &  Milestones Trust,3463.2, 24-Jan-2012
175,Revenue,CCHD,S28A - Under 65,Residential Homes,Aspects &  Milestones Trust,3514.96, 24-Jan-2012
176,Revenue,CCHD,S28A - Under 65,Residential Homes,Aspects &  Milestones Trust,4980, 24-Jan-2012
177,Revenue,CCHD,S28A - Under 65,Residential Homes,Aspects &  Milestones Trust,5936.36, 24-Jan-2012
178,Revenue,CCHD,S28A - Over 65,Residential Homes,Aspects &  Milestones Trust,5810.64, 24-Jan-2012
179,Revenue,CCHD,S28A - Over 65,Residential Homes,Aspects &  Milestones Trust,4106.08, 24-Jan-2012
180,Revenue,CCHD,S28A - Over 65,Residential Homes,Aspects &  Milestones Trust,4652.36, 24-Jan-2012
181,Revenue,CCHD,S28A - Over 65,Residential Homes,Aspects &  Milestones Trust,4693.88, 24-Jan-2012
182,Revenue,CCHD,S28A - Under 65,Residential Homes,Aspects &  Milestones Trust,5524.88, 24-Jan-2012
183,Revenue,CCHD,S28A - Under 65,Residential Homes,Aspects &  Milestones Trust,7621.72, 24-Jan-2012
184,Revenue,CCHD,S28A - Over 65,Residential Homes,Aspects &  Milestones Trust,4831.24, 24-Jan-2012
185,Revenue,CCHD,S28A - Under 65,Residential Homes,Aspects &  Milestones Trust,4675.48, 24-Jan-2012
186,Revenue,CCHD,S28A - Over 65,Residential Homes,Aspects &  Milestones Trust,4814.6, 24-Jan-2012
187,Revenue,CCHD,S28A - Over 65,Residential Homes,Aspects &  Milestones Trust,5393.12, 24-Jan-2012
188,Revenue,CCHD,S28A - Under 65,Residential Homes,Aspects &  Milestones Trust,4546.52, 24-Jan-2012
189,Revenue,CCHD,S28A - Over 65,Residential Homes,Aspects &  Milestones Trust,4814.6, 24-Jan-2012
190,Revenue,CCHD,S28A - Over 65,Residential Homes,Aspects &  Milestones Trust,5200, 24-Jan-2012
191,Revenue,CCHD,S28A - Over 65,Residential Homes,Aspects &  Milestones Trust,4837.04, 24-Jan-2012
192,Revenue,CCHD,S28A - Under 65,Residential Homes,Aspects &  Milestones Trust,4667.44, 24-Jan-2012
193,Revenue,CCHD,S28A - Under 65,Residential Homes,Aspects &  Milestones Trust,6036, 24-Jan-2012
194,Revenue,CCHD,S28A - Over 65,Residential Homes,Aspects &  Milestones Trust,5538.72, 24-Jan-2012
195,Revenue,CCHD,S28A - Under 65,Residential Homes,Aspects &  Milestones Trust,3422.8, 24-Jan-2012
196,Revenue,CCHD,S28A - Over 65,Residential Homes,Aspects &  Milestones Trust,3230.96, 24-Jan-2012
197,Revenue,CCHD,S28A - Over 65,Residential Homes,Aspects &  Milestones Trust,3366.4, 24-Jan-2012
198,Revenue,CCHD,S28A - Over 65,Residential Homes,Aspects &  Milestones Trust,3161.2, 24-Jan-2012
199,Revenue,CCHD,Under 65s PWLD - KH,Residential Homes,Aspects &  Milestones Trust,7047.48, 24-Jan-2012
200,Revenue,CCHD,Section 117 Placements,Residential Homes,Aspects &  Milestones Trust,1913.04, 24-Jan-2012
201,Revenue,CCHD,Elderly Mental Health,Nursing Homes,Aspects &  Milestones Trust,1323.08, 24-Jan-2012
202,Revenue,CCHD,Under 65s PWLD - KD,Residential Homes,Aspects &  Milestones Trust,6036, 24-Jan-2012
203,Revenue,CCHD,MH Purchasing - Younger,Nursing Homes,Aspects &  Milestones Trust,908.88, 24-Jan-2012
204,Revenue,CCHD,MH Purchasing - Younger,Nursing Homes,Aspects &  Milestones Trust,1097, 24-Jan-2012
205,Revenue,CCHD,MH Purchasing - Younger,Residential Homes,Aspects &  Milestones Trust,1009, 24-Jan-2012
206,Revenue,CCHD,Elderly PWLD - PS,Residential Homes,Aspects &  Milestones Trust,3353.52, 24-Jan-2012
207,Revenue,CCHD,Section 117 Placements MH Younger,Nursing Homes,Aspects &  Milestones Trust,1392, 24-Jan-2012
208,Revenue,CCHD,S28A - Under 65,Residential Homes,Aspects &  Milestones Trust,4796.24, 24-Jan-2012
209,Revenue,CCHD,S28A - Over 65,Residential Homes,Aspects &  Milestones Trust,4562.12, 24-Jan-2012
210,Revenue,CCHD,Under 65s PWLD - KH,Residential Homes,Aspects &  Milestones Trust,4115.4, 24-Jan-2012
211,Revenue,CCHD,S28A - Over 65,Residential Homes,Aspects &  Milestones Trust,4037.96, 24-Jan-2012
212,Revenue,CCHD,S28A - Over 65,Residential Homes,Aspects &  Milestones Trust,3748.88, 24-Jan-2012
213,Revenue,CCHD,S28A - Over 65,Residential Homes,Aspects &  Milestones Trust,5810.64, 24-Jan-2012
214,Revenue,CCHD,S28A - Over 65,Residential Homes,Aspects &  Milestones Trust,4409.28, 24-Jan-2012
215,Revenue,CCHD,S28A - Over 65,Residential Homes,Aspects &  Milestones Trust,3917.36, 24-Jan-2012
216,Revenue,CCHD,S28A - Over 65,Residential Homes,Aspects &  Milestones Trust,4343.92, 24-Jan-2012
217,Revenue,CCHD,S28A - Over 65,Residential Homes,Aspects &  Milestones Trust,5080.6, 24-Jan-2012
218,Revenue,CCHD,Elderly Mental Health,Residential Homes,Aspects &  Milestones Trust,1214, 24-Jan-2012
219,Revenue,CCHD,S28A - Over 65,Residential Homes,Aspects &  Milestones Trust,4693.88, 24-Jan-2012
220,Revenue,CCHD,S28A - Under 65,Residential Homes,Aspects &  Milestones Trust,5336.24, 24-Jan-2012
221,Revenue,CCHD,Section 117 Placements,Nursing Homes,Aspects &  Milestones Trust,1912, 24-Jan-2012
222,Revenue,CCHD,Section 117 Placements,Nursing Homes,Aspects &  Milestones Trust,1912, 24-Jan-2012
223,Revenue,CCHD,Section 117 Placements,Residential Homes,Aspects &  Milestones Trust,1304, 24-Jan-2012
224,Revenue,CCHD,Under 65s PWLD - KD,Residential Homes,Aspects & Milestones Trust,8708.64, 24-Jan-2012
225,Revenue,CCHD,Supporting People Programme,Grants to Voluntary Bodies,Aspects and Milestones Trust,1426.32, 18-Jan-2012
226,Revenue,CCHD,Supporting People Programme,Grants to Voluntary Bodies,Aspects and Milestones Trust,1737.24, 18-Jan-2012
227,Revenue,CCHD,Supporting People Programme,Grants to Voluntary Bodies,Aspects and Milestones Trust,2165.04, 18-Jan-2012
228,Revenue,CCHD,Supporting People Programme,Grants to Voluntary Bodies,Aspects and Milestones Trust,2783.52, 18-Jan-2012
229,Revenue,CCHD,Supporting People Programme,Grants to Voluntary Bodies,Aspects and Milestones Trust,2844.96, 18-Jan-2012
230,Revenue,CCHD,Supporting People Programme,Grants to Voluntary Bodies,Aspects and Milestones Trust,3996.4, 18-Jan-2012
231,Revenue,CCHD,Under 65s PWLD - KH,Residential Homes,Autism Specialised Care Homes,5425.76, 24-Jan-2012
232,Revenue,CCHD,Younger Adult Mental Health,Management Contract - Unisys,Avon & Wiltshire Mental Health,1667, 03-Jan-2012
233,Revenue,CCHD,Woodleaze,Prop.Serv. General Repairs,Avon Armour Ltd,1925, 12-Jan-2012
234,Revenue,CCHD,Purchase of Non-Res Care - KD,Private & Voluntary Day Care,Avon Autistic Foundation Limited,1645.32, 12-Jan-2012
235,Revenue,CCHD,Purchase of Non-Res Care - KD,Private & Voluntary Day Care,Avon Autistic Foundation Limited,1682.46, 12-Jan-2012
236,Revenue,CCHD,Elderly Purchasing - North,Residential Homes,Avonedge Limited,1300, 25-Jan-2012
237,Revenue,CCHD,Community Support ACM - North,Preventative Assistance,Barberry,500, 09-Jan-2012
238,Revenue,CCHD,Purchase of RAC places,Other L.A.'s - General,Bath & North East Somerset Dist Council,3760.84, 27-Jan-2012
239,Revenue,CCHD,Purchase of RAC places,Other L.A.'s - General,Bath & North East Somerset Dist Council,22889.12, 26-Jan-2012
240,Revenue,CCHD,Frenchay Hospital Purchasing,Residential Homes,Beaufort House,670.32, 24-Jan-2012
241,Revenue,CCHD,Elderly PWLD - PS,Residential Homes,Beaufort House,2976.05, 24-Jan-2012
242,Revenue,CCHD,Southmead Hospital Purchasing,Residential Homes,Beaufort House,1406.49, 24-Jan-2012
243,Revenue,CCHD,Elderly Mental Health,Residential Homes,Beaufort House,1399.92, 24-Jan-2012
244,Revenue,CCHD,Frenchay Hospital Purchasing,Residential Homes,Beaufort House,556.01, 24-Jan-2012
245,Revenue,CCHD,Southmead Hospital Purchasing,Residential Homes,Beaufort House,1545, 24-Jan-2012
246,Revenue,CCHD,Southmead Hospital Purchasing,Residential Homes,Beaufort House,2606.4, 24-Jan-2012
247,Revenue,CCHD,Southmead Hospital Purchasing,Residential Homes,Beaufort House,1641, 24-Jan-2012
248,Revenue,CCHD,Frenchay Hospital Purchasing,Residential Homes,Beaufort House,1258.76, 24-Jan-2012
249,Revenue,CCHD,Elderly Mental Health,Residential Homes,Beaufort House,1288.32, 24-Jan-2012
250,Revenue,CCHD,Elderly Mental Health,Residential Homes,Beaufort House,1307.68, 24-Jan-2012
251,Revenue,CCHD,Elderly Purchasing - North,Residential Homes,Beaufort House,1670.64, 24-Jan-2012
252,Revenue,CCHD,Elderly Mental Health,Residential Homes,Beaufort House,1328.16, 24-Jan-2012
253,Revenue,CCHD,Elderly Mental Health,Residential Homes,Beaufort House,1032.16, 24-Jan-2012
254,Revenue,CCHD,Elderly Mental Health,Residential Homes,Beaufort House,1654.92, 24-Jan-2012
255,Revenue,CCHD,Elderly PWLD - KH,Residential Homes,Bedrock Lodge,2821.28, 24-Jan-2012
256,Revenue,CCHD,Section 117 Placements MH Younger,Residential Homes,Bedrock Lodge,1790.12, 24-Jan-2012
257,Revenue,CCHD,Elderly Mental Health,Residential Homes,Beech House,1229, 24-Jan-2012
258,Revenue,CCHD,South Glos Users in South Glos Homes,Nursing Homes,Beech House,807.49, 24-Jan-2012
259,Revenue,CCHD,Frenchay Hospital Purchasing,Nursing Homes,Beech House,1565.08, 24-Jan-2012
260,Revenue,CCHD,Southmead Hospital Purchasing,Nursing Homes,Beech House,1432.36, 24-Jan-2012
261,Revenue,CCHD,South Glos Users in South Glos Homes,Nursing Homes,Beech House,947.24, 24-Jan-2012
262,Revenue,CCHD,Elderly Purchasing - North,Nursing Homes,Beech House,1922.32, 24-Jan-2012
263,Revenue,CCHD,Elderly Purchasing - North,Nursing Homes,Beech House,668.64, 24-Jan-2012
264,Revenue,CCHD,Southmead Hospital Purchasing,Nursing Homes,Beech House,1571.4, 24-Jan-2012
265,Revenue,CCHD,Elderly Purchasing - North,Nursing Homes,Beech House,1190.56, 24-Jan-2012
266,Revenue,CCHD,Under 65s PWLD - KD,Residential Homes,Beechwood Court,38084.73, 24-Jan-2012
267,Revenue,CCHD,South Glos Users in South Glos Homes,Nursing Homes,Blossom Field,1273.34, 24-Jan-2012
268,Revenue,CCHD,Frenchay Hospital Purchasing,Residential Homes,Blossom Field,697.84, 24-Jan-2012
269,Revenue,CCHD,South Glos Users in South Glos Homes,Nursing Homes,Blossom Field,1133.59, 24-Jan-2012
270,Revenue,CCHD,South Glos Users in South Glos Homes,Nursing Homes,Blossom Field,512.44, 24-Jan-2012
271,Revenue,CCHD,South Glos Users in South Glos Homes,Nursing Homes,Blossom Field,1350.99, 24-Jan-2012
272,Revenue,CCHD,South Glos Users in South Glos Homes,Nursing Homes,Blossom Field,1910.01, 24-Jan-2012
273,Revenue,CCHD,Elderly Mental Health,Nursing Homes,Blossom Field,1378.68, 24-Jan-2012
274,Revenue,CCHD,South Glos Users in South Glos Homes,Nursing Homes,Blossom Field,683.26, 24-Jan-2012
275,Revenue,CCHD,Southmead Hospital Purchasing,Nursing Homes,Blossom Field,1285, 24-Jan-2012
276,Revenue,CCHD,Elderly Purchasing - North,Nursing Homes,Blossom Fields,5840.51, 18-Jan-2012
277,Revenue,CCHD,South Glos Users in South Glos Homes,Nursing Homes,Blossom Fields,1304.4, 18-Jan-2012
278,Revenue,CCHD,Elderly Mental Health,Nursing Homes,Blossom Fields,1545.52, 18-Jan-2012
279,Revenue,CCHD,Elderly Purchasing - North,Nursing Homes,Blossom Fields,5044.21, 18-Jan-2012
280,Revenue,CCHD,South Glos Users in South Glos Homes,Nursing Homes,Blossom Fields,3944.26, 18-Jan-2012
281,Revenue,CCHD,Elderly Mental Health,Nursing Homes,Blossom Fields,1159.14, 18-Jan-2012
282,Revenue,CCHD,Training - Adult Services,Training Expenses,Bob Dawson,3942.5, 09-Jan-2012
283,Revenue,CCHD,Training - Adult Services,Training Expenses,Bob Dawson,735, 18-Jan-2012
284,Revenue,CCHD,Finance,Training Expenses,BPP Professional Education,1660.29, 25-Jan-2012
285,Revenue,CCHD,Frenchay Hospital Purchasing,Nursing Homes,Bradbury House,1350.32, 24-Jan-2012
286,Revenue,CCHD,Swift Dump Code,Residential Homes,Bradbury House Organisation,6566.88, 30-Jan-2012
287,Revenue,CCHD,Swift Dump Code,Residential Homes,Bradbury House Organisation,12064.88, 31-Jan-2012
288,Revenue,CCHD,Elderly Purchasing - North,Residential Homes,Bradley House,570.6, 24-Jan-2012
289,Revenue,CCHD,Home Care Purch South,Other Small Contracts,Bradley House Home Care Services,41, 10-Jan-2012
290,Revenue,CCHD,Home Care Purch North,Other Small Contracts,Bradley House Home Care Services,1894.2, 10-Jan-2012
291,Revenue,CCHD,Day Care - South,Private & Voluntary Day Care,Bradley House Home Care Services,45.1, 10-Jan-2012
292,Revenue,CCHD,Day Care - North,Private & Voluntary Day Care,Bradley House Home Care Services,123, 10-Jan-2012
293,Revenue,CCHD,Younger MH non-res purchasing,Private & Voluntary Day Care,Bradley House Home Care Services,65.6, 10-Jan-2012
294,Revenue,CCHD,Home Care Purch South,Other Small Contracts,Bradley House Home Care Services,36.9, 19-Jan-2012
295,Revenue,CCHD,Home Care Purch North,Other Small Contracts,Bradley House Home Care Services,1553.9, 19-Jan-2012
296,Revenue,CCHD,Day Care - South,Private & Voluntary Day Care,Bradley House Home Care Services,49.2, 19-Jan-2012
297,Revenue,CCHD,Day Care - North,Private & Voluntary Day Care,Bradley House Home Care Services,82, 19-Jan-2012
298,Revenue,CCHD,Younger MH non-res purchasing,Private & Voluntary Day Care,Bradley House Home Care Services,24.6, 19-Jan-2012
299,Revenue,CCHD,Home Care Purch South,Other Small Contracts,Bradley House Home Care Services,86.1, 19-Jan-2012
300,Revenue,CCHD,Home Care Purch North,Other Small Contracts,Bradley House Home Care Services,1303.8, 19-Jan-2012
301,Revenue,CCHD,Day Care - South,Private & Voluntary Day Care,Bradley House Home Care Services,49.2, 19-Jan-2012
302,Revenue,CCHD,Day Care - North,Private & Voluntary Day Care,Bradley House Home Care Services,82, 19-Jan-2012
303,Revenue,CCHD,Younger MH non-res purchasing,Private & Voluntary Day Care,Bradley House Home Care Services,65.6, 19-Jan-2012
304,Revenue,CCHD,Home Care Purch South,Other Small Contracts,Bradley House Home Care Services,86.1, 31-Jan-2012
305,Revenue,CCHD,Home Care Purch North,Other Small Contracts,Bradley House Home Care Services,1312, 31-Jan-2012
306,Revenue,CCHD,Day Care - South,Private & Voluntary Day Care,Bradley House Home Care Services,49.2, 31-Jan-2012
307,Revenue,CCHD,Day Care - North,Private & Voluntary Day Care,Bradley House Home Care Services,131.2, 31-Jan-2012
308,Revenue,CCHD,Younger MH non-res purchasing,Private & Voluntary Day Care,Bradley House Home Care Services,65.6, 31-Jan-2012
309,Revenue,CCHD,Home Care Purch South,Other Small Contracts,Bradley House Home Care Services,77.9, 04-Jan-2012
310,Revenue,CCHD,Home Care Purch North,Other Small Contracts,Bradley House Home Care Services,2000.8, 04-Jan-2012
311,Revenue,CCHD,Day Care - South,Private & Voluntary Day Care,Bradley House Home Care Services,49.2, 04-Jan-2012
312,Revenue,CCHD,Day Care - North,Private & Voluntary Day Care,Bradley House Home Care Services,127.1, 04-Jan-2012
313,Revenue,CCHD,Younger MH non-res purchasing,Private & Voluntary Day Care,Bradley House Home Care Services,65.6, 04-Jan-2012
314,Revenue,CCHD,Woodleaze,"Provisions (Food, etc)",Brake Bros,595.93, 11-Jan-2012
315,Revenue,CCHD,Newton House,"Provisions (Food, etc)",Brake Bros,515.99, 12-Jan-2012
316,Revenue,CCHD,Charlton,"Provisions (Food, etc)",Brake Bros,637.73, 13-Jan-2012
317,Revenue,CCHD,Woodleaze,"Provisions (Food, etc)",Brake Bros,1139.42, 13-Jan-2012
318,Revenue,CCHD,Alexandra Way,"Provisions (Food, etc)",Brake Bros,1066.69, 10-Jan-2012
319,Revenue,CCHD,Woodleaze,"Provisions (Food, etc)",Brake Bros,576.05, 19-Jan-2012
320,Revenue,CCHD,Alexandra Way,"Provisions (Food, etc)",Brake Bros,579.45, 23-Jan-2012
321,Revenue,CCHD,Elderly Purchasing - North,Residential Homes,Bridge House Care Home,1232.6, 24-Jan-2012
322,Revenue,CCHD,Elderly Purchasing - South,Residential Homes,Bridge House Care Home,1074.32, 24-Jan-2012
323,Revenue,CCHD,Elderly Purchasing - North,Residential Homes,Bridge House Care Home,1029.16, 24-Jan-2012
324,Revenue,CCHD,Elderly Mental Health,Residential Homes,Brightbow,2487.2, 24-Jan-2012
325,Revenue,CCHD,MH Purchasing - Younger,Residential Homes,Brightbow,904.84, 24-Jan-2012
326,Revenue,CCHD,Supporting People Programme,Grants to Voluntary Bodies,Bristol Care & Repair,9780.82, 30-Jan-2012
327,Revenue,CCHD,Southmead Hospital Purchasing,Nursing Homes,Bristol City Council,807.48, 16-Jan-2012
328,Revenue,CCHD,Supported Living - KD,Private & Voluntary Home Care,Bristol Houses UK Ltd,1269.1, 23-Jan-2012
329,Revenue,CCHD,Supported Living - KD,Private & Voluntary Home Care,Bristol Houses UK Ltd,1534.93, 24-Jan-2012
330,Revenue,CCHD,Day Care - North,Private & Voluntary Day Care,Bristol Houses UK Ltd,1543.12, 17-Jan-2012
331,Revenue,CCHD,Day Care - North,Private & Voluntary Day Care,Bristol Houses UK Ltd,1298.84, 26-Jan-2012
332,Revenue,CCHD,Supported Living - KD,Private & Voluntary Home Care,Bristol Houses UK Ltd,840.35, 23-Jan-2012
333,Revenue,CCHD,Supported Living - KD,Private & Voluntary Home Care,Bristol Houses UK Ltd,560.5, 12-Jan-2012
334,Revenue,CCHD,Supported Living - KD,Private & Voluntary Home Care,Bristol Houses UK Ltd,944, 23-Jan-2012
335,Revenue,CCHD,Younger MH non-res purchasing,Private & Voluntary Day Care,Bristol Houses UK Ltd,547.88, 26-Jan-2012
336,Revenue,CCHD,Day Care - North,Private & Voluntary Day Care,Bristol Houses UK Ltd,2975.53, 17-Jan-2012
337,Revenue,CCHD,Day Care - North,Private & Voluntary Day Care,Bristol Houses UK Ltd,2302.39, 27-Jan-2012
338,Revenue,CCHD,Supported Living - KD,Private & Voluntary Home Care,Bristol Houses UK Ltd,590, 24-Jan-2012
339,Revenue,CCHD,Bed and Breakfast,Bed & Breakfast,Bristol Housing & Support Limited,840, 27-Jan-2012
340,Revenue,CCHD,Bed and Breakfast,Bed & Breakfast,Bristol Housing & Support Limited,880, 09-Jan-2012
341,Revenue,CCHD,Bed and Breakfast,Bed & Breakfast,Bristol Housing & Support Limited,1008, 09-Jan-2012
342,Revenue,CCHD,Bed and Breakfast,Bed & Breakfast,Bristol Housing & Support Limited,784, 09-Jan-2012
343,Revenue,CCHD,Bed and Breakfast,Bed & Breakfast,Bristol Housing & Support Limited,784, 27-Jan-2012
344,Revenue,CCHD,Bed and Breakfast,Bed & Breakfast,Bristol Housing & Support Limited,832, 27-Jan-2012
345,Revenue,CCHD,Hydrotherapy,Water Charges,Bristol Wessex Billing Services Limited,997.38, 13-Jan-2012
346,Revenue,CCHD,Training - Adult Services,Training Expenses,British Red Cross,516, 26-Jan-2012
347,Revenue,CCHD,Section 117 Placements,Residential Homes,Brockley Court Care Home,1788, 24-Jan-2012
348,Revenue,CCHD,Supporting People Programme,Grants to Voluntary Bodies,Bromford Housing Group,13782.73, 30-Jan-2012
349,Revenue,CCHD,Elderly Purchasing - North,Residential Homes,Brook Lane Residential Home,886.4, 24-Jan-2012
350,Revenue,CCHD,Southmead Hospital Purchasing,Nursing Homes,Brunel Care,1326.08, 24-Jan-2012
351,Revenue,CCHD,South Glos Users in South Glos Homes,Nursing Homes,Brunel Care,1614.97, 24-Jan-2012
352,Revenue,CCHD,Section 117 Placements,Nursing Homes,Brunel Care,1744, 24-Jan-2012
353,Revenue,CCHD,Southmead Hospital Purchasing,Residential Homes,Brunel Care,1237.12, 24-Jan-2012
354,Revenue,CCHD,Southmead Hospital Purchasing,Residential Homes,Brunel Care,1300.32, 24-Jan-2012
355,Revenue,CCHD,Home Care Purch North,Private & Voluntary Home Care,Brunelcare,6720, 16-Jan-2012
356,Revenue,CCHD,Home Care Purch North,Private & Voluntary Home Care,Brunelcare,6720, 23-Jan-2012
357,Revenue,CCHD,Home Care Purch North,Private & Voluntary Home Care,Brunelcare,6720, 30-Jan-2012
358,Revenue,CCHD,Elderly Purchasing - South,Nursing Homes,Brunelcare,10491.45, 24-Jan-2012
359,Revenue,CCHD,Elderly Purchasing - North,Nursing Homes,Brunelcare,3148.27, 24-Jan-2012
360,Revenue,CCHD,Frenchay Hospital Purchasing,Nursing Homes,Brunelcare,1465.64, 24-Jan-2012
361,Revenue,CCHD,Southmead Hospital Purchasing,Nursing Homes,Brunelcare,4782.8, 24-Jan-2012
362,Revenue,CCHD,South Glos Users in South Glos Homes,Nursing Homes,Brunelcare,10217.8, 24-Jan-2012
363,Revenue,CCHD,Elderly Mental Health,Nursing Homes,Brunelcare,14199.3, 24-Jan-2012
364,Revenue,CCHD,Section 117 Placements,Nursing Homes,Brunelcare,6687.59, 24-Jan-2012
365,Revenue,CCHD,Home Care Purch South,Other Small Contracts,Brunelcare,3376.26, 26-Jan-2012
366,Revenue,CCHD,Home Care Purch North,Other Small Contracts,Brunelcare,5510.38, 26-Jan-2012
367,Revenue,CCHD,Day Care - South,Private & Voluntary Day Care,Brunelcare,376.2, 26-Jan-2012
368,Revenue,CCHD,Day Care - North,Private & Voluntary Day Care,Brunelcare,106.92, 26-Jan-2012
369,Revenue,CCHD,Carer`s Grant - North,Carers Breaks & Services,Brunelcare,15.84, 26-Jan-2012
370,Revenue,CCHD,Elderly MH Home Care,Other Small Contracts,Brunelcare,687.16, 26-Jan-2012
371,Revenue,CCHD,Elderly MH non-res purchasing,Private & Voluntary Day Care,Brunelcare,471.24, 26-Jan-2012
372,Revenue,CCHD,Home Care Purch South,Other Small Contracts,Brunelcare,3050.76, 26-Jan-2012
373,Revenue,CCHD,Home Care Purch North,Other Small Contracts,Brunelcare,5235.12, 26-Jan-2012
374,Revenue,CCHD,Day Care - South,Private & Voluntary Day Care,Brunelcare,201.96, 26-Jan-2012
375,Revenue,CCHD,Day Care - North,Private & Voluntary Day Care,Brunelcare,75.24, 26-Jan-2012
376,Revenue,CCHD,Carer`s Grant - North,Carers Breaks & Services,Brunelcare,11.88, 26-Jan-2012
377,Revenue,CCHD,Elderly MH Home Care,Other Small Contracts,Brunelcare,645.48, 26-Jan-2012
378,Revenue,CCHD,Elderly MH non-res purchasing,Private & Voluntary Day Care,Brunelcare,495, 26-Jan-2012
379,Revenue,CCHD,Home Care Purch South,Other Small Contracts,Brunelcare,2646.74, 26-Jan-2012
380,Revenue,CCHD,Home Care Purch North,Other Small Contracts,Brunelcare,5223.24, 26-Jan-2012
381,Revenue,CCHD,Day Care - South,Private & Voluntary Day Care,Brunelcare,142.56, 26-Jan-2012
382,Revenue,CCHD,Carer`s Grant - North,Carers Breaks & Services,Brunelcare,7.92, 26-Jan-2012
383,Revenue,CCHD,Elderly MH Home Care,Other Small Contracts,Brunelcare,558.36, 26-Jan-2012
384,Revenue,CCHD,Elderly MH non-res purchasing,Private & Voluntary Day Care,Brunelcare,348.48, 26-Jan-2012
385,Revenue,CCHD,Home Care Purch South,Other Small Contracts,Brunelcare,3088.22, 27-Jan-2012
386,Revenue,CCHD,Home Care Purch North,Other Small Contracts,Brunelcare,4998.82, 27-Jan-2012
387,Revenue,CCHD,Day Care - South,Private & Voluntary Day Care,Brunelcare,348.48, 27-Jan-2012
388,Revenue,CCHD,Day Care - North,Private & Voluntary Day Care,Brunelcare,47.52, 27-Jan-2012
389,Revenue,CCHD,Carer`s Grant - North,Carers Breaks & Services,Brunelcare,7.92, 27-Jan-2012
390,Revenue,CCHD,Elderly MH Home Care,Other Small Contracts,Brunelcare,646.52, 27-Jan-2012
391,Revenue,CCHD,Elderly MH non-res purchasing,Private & Voluntary Day Care,Brunelcare,479.16, 27-Jan-2012
392,Revenue,CCHD,Home Care Purch South,Other Small Contracts,Brunelcare,3239.22, 27-Jan-2012
393,Revenue,CCHD,Home Care Purch North,Other Small Contracts,Brunelcare,4680.72, 27-Jan-2012
394,Revenue,CCHD,Day Care - South,Private & Voluntary Day Care,Brunelcare,304.92, 27-Jan-2012
395,Revenue,CCHD,Day Care - North,Private & Voluntary Day Care,Brunelcare,102.96, 27-Jan-2012
396,Revenue,CCHD,Carer`s Grant - North,Carers Breaks & Services,Brunelcare,11.88, 27-Jan-2012
397,Revenue,CCHD,Elderly MH Home Care,Other Small Contracts,Brunelcare,653.4, 27-Jan-2012
398,Revenue,CCHD,Elderly MH non-res purchasing,Private & Voluntary Day Care,Brunelcare,483.12, 27-Jan-2012
399,Revenue,CCHD,Home Care Purch South,Other Small Contracts,Brunelcare,3104.64, 11-Jan-2012
400,Revenue,CCHD,Home Care Purch North,Other Small Contracts,Brunelcare,5843.6, 11-Jan-2012
401,Revenue,CCHD,Day Care - South,Private & Voluntary Day Care,Brunelcare,368.28, 11-Jan-2012
402,Revenue,CCHD,Day Care - North,Private & Voluntary Day Care,Brunelcare,102.96, 11-Jan-2012
403,Revenue,CCHD,Carer`s Grant - North,Carers Breaks & Services,Brunelcare,7.92, 11-Jan-2012
404,Revenue,CCHD,Elderly MH Home Care,Other Small Contracts,Brunelcare,646.52, 11-Jan-2012
405,Revenue,CCHD,Elderly MH non-res purchasing,Private & Voluntary Day Care,Brunelcare,455.4, 11-Jan-2012
406,Revenue,CCHD,Information Systems - Software,Computer Equipment - Purchase,BT Global Services Solutions,759.31, 19-Jan-2012
407,Revenue,CCHD,Woodleaze,Cleaning & Domestic Supplies,Bunzl Cleaning & Hygiene Supplies,607.6, 19-Jan-2012
408,Revenue,CCHD,Supported Living - KH,Private & Voluntary Home Care,Camphill Communities Thornbury Limited,1707.72, 09-Jan-2012
409,Revenue,CCHD,Supported Living - KD,Private & Voluntary Home Care,Camphill Communities Thornbury Limited,2231.64, 12-Jan-2012
410,Revenue,CCHD,Supported Living - KD,Private & Voluntary Home Care,Camphill Communities Thornbury Limited,1996.72, 12-Jan-2012
411,Revenue,CCHD,Supported Living - KD,Private & Voluntary Home Care,Camphill Communities Thornbury Limited,2211.36, 12-Jan-2012
412,Revenue,CCHD,Supported Living - KD,Private & Voluntary Home Care,Camphill Communities Thornbury Limited,1964.32, 12-Jan-2012
413,Revenue,CCHD,Supported Living - KD,Private & Voluntary Home Care,Camphill Communities Thornbury Limited,2077.72, 16-Jan-2012
414,Revenue,CCHD,Supported Living - KD,Private & Voluntary Home Care,Camphill Communities Thornbury Limited,1017.22, 16-Jan-2012
415,Revenue,CCHD,Supported Living - KD,Private & Voluntary Home Care,Camphill Communities Thornbury Limited,1964.32, 16-Jan-2012
416,Revenue,CCHD,Supported Living - KD,Private & Voluntary Home Care,Camphill Communities Thornbury Limited,2179.44, 16-Jan-2012
417,Revenue,CCHD,Supported Living - KD,Private & Voluntary Home Care,Camphill Communities Thornbury Limited,1017.22, 27-Jan-2012
418,Revenue,CCHD,Under 65s PWLD - KD,Residential Homes,Camphill Devon Community,3143.88, 24-Jan-2012
419,Revenue,CCHD,Under 65s PWLD - KD,Residential Homes,Camphill Devon Community,2208.44, 24-Jan-2012
420,Revenue,CCHD,Home Care Purch South,Other Small Contracts,Care 1st Homecare,4469.54, 16-Jan-2012
421,Revenue,CCHD,Home Care Purch North,Other Small Contracts,Care 1st Homecare,4660.58, 16-Jan-2012
422,Revenue,CCHD,Day Care - South,Private & Voluntary Day Care,Care 1st Homecare,242.82, 16-Jan-2012
423,Revenue,CCHD,Day Care - North,Private & Voluntary Day Care,Care 1st Homecare,387.36, 16-Jan-2012
424,Revenue,CCHD,Elderly MH Home Care,Other Small Contracts,Care 1st Homecare,143.28, 16-Jan-2012
425,Revenue,CCHD,PWLD Home Care - Under 65 - PS,Private & Voluntary Home Care,Care 1st Homecare,31.84, 16-Jan-2012
426,Revenue,CCHD,PWLD Home Care - Under 65 - KH,Private & Voluntary Home Care,Care 1st Homecare,171.14, 16-Jan-2012
427,Revenue,CCHD,Home Care Purch South,Other Small Contracts,Care 1st Homecare,4342.18, 31-Jan-2012
428,Revenue,CCHD,Home Care Purch North,Other Small Contracts,Care 1st Homecare,4465.56, 31-Jan-2012
429,Revenue,CCHD,Day Care - South,Private & Voluntary Day Care,Care 1st Homecare,240.04, 31-Jan-2012
430,Revenue,CCHD,Day Care - North,Private & Voluntary Day Care,Care 1st Homecare,350.24, 31-Jan-2012
431,Revenue,CCHD,Elderly MH Home Care,Other Small Contracts,Care 1st Homecare,107.46, 31-Jan-2012
432,Revenue,CCHD,PWLD Home Care - Under 65 - PS,Private & Voluntary Home Care,Care 1st Homecare,11.94, 31-Jan-2012
433,Revenue,CCHD,PWLD Home Care - Under 65 - KH,Private & Voluntary Home Care,Care 1st Homecare,103.48, 31-Jan-2012
434,Revenue,CCHD,Home Care Purch South,Other Small Contracts,Care 1st Homecare,3534.24, 31-Jan-2012
435,Revenue,CCHD,Home Care Purch North,Other Small Contracts,Care 1st Homecare,3972.04, 31-Jan-2012
436,Revenue,CCHD,Day Care - South,Private & Voluntary Day Care,Care 1st Homecare,262.68, 31-Jan-2012
437,Revenue,CCHD,Day Care - North,Private & Voluntary Day Care,Care 1st Homecare,187.06, 31-Jan-2012
438,Revenue,CCHD,Elderly MH Home Care,Other Small Contracts,Care 1st Homecare,87.56, 31-Jan-2012
439,Revenue,CCHD,PWLD Home Care - Under 65 - KH,Private & Voluntary Home Care,Care 1st Homecare,167.16, 31-Jan-2012
440,Revenue,CCHD,PWLD S 117 Placements,Residential Homes,Care Community Ltd,7341.4, 24-Jan-2012
441,Revenue,CCHD,Supported Living - KH,Private & Voluntary Home Care,Care Horizons Limited,1753.5, 09-Jan-2012
442,Revenue,CCHD,Purchase of Non-Res Care - KD,Private & Voluntary Day Care,Care Horizons Limited,1066.22, 03-Jan-2012
443,Revenue,CCHD,Day Care - South,Private & Voluntary Day Care,Care Horizons Limited,693.9, 09-Jan-2012
444,Revenue,CCHD,Purchase of Non-Res Care - PS,Private & Voluntary Day Care,Care Horizons Limited,1492.23, 11-Jan-2012
445,Revenue,CCHD,Supported Living - KD,Private & Voluntary Home Care,Care Horizons Limited,5234.74, 03-Jan-2012
446,Revenue,CCHD,Supported Living - KD,Private & Voluntary Home Care,Care Horizons Limited,5298.87, 26-Jan-2012
447,Revenue,CCHD,Day Care - South,Private & Voluntary Day Care,Care Horizons Limited,560.2, 26-Jan-2012
448,Revenue,CCHD,Purchase of Non-Res Care - PS,Private & Voluntary Day Care,Care Horizons Limited,1481.41, 24-Jan-2012
449,Revenue,CCHD,Electronic Home Care Monitoring,Other Supplies & Services,Care Monitoring 2000 Limited,5169.4, 23-Jan-2012
450,Revenue,CCHD,Home Care - General,Other Supplies & Services,Care Monitoring 2000 Limited,7060.8, 23-Jan-2012
451,Revenue,CCHD,Electronic Home Care Monitoring,Other Supplies & Services,Care Monitoring 2000 Limited,1340, 06-Jan-2012
452,Revenue,CCHD,Electronic Home Care Monitoring,Other Supplies & Services,Care Monitoring 2000 Limited,1340, 10-Jan-2012
453,Revenue,CCHD,Electronic Home Care Monitoring,Other Supplies & Services,Care Monitoring 2000 Limited,1340, 30-Jan-2012
454,Revenue,CCHD,Electronic Home Care Monitoring,Other Supplies & Services,Care Monitoring 2000 Limited,1340, 27-Jan-2012
455,Revenue,CCHD,Electronic Home Care Monitoring,Other Supplies & Services,Care Monitoring 2000 Limited,1340, 30-Jan-2012
456,Revenue,CCHD,Alexandra Way,Membership Fees,Care Quality Commission,5600, 31-Jan-2012
457,Revenue,CCHD,Charlton,Membership Fees,Care Quality Commission,4300, 31-Jan-2012
458,Revenue,CCHD,Newton House,Membership Fees,Care Quality Commission,4300, 31-Jan-2012
459,Revenue,CCHD,Woodleaze,Membership Fees,Care Quality Commission,4300, 31-Jan-2012
460,Revenue,CCHD,Home Care - General,Membership Fees,Care Quality Commission,2000, 31-Jan-2012
461,Revenue,CCHD,Home Care Purch South,Other Small Contracts,Carewatch (Bristol),235.5, 24-Jan-2012
462,Revenue,CCHD,Home Care Purch North,Other Small Contracts,Carewatch (Bristol),405.72, 24-Jan-2012
463,Revenue,CCHD,Elderly MH Home Care,Other Small Contracts,Carewatch (Bristol),314.64, 24-Jan-2012
464,Revenue,CCHD,Elderly MH non-res purchasing,Private & Voluntary Day Care,Carewatch (Bristol),78.66, 24-Jan-2012
465,Revenue,CCHD,Home Care Purch South,Other Small Contracts,Cash Friday at Lloyds TSB,181.92, 31-Jan-2012
466,Revenue,CCHD,Home Care Purch North,Other Small Contracts,Cash Friday at Lloyds TSB,1735.82, 31-Jan-2012
467,Revenue,CCHD,Day Care - South,Private & Voluntary Day Care,Cash Friday at Lloyds TSB,37.9, 31-Jan-2012
468,Revenue,CCHD,Day Care - North,Private & Voluntary Day Care,Cash Friday at Lloyds TSB,90.96, 31-Jan-2012
469,Revenue,CCHD,Home Care Purch South,Other Small Contracts,Cash Friday at Lloyds TSB,185.71, 31-Jan-2012
470,Revenue,CCHD,Home Care Purch North,Other Small Contracts,Cash Friday at Lloyds TSB,1701.71, 31-Jan-2012
471,Revenue,CCHD,Day Care - South,Private & Voluntary Day Care,Cash Friday at Lloyds TSB,30.32, 31-Jan-2012
472,Revenue,CCHD,Day Care - North,Private & Voluntary Day Care,Cash Friday at Lloyds TSB,75.8, 31-Jan-2012
473,Revenue,CCHD,Home Care Purch South,Other Small Contracts,Cash Friday at Lloyds TSB,174.34, 31-Jan-2012
474,Revenue,CCHD,Home Care Purch North,Other Small Contracts,Cash Friday at Lloyds TSB,1641.07, 31-Jan-2012
475,Revenue,CCHD,Day Care - South,Private & Voluntary Day Care,Cash Friday at Lloyds TSB,37.9, 31-Jan-2012
476,Revenue,CCHD,Day Care - North,Private & Voluntary Day Care,Cash Friday at Lloyds TSB,56.85, 31-Jan-2012
477,Revenue,CCHD,Home Care Purch South,Other Small Contracts,Cash Friday at Lloyds TSB,181.92, 31-Jan-2012
478,Revenue,CCHD,Home Care Purch North,Other Small Contracts,Cash Friday at Lloyds TSB,1580.43, 31-Jan-2012
479,Revenue,CCHD,Day Care - North,Private & Voluntary Day Care,Cash Friday at Lloyds TSB,53.06, 31-Jan-2012
480,Revenue,CCHD,Home Care Purch South,Other Small Contracts,Cash Friday at Lloyds TSB,181.92, 31-Jan-2012
481,Revenue,CCHD,Home Care Purch North,Other Small Contracts,Cash Friday at Lloyds TSB,1417.46, 31-Jan-2012
482,Revenue,CCHD,Day Care - South,Private & Voluntary Day Care,Cash Friday at Lloyds TSB,30.32, 31-Jan-2012
483,Revenue,CCHD,Day Care - North,Private & Voluntary Day Care,Cash Friday at Lloyds TSB,68.22, 31-Jan-2012
484,Revenue,CCHD,Home Care Purch South,Other Small Contracts,Cash Friday at Lloyds TSB,166.76, 31-Jan-2012
485,Revenue,CCHD,Home Care Purch North,Other Small Contracts,Cash Friday at Lloyds TSB,1216.59, 31-Jan-2012
486,Revenue,CCHD,Day Care - North,Private & Voluntary Day Care,Cash Friday at Lloyds TSB,87.17, 31-Jan-2012
487,Revenue,CCHD,Frenchay Hospital Purchasing,Nursing Homes,Cedar Care Homes Ltd,1051.8, 24-Jan-2012
488,Revenue,CCHD,Frenchay Hospital Purchasing,Residential Homes,Centenary Care Homes Ltd,1229, 24-Jan-2012
489,Revenue,CCHD,Training - Adult Services,Training Expenses,Centre for Crisis Psychology,975.48, 13-Jan-2012
490,Revenue,CCHD,Home Energy Conservation Act Activities,Other Supplies & Services,Centre For Sustainable Energy,1050, 19-Jan-2012
491,Revenue,CCHD,Elderly Purchasing - South,Residential Homes,Cepen Lodge Care Home,2120, 24-Jan-2012
492,Revenue,CCHD,Elderly Purchasing - South,Residential Homes,Cepen Lodge Care Home,2120, 24-Jan-2012
493,Revenue,CCHD,Frenchay Hospital Purchasing,Residential Homes,Chatsworth House,1389, 24-Jan-2012
494,Revenue,CCHD,Southmead Hospital Purchasing,Residential Homes,Chatsworth House,1008.6, 24-Jan-2012
495,Revenue,CCHD,Under 65s PWLD - PS,Residential Homes,Chosen Court,12028.52, 24-Jan-2012
496,Revenue,CCHD,Under 65s PWLD - PS,Residential Homes,Chosen Court,7040.44, 24-Jan-2012
497,Revenue,CCHD,Training - Adult Services,Training Expenses,Chris Garnier,675, 17-Jan-2012
498,Revenue,CCHD,Under 65s PWLD - KD,Residential Homes,Church House,5668, 24-Jan-2012
499,Revenue,CCHD,Under 65s PWLD - KH,Nursing Homes,Churchill House,9504.88, 24-Jan-2012
500,Revenue,CCHD,Under 65s PWLD - PS,Residential Homes,Churchill House,12402.6, 24-Jan-2012
501,Revenue,CCHD,Supported Living - PS,Private & Voluntary Home Care,Cintre Community,531.52, 13-Jan-2012
502,Revenue,CCHD,Elderly Purchasing - North,Residential Homes,Cleeve Lodge,1596.44, 24-Jan-2012
503,Revenue,CCHD,Southmead Hospital Purchasing,Residential Homes,Cleeve Lodge,1406.2, 24-Jan-2012
504,Revenue,CCHD,Elderly Purchasing - North,Residential Homes,Cleeve Lodge,1639.24, 24-Jan-2012
505,Revenue,CCHD,Elderly Purchasing - North,Residential Homes,Cleeve Lodge,1497.16, 24-Jan-2012
506,Revenue,CCHD,Elderly Purchasing - South,Residential Homes,Cleeve Lodge,1272.24, 24-Jan-2012
507,Revenue,CCHD,Elderly Purchasing - North,Residential Homes,Cleeve Lodge,1647.6, 24-Jan-2012
508,Revenue,CCHD,Elderly Purchasing - South,Residential Homes,Cleeve Lodge,1439.52, 24-Jan-2012
509,Revenue,CCHD,Elderly Purchasing - South,Residential Homes,Cleeve Lodge,2200, 24-Jan-2012
510,Revenue,CCHD,Elderly Purchasing - North,Residential Homes,Cleeve Lodge,1752.2, 24-Jan-2012
511,Revenue,CCHD,Southmead Hospital Purchasing,Residential Homes,Cleeve Lodge,1419.76, 24-Jan-2012
512,Revenue,CCHD,Southmead Hospital Purchasing,Residential Homes,Clifftop Care Home,1175.72, 24-Jan-2012
513,Revenue,CCHD,Frenchay Hospital Purchasing,Residential Homes,Collingwood Residential Home,1035.92, 24-Jan-2012
514,Revenue,CCHD,Elderly Purchasing - South,Residential Homes,Collingwood Residential Home,1253.4, 24-Jan-2012
515,Revenue,CCHD,Elderly Purchasing - South,Residential Homes,Collingwood Residential Home,859.12, 24-Jan-2012
516,Revenue,CCHD,Elderly Purchasing - South,Residential Homes,Collingwood Residential Home,1338.52, 24-Jan-2012
517,Revenue,CCHD,Elderly Purchasing - South,Residential Homes,Collingwood Residential Home,1066.44, 24-Jan-2012
518,Revenue,CCHD,Elderly Purchasing - South,Residential Homes,Collingwood Residential Home,1297.84, 24-Jan-2012
519,Revenue,CCHD,Frenchay Hospital Purchasing,Residential Homes,Collingwood Residential Home,1214.6, 24-Jan-2012
520,Revenue,CCHD,Elderly Mental Health,Residential Homes,Collingwood Residential Home,1286.88, 24-Jan-2012
521,Revenue,CCHD,Elderly Purchasing - South,Residential Homes,Collingwood Residential Home,1231, 24-Jan-2012
522,Revenue,CCHD,Elderly Purchasing - South,Residential Homes,Collingwood Residential Home,1361, 24-Jan-2012
523,Revenue,CCHD,Elderly Purchasing - South,Residential Homes,Collingwood Residential Home,1176.32, 24-Jan-2012
524,Revenue,CCHD,Elderly Purchasing - South,Residential Homes,Collingwood Residential Home,1363.88, 24-Jan-2012
525,Revenue,CCHD,S28A - Under 65,Residential Homes,Compass Care,9441.64, 24-Jan-2012
526,Revenue,CCHD,Training - Adult Services,Training Expenses,ComputerWorld Training Limited,2912, 09-Jan-2012
527,Revenue,CCHD,Bed and Breakfast,Bed & Breakfast,Connolly & Callaghan Limited,861, 03-Jan-2012
528,Revenue,CCHD,Bed and Breakfast,Bed & Breakfast,Connolly & Callaghan Limited,441, 03-Jan-2012
529,Revenue,CCHD,Bed and Breakfast,Bed & Breakfast,Connolly & Callaghan Limited,476, 03-Jan-2012
530,Revenue,CCHD,Bed and Breakfast,Bed & Breakfast,Connolly & Callaghan Limited,546, 03-Jan-2012
531,Revenue,CCHD,Bed and Breakfast,Bed & Breakfast,Connolly & Callaghan Limited,861, 09-Jan-2012
532,Revenue,CCHD,Bed and Breakfast,Bed & Breakfast,Connolly & Callaghan Limited,441, 09-Jan-2012
533,Revenue,CCHD,Bed and Breakfast,Bed & Breakfast,Connolly & Callaghan Limited,476, 09-Jan-2012
534,Revenue,CCHD,Bed and Breakfast,Bed & Breakfast,Connolly & Callaghan Limited,546, 09-Jan-2012
535,Revenue,CCHD,Under 65s PWLD - KD,Residential Homes,Consensus Support Services Ltd,8938, 11-Jan-2012
536,Revenue,CCHD,Woodleaze,Furniture & Fittings Loose,Countrywide Healthcare Supplies Ltd,589, 17-Jan-2012
537,Revenue,CCHD,S28A - Under 65,Residential Homes,Cream Ii Ltd,7725.68, 24-Jan-2012
538,Revenue,CCHD,S28A - Under 65,Residential Homes,Creedy Court,8934.84, 24-Jan-2012
539,Revenue,CCHD,S28A - Over 65,Residential Homes,Creedy Court,7434.12, 24-Jan-2012
540,Revenue,CCHD,Brokerage and Information Service,Grants to Voluntary Bodies,D H I,9738.71, 27-Jan-2012
541,Revenue,CCHD,Purchase of Non-Res Care - KH,Private & Voluntary Day Care,Daneswood,5434, 13-Jan-2012
542,Revenue,CCHD,Under 65s PWLD - PS,Residential Homes,Daneswood,10588.2, 24-Jan-2012
543,Revenue,CCHD,Under 65s PWLD - KD,Residential Homes,Daneswood,8756, 24-Jan-2012
544,Revenue,CCHD,Learning Difficulties PSL,Rent,Individual,1800, 20-Jan-2012
545,Revenue,CCHD,Day Care - North,Private & Voluntary Day Care,Deafblind UK,1151.15, 12-Jan-2012
546,Revenue,CCHD,Day Care - South,Private & Voluntary Day Care,Deafblind UK,1266.27, 23-Jan-2012
547,Revenue,CCHD,Day Care - South,Private & Voluntary Day Care,Deafblind UK,1995, 23-Jan-2012
548,Revenue,CCHD,Day Care - South,Private & Voluntary Day Care,Dhek Bhal,529.08, 13-Jan-2012
549,Revenue,CCHD,Day Care - South,Private & Voluntary Day Care,Dhek Bhal,877.38, 23-Jan-2012
550,Revenue,CCHD,Day Care - South,Private & Voluntary Day Care,Dhek Bhal,1002.72, 23-Jan-2012
551,Revenue,CCHD,Supported Living - PS,Private & Voluntary Home Care,Dimensions (UK) Ltd,7748.4, 17-Jan-2012
552,Revenue,CCHD,Under 65s PWLD - KH,Residential Homes,Dimensions(Uk) Ltd,4696, 24-Jan-2012
553,Revenue,CCHD,Under 65s PWLD - PS,Residential Homes,Dimensions(Uk) Ltd,1708.92, 24-Jan-2012
554,Revenue,CCHD,Home Care Purch South,Other Small Contracts,DoCare Ltd,1915.88, 12-Jan-2012
555,Revenue,CCHD,Home Care Purch North,Other Small Contracts,DoCare Ltd,2388.04, 12-Jan-2012
556,Revenue,CCHD,Day Care - South,Private & Voluntary Day Care,DoCare Ltd,172.52, 12-Jan-2012
557,Revenue,CCHD,Day Care - North,Private & Voluntary Day Care,DoCare Ltd,290.57, 12-Jan-2012
558,Revenue,CCHD,Elderly MH Home Care,Other Small Contracts,DoCare Ltd,186.14, 12-Jan-2012
559,Revenue,CCHD,Elderly MH non-res purchasing,Private & Voluntary Day Care,DoCare Ltd,54.48, 12-Jan-2012
560,Revenue,CCHD,Home Care Purch South,Other Small Contracts,DoCare Ltd,1865.94, 12-Jan-2012
561,Revenue,CCHD,Home Care Purch North,Other Small Contracts,DoCare Ltd,2138.34, 12-Jan-2012
562,Revenue,CCHD,Day Care - South,Private & Voluntary Day Care,DoCare Ltd,118.04, 12-Jan-2012
563,Revenue,CCHD,Day Care - North,Private & Voluntary Day Care,DoCare Ltd,213.38, 12-Jan-2012
564,Revenue,CCHD,Elderly MH Home Care,Other Small Contracts,DoCare Ltd,145.28, 12-Jan-2012
565,Revenue,CCHD,Elderly MH non-res purchasing,Private & Voluntary Day Care,DoCare Ltd,40.86, 12-Jan-2012
566,Revenue,CCHD,Home Care Purch South,Other Small Contracts,DoCare Ltd,2147.42, 12-Jan-2012
567,Revenue,CCHD,Home Care Purch North,Other Small Contracts,DoCare Ltd,2805.72, 12-Jan-2012
568,Revenue,CCHD,Day Care - South,Private & Voluntary Day Care,DoCare Ltd,199.76, 12-Jan-2012
569,Revenue,CCHD,Day Care - North,Private & Voluntary Day Care,DoCare Ltd,363.2, 12-Jan-2012
570,Revenue,CCHD,Elderly MH Home Care,Other Small Contracts,DoCare Ltd,167.98, 12-Jan-2012
571,Revenue,CCHD,Elderly MH non-res purchasing,Private & Voluntary Day Care,DoCare Ltd,54.48, 12-Jan-2012
572,Revenue,CCHD,Home Care Purch South,Other Small Contracts,DoCare Ltd,2142.88, 12-Jan-2012
573,Revenue,CCHD,Home Care Purch North,Other Small Contracts,DoCare Ltd,2542.4, 12-Jan-2012
574,Revenue,CCHD,Day Care - South,Private & Voluntary Day Care,DoCare Ltd,245.16, 12-Jan-2012
575,Revenue,CCHD,Day Care - North,Private & Voluntary Day Care,DoCare Ltd,385.9, 12-Jan-2012
576,Revenue,CCHD,Elderly MH Home Care,Other Small Contracts,DoCare Ltd,190.68, 12-Jan-2012
577,Revenue,CCHD,Elderly MH non-res purchasing,Private & Voluntary Day Care,DoCare Ltd,54.48, 12-Jan-2012
578,Revenue,CCHD,Home Care Purch South,Other Small Contracts,DoCare Ltd,2056.62, 12-Jan-2012
579,Revenue,CCHD,Home Care Purch North,Other Small Contracts,DoCare Ltd,2692.22, 12-Jan-2012
580,Revenue,CCHD,Day Care - South,Private & Voluntary Day Care,DoCare Ltd,158.9, 12-Jan-2012
581,Revenue,CCHD,Day Care - North,Private & Voluntary Day Care,DoCare Ltd,381.36, 12-Jan-2012
582,Revenue,CCHD,Elderly MH Home Care,Other Small Contracts,DoCare Ltd,90.8, 12-Jan-2012
583,Revenue,CCHD,Elderly MH non-res purchasing,Private & Voluntary Day Care,DoCare Ltd,54.48, 12-Jan-2012
584,Revenue,CCHD,Home Care Purch South,Other Small Contracts,DoCare Ltd,2033.92, 12-Jan-2012
585,Revenue,CCHD,Home Care Purch North,Other Small Contracts,DoCare Ltd,2497, 12-Jan-2012
586,Revenue,CCHD,Day Care - South,Private & Voluntary Day Care,DoCare Ltd,208.84, 12-Jan-2012
587,Revenue,CCHD,Day Care - North,Private & Voluntary Day Care,DoCare Ltd,390.44, 12-Jan-2012
588,Revenue,CCHD,Elderly MH Home Care,Other Small Contracts,DoCare Ltd,181.6, 12-Jan-2012
589,Revenue,CCHD,Elderly MH non-res purchasing,Private & Voluntary Day Care,DoCare Ltd,108.96, 12-Jan-2012
590,Revenue,CCHD,Frenchay Hospital Purchasing,Nursing Homes,Donness Nursing Home,4762.26, 24-Jan-2012
591,Revenue,CCHD,Elderly Purchasing - North,Residential Homes,Drakes Court,1809.02, 24-Jan-2012
592,Revenue,CCHD,S28A - Over 65,Residential Homes,Drakes Court,1976.45, 24-Jan-2012
593,Revenue,CCHD,S28A - Over 65,Residential Homes,Drakes Court,1944.49, 24-Jan-2012
594,Revenue,CCHD,Elderly Purchasing - South,Nursing Homes,Dunkirk Memorial House,1163.84, 24-Jan-2012
595,Revenue,CCHD,MH Purchasing - Younger,Residential Homes,Dunraven House,1791.6, 24-Jan-2012
596,Revenue,CCHD,Bed and Breakfast,Bed & Breakfast,E J Bartlett,546, 09-Jan-2012
597,Revenue,CCHD,Bed and Breakfast,Bed & Breakfast,E J Bartlett,819, 09-Jan-2012
598,Revenue,CCHD,Bed and Breakfast,Bed & Breakfast,E J Bartlett,546, 09-Jan-2012
599,Revenue,CCHD,Bed and Breakfast,Bed & Breakfast,E J Bartlett,546, 09-Jan-2012
600,Revenue,CCHD,Bed and Breakfast,Bed & Breakfast,E J Bartlett,546, 09-Jan-2012
601,Revenue,CCHD,Bed and Breakfast,Bed & Breakfast,E J Bartlett,819, 09-Jan-2012
602,Revenue,CCHD,Bed and Breakfast,Bed & Breakfast,E J Bartlett,546, 09-Jan-2012
603,Revenue,CCHD,Bed and Breakfast,Bed & Breakfast,E J Bartlett,546, 09-Jan-2012
604,Revenue,CCHD,Bed and Breakfast,Bed & Breakfast,E J Bartlett,546, 13-Jan-2012
605,Revenue,CCHD,Bed and Breakfast,Bed & Breakfast,E J Bartlett,819, 13-Jan-2012
606,Revenue,CCHD,Bed and Breakfast,Bed & Breakfast,E J Bartlett,546, 13-Jan-2012
607,Revenue,CCHD,Bed and Breakfast,Bed & Breakfast,E J Bartlett,546, 13-Jan-2012
608,Revenue,CCHD,Bed and Breakfast,Bed & Breakfast,E J Bartlett,630, 25-Jan-2012
609,Revenue,CCHD,Bed and Breakfast,Bed & Breakfast,E J Bartlett,945, 25-Jan-2012
610,Revenue,CCHD,Bed and Breakfast,Bed & Breakfast,E J Bartlett,420, 25-Jan-2012
611,Revenue,CCHD,Bed and Breakfast,Bed & Breakfast,E J Bartlett,420, 25-Jan-2012
612,Revenue,CCHD,Bed and Breakfast,Bed & Breakfast,E J Bartlett,630, 26-Jan-2012
613,Revenue,CCHD,Under 65s PWLD - KH,Residential Homes,East Court,4272.72, 24-Jan-2012
614,Revenue,CCHD,Minor Adaptations Service,Operational Equipment,Eastman & Co (Timber) Limited,528, 12-Jan-2012
615,Revenue,CCHD,Charlton,Electricity,EDF Energy 1 Limited,1351.39, 13-Jan-2012
616,Revenue,CCHD,Woodleaze,Electricity,EDF Energy 1 Limited,1276.99, 13-Jan-2012
617,Revenue,CCHD,Newton House,Electricity,EDF Energy 1 Limited,1096.17, 13-Jan-2012
618,Revenue,CCHD,Alexandra Way,Electricity,EDF Energy 1 Limited,1426.1, 13-Jan-2012
619,Revenue,CCHD,Section 117 Placements,Residential Homes,Edgecumbe Lodge,1879.56, 24-Jan-2012
620,Revenue,CCHD,Frenchay Hospital Purchasing,Residential Homes,Edgecumbe Lodge,1170, 24-Jan-2012
621,Revenue,CCHD,Elderly Purchasing - South,Residential Homes,Edgecumbe Lodge,1216.68, 24-Jan-2012
622,Revenue,CCHD,Frenchay Hospital Purchasing,Residential Homes,Edgecumbe Lodge,1100.32, 24-Jan-2012
623,Revenue,CCHD,Elderly Purchasing - North,Residential Homes,Edgecumbe Lodge,1020.75, 24-Jan-2012
624,Revenue,CCHD,Frenchay Hospital Purchasing,Residential Homes,Edgecumbe Lodge,1062.8, 24-Jan-2012
625,Revenue,CCHD,Elderly Mental Health,Residential Homes,Edgecumbe Lodge,1146.36, 24-Jan-2012
626,Revenue,CCHD,Elderly Mental Health,Residential Homes,Edgecumbe Lodge,1350.6, 24-Jan-2012
627,Revenue,CCHD,Elderly PWLD - PS,Residential Homes,Edgemont House Ltd,1299.16, 24-Jan-2012
628,Revenue,CCHD,Elderly Purchasing - South,Residential Homes,Edgemont House Ltd,1122.4, 24-Jan-2012
629,Revenue,CCHD,Elderly Purchasing - South,Residential Homes,Edgemont House Ltd,967.64, 24-Jan-2012
630,Revenue,CCHD,South Glos Users in South Glos Homes,Nursing Homes,Edgemont View Nursing Home,4394.59, 24-Jan-2012
631,Revenue,CCHD,Elderly Purchasing - South,Nursing Homes,Edgemont View Nursing Home,1405, 24-Jan-2012
632,Revenue,CCHD,Frenchay Hospital Purchasing,Nursing Homes,Edgemont View Nursing Home,1335.8, 24-Jan-2012
633,Revenue,CCHD,Elderly Purchasing - North,Nursing Homes,Edgemont View Nursing Home,1440.84, 24-Jan-2012
634,Revenue,CCHD,Elderly Purchasing - South,Nursing Homes,Edgemont View Nursing Home,1247.8, 24-Jan-2012
635,Revenue,CCHD,Elderly Purchasing - South,Nursing Homes,Edgemont View Nursing Home,1586.2, 24-Jan-2012
636,Revenue,CCHD,Frenchay Hospital Purchasing,Nursing Homes,Edgemont View Nursing Home,636.04, 24-Jan-2012
637,Revenue,CCHD,Frenchay Hospital Purchasing,Nursing Homes,Edgemont View Nursing Home,1253.16, 24-Jan-2012
638,Revenue,CCHD,Under 65s PWLD - KH,Residential Homes,Education & Services for People with Autism,10615.08, 10-Jan-2012
639,Revenue,CCHD,Supporting People Programme,Grants to Voluntary Bodies,Elim Housing Association Ltd,4434.56, 10-Jan-2012
640,Revenue,CCHD,Elderly Purchasing - South,Residential Homes,Elmbridge Residential Home Ltd,1294.4, 24-Jan-2012
641,Revenue,CCHD,Younger MH non-res purchasing,Private & Voluntary Day Care,Enham,638.72, 16-Jan-2012
642,Revenue,CCHD,Elderly Mental Health,Residential Homes,Exmouth House,1305.6, 24-Jan-2012
643,Revenue,CCHD,Southmead Hospital Purchasing,Residential Homes,Fairview Court,1661.48, 24-Jan-2012
644,Revenue,CCHD,Elderly Mental Health,Residential Homes,Fairview Court,1389, 24-Jan-2012
645,Revenue,CCHD,Frenchay Hospital Purchasing,Residential Homes,Fairview Court,1507.64, 24-Jan-2012
646,Revenue,CCHD,Elderly Purchasing - South,Residential Homes,Fairview Court,2580, 24-Jan-2012
647,Revenue,CCHD,Elderly Purchasing - South,Residential Homes,Fairview Court,2093, 24-Jan-2012
648,Revenue,CCHD,Southmead Hospital Purchasing,Nursing Homes,Fairview Court Care Home,1629.36, 10-Jan-2012
649,Revenue,CCHD,South Glos Users in South Glos Homes,Nursing Homes,Fairview Court Care Home,2406.93, 10-Jan-2012
650,Revenue,CCHD,Purchasing Phys Dis - North,Nursing Homes,Fairview Court Care Home,1949.28, 10-Jan-2012
651,Revenue,CCHD,Elderly Mental Health,Nursing Homes,Fairview Court Care Home,5750.76, 10-Jan-2012
652,Revenue,CCHD,Section 117 Placements,Nursing Homes,Fairview Court Care Home,2507.9, 10-Jan-2012
653,Revenue,CCHD,Elderly Purchasing - South,Residential Homes,Fairview House,637.28, 24-Jan-2012
654,Revenue,CCHD,Frenchay Hospital Purchasing,Residential Homes,Fairview House,1234.4, 24-Jan-2012
655,Revenue,CCHD,Frenchay Hospital Purchasing,Residential Homes,Fairview House,1105, 24-Jan-2012
656,Revenue,CCHD,Frenchay Hospital Purchasing,Residential Homes,Fairview House,1005.24, 24-Jan-2012
657,Revenue,CCHD,Section 117 Placements,Residential Homes,Fairview House,1840, 24-Jan-2012
658,Revenue,CCHD,Southmead Hospital Purchasing,Residential Homes,Fairview House,1229, 24-Jan-2012
659,Revenue,CCHD,Southmead Hospital Purchasing,Residential Homes,Fairview House,1101.04, 24-Jan-2012
660,Revenue,CCHD,Elderly Mental Health,Residential Homes,Fairview House,1084.72, 24-Jan-2012
661,Revenue,CCHD,Frenchay Hospital Purchasing,Residential Homes,Fairview House,1229, 24-Jan-2012
662,Revenue,CCHD,Southmead Hospital Purchasing,Residential Homes,Fairview House,588.92, 24-Jan-2012
663,Revenue,CCHD,Elderly Mental Health,Residential Homes,Fairview House,1049.28, 24-Jan-2012
664,Revenue,CCHD,Elderly Mental Health,Residential Homes,Fairview House,1163.88, 24-Jan-2012
665,Revenue,CCHD,Frenchay Hospital Purchasing,Residential Homes,Fairview House,1269.32, 24-Jan-2012
666,Revenue,CCHD,Elderly Mental Health,Residential Homes,Fairview House,1061.72, 24-Jan-2012
667,Revenue,CCHD,Elderly Purchasing - North,Residential Homes,Faith House,892.2, 24-Jan-2012
668,Revenue,CCHD,Frenchay Hospital Purchasing,Residential Homes,Faith House,1284.48, 24-Jan-2012
669,Revenue,CCHD,Elderly Purchasing - North,Residential Homes,Faith House,1110.8, 24-Jan-2012
670,Revenue,CCHD,Under 65s PWLD - KD,Residential Homes,Fernbank,8350.56, 24-Jan-2012
671,Revenue,CCHD,Southmead Hospital Purchasing,Residential Homes,Four Seasons Health Care,1136.2, 24-Jan-2012
672,Revenue,CCHD,Frenchay Hospital Purchasing,Residential Homes,Four Seasons Health Care,907.04, 24-Jan-2012
673,Revenue,CCHD,Elderly Mental Health,Nursing Homes,Four Seasons Health Care,1349, 24-Jan-2012
674,Revenue,CCHD,Frenchay Hospital Purchasing,Nursing Homes,Four Seasons Health Care,1349, 24-Jan-2012
675,Revenue,CCHD,Frenchay Hospital Purchasing,Nursing Homes,Four Seasons Health Care,1808, 24-Jan-2012
676,Revenue,CCHD,Southmead Hospital Purchasing,Nursing Homes,Four Seasons Health Care,1349, 24-Jan-2012
677,Revenue,CCHD,Southmead Hospital Purchasing,Nursing Homes,Four Seasons Health Care,1349, 24-Jan-2012
678,Revenue,CCHD,Elderly Purchasing - South,Nursing Homes,Four Seasons Health Care,835.52, 24-Jan-2012
679,Revenue,CCHD,Southmead Hospital Purchasing,Nursing Homes,Four Seasons Health Care,1349, 24-Jan-2012
680,Revenue,CCHD,Elderly Purchasing - South,Nursing Homes,Four Seasons Health Care,1345.8, 24-Jan-2012
681,Revenue,CCHD,Cash for Change Discharges,Nursing Homes,Four Seasons Health Care,1349, 24-Jan-2012
682,Revenue,CCHD,Elderly Purchasing - South,Nursing Homes,Four Seasons Health Care,1205, 24-Jan-2012
683,Revenue,CCHD,Southmead Hospital Purchasing,Nursing Homes,Four Seasons Health Care,1349, 24-Jan-2012
684,Revenue,CCHD,Elderly Purchasing - South,Nursing Homes,Four Seasons Health Care,1245.4, 24-Jan-2012
685,Revenue,CCHD,Southmead Hospital Purchasing,Residential Homes,Four Seasons Health Care,580.48, 24-Jan-2012
686,Revenue,CCHD,Elderly Purchasing - South,Nursing Homes,Four Seasons Health Care,1046.64, 24-Jan-2012
687,Revenue,CCHD,Southmead Hospital Purchasing,Residential Homes,Four Seasons Health Care,1541.72, 24-Jan-2012
688,Revenue,CCHD,Southmead Hospital Purchasing,Nursing Homes,Four Seasons Health Care,1253.28, 24-Jan-2012
689,Revenue,CCHD,Elderly Purchasing - South,Nursing Homes,Four Seasons Health Care,1349, 24-Jan-2012
690,Revenue,CCHD,Elderly Purchasing - South,Nursing Homes,Four Seasons Health Care,1290.4, 24-Jan-2012
691,Revenue,CCHD,Elderly Mental Health,Nursing Homes,Four Seasons Health Care,1342.84, 24-Jan-2012
692,Revenue,CCHD,Elderly Purchasing - South,Residential Homes,Four Seasons Health Care,948.64, 24-Jan-2012
693,Revenue,CCHD,Elderly Purchasing - North,Nursing Homes,Four Seasons Health Care,1313, 24-Jan-2012
694,Revenue,CCHD,Frenchay Hospital Purchasing,Nursing Homes,Four Seasons Health Care,1052.2, 24-Jan-2012
695,Revenue,CCHD,Elderly Mental Health,Residential Homes,Four Seasons Health Care,1056.64, 24-Jan-2012
696,Revenue,CCHD,Frenchay Hospital Purchasing,Residential Homes,Four Seasons Health Care,1063.88, 24-Jan-2012
697,Revenue,CCHD,Elderly Purchasing - South,Nursing Homes,Four Seasons Health Care,1349, 24-Jan-2012
698,Revenue,CCHD,Elderly Purchasing - South,Nursing Homes,Four Seasons Health Care,1341.32, 24-Jan-2012
699,Revenue,CCHD,Frenchay Hospital Purchasing,Nursing Homes,Four Seasons Health Care,1297, 24-Jan-2012
700,Revenue,CCHD,Elderly Mental Health,Nursing Homes,Four Seasons Health Care,1199.32, 24-Jan-2012
701,Revenue,CCHD,Elderly Purchasing - North,Nursing Homes,Four Seasons Health Care,1000, 24-Jan-2012
702,Revenue,CCHD,Frenchay Hospital Purchasing,Nursing Homes,Four Seasons Health Care,1517, 24-Jan-2012
703,Revenue,CCHD,Frenchay Hospital Purchasing,Nursing Homes,Four Seasons Health Care,1283.16, 24-Jan-2012
704,Revenue,CCHD,Southmead Hospital Purchasing,Nursing Homes,Four Seasons Health Care,1507.68, 24-Jan-2012
705,Revenue,CCHD,Southmead Hospital Purchasing,Residential Homes,Four Seasons Health Care,1232, 24-Jan-2012
706,Revenue,CCHD,Elderly Purchasing - North,Residential Homes,Four Seasons Health Care,1022.72, 24-Jan-2012
707,Revenue,CCHD,Elderly Purchasing - South,Nursing Homes,Four Seasons Health Care,1206.96, 24-Jan-2012
708,Revenue,CCHD,Elderly Mental Health,Nursing Homes,Four Seasons Health Care,1313, 24-Jan-2012
709,Revenue,CCHD,Frenchay Hospital Purchasing,Nursing Homes,Four Seasons Health Care,1268.08, 24-Jan-2012
710,Revenue,CCHD,Elderly Purchasing - South,Nursing Homes,Four Seasons Health Care,1349, 24-Jan-2012
711,Revenue,CCHD,Elderly Purchasing - South,Nursing Homes,Four Seasons Health Care,1459.32, 24-Jan-2012
712,Revenue,CCHD,Southmead Hospital Purchasing,Nursing Homes,Four Seasons Health Care,1349, 24-Jan-2012
713,Revenue,CCHD,Elderly Purchasing - South,Nursing Homes,Four Seasons Health Care,1349, 24-Jan-2012
714,Revenue,CCHD,Elderly Mental Health,Nursing Homes,Four Seasons Health Care,1431.72, 24-Jan-2012
715,Revenue,CCHD,Elderly Purchasing - North,Nursing Homes,Four Seasons Health Care,1248.52, 24-Jan-2012
716,Revenue,CCHD,Elderly Purchasing - North,Nursing Homes,Four Seasons Health Care,1103.48, 24-Jan-2012
717,Revenue,CCHD,Southmead Hospital Purchasing,Nursing Homes,Four Seasons Health Care,1336.4, 24-Jan-2012
718,Revenue,CCHD,Frenchay Hospital Purchasing,Nursing Homes,Four Seasons Health Care,1284.56, 24-Jan-2012
719,Revenue,CCHD,Elderly Purchasing - North,Nursing Homes,Four Seasons Health Care,719.68, 24-Jan-2012
720,Revenue,CCHD,Elderly Mental Health,Nursing Homes,Four Seasons Health Care,1416, 24-Jan-2012
721,Revenue,CCHD,Frenchay Hospital Purchasing,Nursing Homes,Four Seasons Health Care,1323.8, 24-Jan-2012
722,Revenue,CCHD,Southmead Hospital Purchasing,Nursing Homes,Four Seasons Health Care,1397.36, 24-Jan-2012
723,Revenue,CCHD,Southmead Hospital Purchasing,Nursing Homes,Four Seasons Health Care,579.14, 24-Jan-2012
724,Revenue,CCHD,Elderly Purchasing - North,Nursing Homes,Four Seasons Health Care,1517, 24-Jan-2012
725,Revenue,CCHD,Elderly Purchasing - North,Nursing Homes,Four Seasons Health Care,1349, 24-Jan-2012
726,Revenue,CCHD,Elderly Purchasing - South,Residential Homes,Four Seasons Health Care,1229, 24-Jan-2012
727,Revenue,CCHD,Elderly Purchasing - North,Nursing Homes,Four Seasons Health Care,1412.48, 24-Jan-2012
728,Revenue,CCHD,Southmead Hospital Purchasing,Residential Homes,Four Seasons Health Care,729.36, 24-Jan-2012
729,Revenue,CCHD,Elderly Mental Health,Nursing Homes,Four Seasons Health Care,1402.52, 24-Jan-2012
730,Revenue,CCHD,Southmead Hospital Purchasing,Nursing Homes,Four Seasons Health Care,1422.32, 24-Jan-2012
731,Revenue,CCHD,Frenchay Hospital Purchasing,Nursing Homes,Four Seasons Health Care,1199.6, 24-Jan-2012
732,Revenue,CCHD,Southmead Hospital Purchasing,Nursing Homes,Four Seasons Health Care,1517, 24-Jan-2012
733,Revenue,CCHD,Elderly Purchasing - North,Nursing Homes,Four Seasons Health Care,820.24, 24-Jan-2012
734,Revenue,CCHD,Frenchay Hospital Purchasing,Nursing Homes,Four Seasons Health Care,1161.72, 24-Jan-2012
735,Revenue,CCHD,Elderly Mental Health,Residential Homes,Four Seasons Health Care,1202.24, 24-Jan-2012
736,Revenue,CCHD,Southmead Hospital Purchasing,Nursing Homes,Four Seasons Health Care,1349, 24-Jan-2012
737,Revenue,CCHD,Southmead Hospital Purchasing,Residential Homes,Four Seasons Health Care,1229, 24-Jan-2012
738,Revenue,CCHD,Southmead Hospital Purchasing,Nursing Homes,Four Seasons Health Care,1349, 24-Jan-2012
739,Revenue,CCHD,Elderly Mental Health,Residential Homes,Four Seasons Health Care,1344.16, 24-Jan-2012
740,Revenue,CCHD,Elderly Purchasing - North,Nursing Homes,Four Seasons Health Care,1341.32, 24-Jan-2012
741,Revenue,CCHD,Elderly Mental Health,Nursing Homes,Four Seasons Health Care,1034.84, 24-Jan-2012
742,Revenue,CCHD,Frenchay Hospital Purchasing,Nursing Homes,Four Seasons Health Care,1349, 24-Jan-2012
743,Revenue,CCHD,Elderly Mental Health,Residential Homes,Four Seasons Health Care,1139.16, 24-Jan-2012
744,Revenue,CCHD,South Glos Users in South Glos Homes,Nursing Homes,Four Seasons Health Care,3338.64, 24-Jan-2012
745,Revenue,CCHD,South Glos Users in South Glos Homes,Nursing Homes,Four Seasons Health Care,636.67, 24-Jan-2012
746,Revenue,CCHD,Frenchay Hospital Purchasing,Nursing Homes,Four Seasons Health Care,1349, 24-Jan-2012
747,Revenue,CCHD,Elderly Purchasing - South,Nursing Homes,Four Seasons Health Care,1251.72, 24-Jan-2012
748,Revenue,CCHD,Elderly Mental Health,Nursing Homes,Four Seasons Health Care,1224.72, 24-Jan-2012
749,Revenue,CCHD,Frenchay Hospital Purchasing,Nursing Homes,Four Seasons Health Care,1277, 24-Jan-2012
750,Revenue,CCHD,Frenchay Hospital Purchasing,Nursing Homes,Four Seasons Health Care,803.08, 24-Jan-2012
751,Revenue,CCHD,Elderly Purchasing - North,Nursing Homes,Four Seasons Health Care,1349, 24-Jan-2012
752,Revenue,CCHD,Frenchay Hospital Purchasing,Nursing Homes,Four Seasons Health Care,1349, 24-Jan-2012
753,Revenue,CCHD,Elderly Purchasing - North,Nursing Homes,Four Seasons Health Care,1385, 24-Jan-2012
754,Revenue,CCHD,Frenchay Hospital Purchasing,Nursing Homes,Four Seasons Health Care,1349, 24-Jan-2012
755,Revenue,CCHD,Frenchay Hospital Purchasing,Nursing Homes,Four Seasons Health Care,1349, 24-Jan-2012
756,Revenue,CCHD,Frenchay Hospital Purchasing,Nursing Homes,Four Seasons Health Care,1365, 24-Jan-2012
757,Revenue,CCHD,Elderly Purchasing - South,Nursing Homes,Four Seasons Health Care,1057.92, 24-Jan-2012
758,Revenue,CCHD,Southmead Hospital Purchasing,Nursing Homes,Four Seasons Health Care,1205, 24-Jan-2012
759,Revenue,CCHD,Elderly Purchasing - North,Nursing Homes,Four Seasons Health Care,857.96, 24-Jan-2012
760,Revenue,CCHD,Southmead Hospital Purchasing,Residential Homes,Four Seasons Health Care,1103.44, 24-Jan-2012
761,Revenue,CCHD,Southmead Hospital Purchasing,Nursing Homes,Four Seasons Health Care,1349, 24-Jan-2012
762,Revenue,CCHD,Southmead Hospital Purchasing,Nursing Homes,Four Seasons Health Care,1397, 24-Jan-2012
763,Revenue,CCHD,Purchasing Phys Dis - North,Nursing Homes,Four Seasons Health Care,1152.8, 24-Jan-2012
764,Revenue,CCHD,Southmead Hospital Purchasing,Nursing Homes,Four Seasons Health Care,1317.56, 24-Jan-2012
765,Revenue,CCHD,Purchasing Phys Dis - North,Nursing Homes,Four Seasons Health Care,1355.08, 24-Jan-2012
766,Revenue,CCHD,Elderly Purchasing - South,Nursing Homes,Four Seasons Health Care,1225.28, 24-Jan-2012
767,Revenue,CCHD,Southmead Hospital Purchasing,Nursing Homes,Four Seasons Health Care,1275.28, 24-Jan-2012
768,Revenue,CCHD,Elderly Mental Health,Residential Homes,Four Seasons Health Care,1375.96, 24-Jan-2012
769,Revenue,CCHD,Southmead Hospital Purchasing,Nursing Homes,Four Seasons Health Care,2119.85, 24-Jan-2012
770,Revenue,CCHD,Elderly Mental Health,Residential Homes,Four Seasons Health Care,1280.12, 24-Jan-2012
771,Revenue,CCHD,Southmead Hospital Purchasing,Residential Homes,Four Seasons Health Care,1151.56, 24-Jan-2012
772,Revenue,CCHD,Frenchay Hospital Purchasing,Nursing Homes,Four Seasons Health Care,1211.8, 24-Jan-2012
773,Revenue,CCHD,Southmead Hospital Purchasing,Nursing Homes,Four Seasons Health Care,1185.2, 24-Jan-2012
774,Revenue,CCHD,Elderly PWLD - PS,Residential Homes,Four Seasons Health Care,1229, 24-Jan-2012
775,Revenue,CCHD,Frenchay Hospital Purchasing,Nursing Homes,Four Seasons Health Care,1349, 24-Jan-2012
776,Revenue,CCHD,Southmead Hospital Purchasing,Nursing Homes,Four Seasons Health Care,1349, 24-Jan-2012
777,Revenue,CCHD,Elderly Purchasing - South,Nursing Homes,Four Seasons Health Care,1265.52, 24-Jan-2012
778,Revenue,CCHD,Elderly Purchasing - South,Residential Homes,Four Seasons Health Care,614.5, 24-Jan-2012
779,Revenue,CCHD,Elderly Purchasing - South,Nursing Homes,Four Seasons Health Care,1335.64, 24-Jan-2012
780,Revenue,CCHD,Frenchay Hospital Purchasing,Residential Homes,Four Seasons Health Care,3369.84, 24-Jan-2012
781,Revenue,CCHD,Frenchay Hospital Purchasing,Residential Homes,Four Seasons Health Care,751.52, 24-Jan-2012
782,Revenue,CCHD,Southmead Hospital Purchasing,Nursing Homes,Four Seasons Health Care,1125.12, 24-Jan-2012
783,Revenue,CCHD,Elderly Purchasing - South,Residential Homes,Four Seasons Health Care,859.68, 24-Jan-2012
784,Revenue,CCHD,Southmead Hospital Purchasing,Nursing Homes,Four Seasons Health Care,1287.24, 24-Jan-2012
785,Revenue,CCHD,Southmead Hospital Purchasing,Residential Homes,Four Seasons Health Care,1367.48, 24-Jan-2012
786,Revenue,CCHD,Elderly Purchasing - South,Residential Homes,Four Seasons Health Care,1229, 24-Jan-2012
787,Revenue,CCHD,Elderly Purchasing - South,Residential Homes,Four Seasons Health Care,746.18, 24-Jan-2012
788,Revenue,CCHD,Frenchay Hospital Purchasing,Nursing Homes,Four Seasons Health Care,774.32, 24-Jan-2012
789,Revenue,CCHD,Elderly Purchasing - South,Residential Homes,Four Seasons Health Care,1102.04, 24-Jan-2012
790,Revenue,CCHD,Elderly Purchasing - South,Nursing Homes,Four Seasons Health Care,960.32, 24-Jan-2012
791,Revenue,CCHD,Frenchay Hospital Purchasing,Residential Homes,Four Seasons Health Care,1227.8, 24-Jan-2012
792,Revenue,CCHD,Section 117 Placements,Nursing Homes,Four Seasons Health Care,1808, 24-Jan-2012
793,Revenue,CCHD,Frenchay Hospital Purchasing,Residential Homes,Four Seasons Health Care,1092.96, 24-Jan-2012
794,Revenue,CCHD,Frenchay Hospital Purchasing,Nursing Homes,Four Seasons Health Care,1430.54, 24-Jan-2012
795,Revenue,CCHD,Frenchay Hospital Purchasing,Nursing Homes,Four Seasons Health Care,1251.72, 24-Jan-2012
796,Revenue,CCHD,Elderly Purchasing - South,Residential Homes,Four Seasons Health Care,562.76, 24-Jan-2012
797,Revenue,CCHD,Southmead Hospital Purchasing,Nursing Homes,Four Seasons Health Care,1250.76, 24-Jan-2012
798,Revenue,CCHD,Frenchay Hospital Purchasing,Nursing Homes,Four Seasons Health Care,1345.8, 24-Jan-2012
799,Revenue,CCHD,Southmead Hospital Purchasing,Nursing Homes,Four Seasons Health Care,1337.68, 24-Jan-2012
800,Revenue,CCHD,Elderly Mental Health,Residential Homes,Four Seasons Health Care,954.64, 24-Jan-2012
801,Revenue,CCHD,Frenchay Hospital Purchasing,Nursing Homes,Four Seasons Health Care,2715, 24-Jan-2012
802,Revenue,CCHD,Frenchay Hospital Purchasing,Nursing Homes,Four Seasons Health Care,1115.84, 24-Jan-2012
803,Revenue,CCHD,Southmead Hospital Purchasing,Nursing Homes,Four Seasons Health Care,739, 24-Jan-2012
804,Revenue,CCHD,Elderly Purchasing - North,Nursing Homes,Four Seasons Health Care,1285.16, 24-Jan-2012
805,Revenue,CCHD,Elderly Mental Health,Nursing Homes,Four Seasons Health Care,833.4, 24-Jan-2012
806,Revenue,CCHD,Southmead Hospital Purchasing,Nursing Homes,Four Seasons Health Care,1349, 24-Jan-2012
807,Revenue,CCHD,Freeways,Residential Homes,Freeways Trust Limited,43582.29, 13-Jan-2012
808,Revenue,CCHD,Supported Living - PS,Private & Voluntary Home Care,Freeways Trust Limited,1881, 11-Jan-2012
809,Revenue,CCHD,Supported Living - PS,Private & Voluntary Home Care,Freeways Trust Limited,1551, 17-Jan-2012
810,Revenue,CCHD,Under 65s PWLD - KD,Residential Homes,Freeways Trust Ltd,2757, 24-Jan-2012
811,Revenue,CCHD,S28A - Under 65,Residential Homes,Freeways Trust Ltd,2838.8, 24-Jan-2012
812,Revenue,CCHD,Under 65s PWLD - KD,Residential Homes,Freeways Trust Ltd,2206.88, 24-Jan-2012
813,Revenue,CCHD,Under 65s PWLD - KD,Residential Homes,Freeways Trust Ltd,2625, 24-Jan-2012
814,Revenue,CCHD,Under 65s PWLD - KD,Residential Homes,Freeways Trust Ltd,2217.28, 24-Jan-2012
815,Revenue,CCHD,Under 65s PWLD - KD,Residential Homes,Freeways Trust Ltd,2633.48, 24-Jan-2012
816,Revenue,CCHD,Under 65s PWLD - KH,Residential Homes,Freeways Trust Ltd,3216.52, 24-Jan-2012
817,Revenue,CCHD,Elderly PWLD - KD,Residential Homes,Freeways Trust Ltd,2192.48, 24-Jan-2012
818,Revenue,CCHD,Under 65s PWLD - KH,Residential Homes,Freeways Trust Ltd,2335.12, 24-Jan-2012
819,Revenue,CCHD,Under 65s PWLD - KH,Residential Homes,Freeways Trust Ltd,2633.48, 24-Jan-2012
820,Revenue,CCHD,Section 117 Placements MH Younger,Residential Homes,Freeways Trust Ltd,3238, 24-Jan-2012
821,Revenue,CCHD,Frenchay Hospital Purchasing,Nursing Homes,Frenchay Park Nursing Home,1198, 24-Jan-2012
822,Revenue,CCHD,Directorate,Directorate (JNC Staff) Pay,Gatenby Sanderson Limited,12510, 27-Jan-2012
823,Revenue,CCHD,Alexandra Way,Prop.Serv. General Repairs,Geoff Lewis Flooring Limited,480, 13-Jan-2012
824,Revenue,CCHD,Woodleaze,Prop.Serv. General Repairs,Geoff Lewis Flooring Limited,680, 13-Jan-2012
825,Revenue,CCHD,Under 65s PWLD - PS,Residential Homes,Glasallt Fawr,4442.2, 24-Jan-2012
826,Revenue,CCHD,Elderly Purchasing - North,Nursing Homes,Glebe House Nursing Home,1366.64, 24-Jan-2012
827,Revenue,CCHD,Elderly Purchasing - South,Residential Homes,Glebe House Nursing Home,1941, 24-Jan-2012
828,Revenue,CCHD,Elderly Purchasing - South,Nursing Homes,Glebe House Nursing Home,1906.2, 24-Jan-2012
829,Revenue,CCHD,Elderly Purchasing - North,Nursing Homes,Glebe House Nursing Home,1285, 24-Jan-2012
830,Revenue,CCHD,Elderly Purchasing - North,Nursing Homes,Glebe House Nursing Home,1285, 24-Jan-2012
831,Revenue,CCHD,Southmead Hospital Purchasing,Nursing Homes,Glebe House Nursing Home,3487.85, 24-Jan-2012
832,Revenue,CCHD,Southmead Hospital Purchasing,Nursing Homes,Glebe House Nursing Home,1285, 24-Jan-2012
833,Revenue,CCHD,Southmead Hospital Purchasing,Nursing Homes,Glebe House Nursing Home,1644, 24-Jan-2012
834,Revenue,CCHD,Purchasing Phys Dis - South,Nursing Homes,Glenside Centre For Brain Injury,6955.52, 24-Jan-2012
835,Revenue,CCHD,Under 65s PWLD - KH,Residential Homes,Gordena Care Home,2040.52, 24-Jan-2012
836,Revenue,CCHD,Elderly PWLD - KH,Residential Homes,Gordena Care Home,4624.36, 24-Jan-2012
837,Revenue,CCHD,Elderly PWLD - KH,Residential Homes,Gordena Care Home,2866.12, 24-Jan-2012
838,Revenue,CCHD,Under 65s PWLD - KH,Residential Homes,Gordena Care Home,2036.68, 24-Jan-2012
839,Revenue,CCHD,Under 65s PWLD - KH,Residential Homes,Gordena Care Limited,4774.48, 13-Jan-2012
840,Revenue,CCHD,Home Care Purch South,Other Small Contracts,Greenbanks Homecare (Western) Limited,3971.94, 19-Jan-2012
841,Revenue,CCHD,Home Care Purch North,Other Small Contracts,Greenbanks Homecare (Western) Limited,351.26, 19-Jan-2012
842,Revenue,CCHD,Day Care - South,Private & Voluntary Day Care,Greenbanks Homecare (Western) Limited,312.66, 19-Jan-2012
843,Revenue,CCHD,Day Care - North,Private & Voluntary Day Care,Greenbanks Homecare (Western) Limited,135.1, 19-Jan-2012
844,Revenue,CCHD,Carer`s Grant - South,Carers Breaks & Services,Greenbanks Homecare (Western) Limited,108.08, 19-Jan-2012
845,Revenue,CCHD,Elderly MH Home Care,Other Small Contracts,Greenbanks Homecare (Western) Limited,459.34, 19-Jan-2012
846,Revenue,CCHD,Elderly MH non-res purchasing,Private & Voluntary Day Care,Greenbanks Homecare (Western) Limited,23.16, 19-Jan-2012
847,Revenue,CCHD,Home Care Purch South,Other Small Contracts,Greenbanks Homecare (Western) Limited,3898.6, 19-Jan-2012
848,Revenue,CCHD,Home Care Purch North,Other Small Contracts,Greenbanks Homecare (Western) Limited,347.4, 19-Jan-2012
849,Revenue,CCHD,Day Care - South,Private & Voluntary Day Care,Greenbanks Homecare (Western) Limited,289.5, 19-Jan-2012
850,Revenue,CCHD,Day Care - North,Private & Voluntary Day Care,Greenbanks Homecare (Western) Limited,119.66, 19-Jan-2012
851,Revenue,CCHD,Carer`s Grant - South,Carers Breaks & Services,Greenbanks Homecare (Western) Limited,108.08, 19-Jan-2012
852,Revenue,CCHD,Elderly MH Home Care,Other Small Contracts,Greenbanks Homecare (Western) Limited,428.46, 19-Jan-2012
853,Revenue,CCHD,Elderly MH non-res purchasing,Private & Voluntary Day Care,Greenbanks Homecare (Western) Limited,27.02, 19-Jan-2012
854,Revenue,CCHD,Home Care Purch South,Other Small Contracts,Greenbanks Homecare (Western) Limited,3358.2, 19-Jan-2012
855,Revenue,CCHD,Home Care Purch North,Other Small Contracts,Greenbanks Homecare (Western) Limited,258.62, 19-Jan-2012
856,Revenue,CCHD,Day Care - South,Private & Voluntary Day Care,Greenbanks Homecare (Western) Limited,216.16, 19-Jan-2012
857,Revenue,CCHD,Day Care - North,Private & Voluntary Day Care,Greenbanks Homecare (Western) Limited,96.5, 19-Jan-2012
858,Revenue,CCHD,Carer`s Grant - South,Carers Breaks & Services,Greenbanks Homecare (Western) Limited,108.08, 19-Jan-2012
859,Revenue,CCHD,Elderly MH Home Care,Other Small Contracts,Greenbanks Homecare (Western) Limited,181.42, 19-Jan-2012
860,Revenue,CCHD,Home Care Purch South,Other Small Contracts,Greenbanks Homecare (Western) Limited,3474, 19-Jan-2012
861,Revenue,CCHD,Home Care Purch North,Other Small Contracts,Greenbanks Homecare (Western) Limited,324.24, 19-Jan-2012
862,Revenue,CCHD,Day Care - South,Private & Voluntary Day Care,Greenbanks Homecare (Western) Limited,266.34, 19-Jan-2012
863,Revenue,CCHD,Day Care - North,Private & Voluntary Day Care,Greenbanks Homecare (Western) Limited,96.5, 19-Jan-2012
864,Revenue,CCHD,Carer`s Grant - South,Carers Breaks & Services,Greenbanks Homecare (Western) Limited,108.08, 19-Jan-2012
865,Revenue,CCHD,Elderly MH Home Care,Other Small Contracts,Greenbanks Homecare (Western) Limited,370.56, 19-Jan-2012
866,Revenue,CCHD,Elderly MH non-res purchasing,Private & Voluntary Day Care,Greenbanks Homecare (Western) Limited,19.3, 19-Jan-2012
867,Revenue,CCHD,Under 65s PWLD - KD,Residential Homes,Greyhound Care Home,3557.96, 24-Jan-2012
868,Revenue,CCHD,Frenchay Hospital Purchasing,Residential Homes,Gwendoline House,1176.84, 24-Jan-2012
869,Revenue,CCHD,Elderly Purchasing - South,Residential Homes,Gwendoline House,1465, 24-Jan-2012
870,Revenue,CCHD,Elderly Purchasing - South,Residential Homes,Gwendoline House,1146.28, 24-Jan-2012
871,Revenue,CCHD,Elderly Purchasing - South,Residential Homes,Gwendoline House,1202.32, 24-Jan-2012
872,Revenue,CCHD,Elderly Mental Health,Residential Homes,Gwendoline House,1219.6, 24-Jan-2012
873,Revenue,CCHD,Elderly Purchasing - South,Residential Homes,Gwendoline House,1413.96, 24-Jan-2012
874,Revenue,CCHD,Elderly Purchasing - South,Residential Homes,Gwendoline House,1111.56, 24-Jan-2012
875,Revenue,CCHD,Elderly Purchasing - South,Residential Homes,Gwendoline House,987.72, 24-Jan-2012
876,Revenue,CCHD,Elderly Mental Health,Residential Homes,Harefield Hall,1109.4, 24-Jan-2012
877,Revenue,CCHD,Better Support for Older People,Other Supplies & Services,Harvey Servicing & Engineering Limited,980, 19-Jan-2012
878,Revenue,CCHD,Charlton,Prop.Serv. General Repairs,Harvey Servicing & Engineering Limited,770, 13-Jan-2012
879,Revenue,CCHD,Southmead Hospital Purchasing,Nursing Homes,Hc-One Ltd,1586.2, 24-Jan-2012
880,Revenue,CCHD,Day Care - South,Private & Voluntary Day Care,Headway Bristol,786.06, 27-Jan-2012
881,Revenue,CCHD,Day Care - South,Private & Voluntary Day Care,Headway Bristol,1291.66, 27-Jan-2012
882,Revenue,CCHD,Day Care - South,Private & Voluntary Day Care,Headway Bristol,857.52, 27-Jan-2012
883,Revenue,CCHD,Day Care - South,Private & Voluntary Day Care,Headway Bristol,857.52, 27-Jan-2012
884,Revenue,CCHD,Day Care - South,Private & Voluntary Day Care,Headway Bristol,2407.26, 27-Jan-2012
885,Revenue,CCHD,Supported Living - KD,Private & Voluntary Home Care,HFT,1995.12, 18-Jan-2012
886,Revenue,CCHD,Southmead Hospital Purchasing,Residential Homes,Highgate Studios,680.6, 24-Jan-2012
887,Revenue,CCHD,Under 65s PWLD - KD,Residential Homes,Holmleigh Care Homes Ltd,3908.68, 24-Jan-2012
888,Revenue,CCHD,Under 65s PWLD - KH,Residential Homes,Holmleigh Care Homes Ltd,4909.68, 24-Jan-2012
889,Revenue,CCHD,Under 65s PWLD - KD,Residential Homes,Home Farm Trust Ltd  5-6 Brook Office Pa,2749.36, 24-Jan-2012
890,Revenue,CCHD,Under 65s PWLD - PS,Residential Homes,Home Farm Trust Ltd  5-6 Brook Office Pa,2398.8, 24-Jan-2012
891,Revenue,CCHD,Under 65s PWLD - PS,Residential Homes,Home Farm Trust Ltd  5-6 Brook Office Pa,2998.64, 24-Jan-2012
892,Revenue,CCHD,Under 65s PWLD - KD,Residential Homes,Home Farm Trust Ltd  5-6 Brook Office Pa,3319.88, 24-Jan-2012
893,Revenue,CCHD,Under 65s PWLD - PS,Residential Homes,Home Farm Trust Ltd  5-6 Brook Office Pa,4428.64, 24-Jan-2012
894,Revenue,CCHD,Under 65s PWLD - KD,Residential Homes,Home From Home Care Ltd,8770.4, 24-Jan-2012
895,Revenue,CCHD,Elderly Purchasing - North,Nursing Homes,Horfield Care Limited,5253.75, 18-Jan-2012
896,Revenue,CCHD,Frenchay Hospital Purchasing,Nursing Homes,Horfield Care Limited,4488.72, 18-Jan-2012
897,Revenue,CCHD,Southmead Hospital Purchasing,Nursing Homes,Horfield Care Limited,4343.28, 18-Jan-2012
898,Revenue,CCHD,South Glos Users in Bristol Homes,Nursing Homes,Horfield Care Limited,310.57, 18-Jan-2012
899,Revenue,CCHD,Supporting People Programme,Grants to Voluntary Bodies,Housing 21,828, 20-Jan-2012
900,Revenue,CCHD,Home Care Purch North,Private & Voluntary Home Care,Housing 21,35220.9, 10-Jan-2012
901,Revenue,CCHD,Elderly Purchasing - South,Residential Homes,Jah-Jireh Charity Homes,1241, 24-Jan-2012
902,Revenue,CCHD,Tenancy Start Up Scheme,Other Supplies & Services,Individual,625, 12-Jan-2012
903,Revenue,CCHD,Swift Dump Code,Residential Homes,Katherine House,7009.94, 31-Jan-2012
904,Revenue,CCHD,Elderly Purchasing - South,Nursing Homes,Kenver House Residential Home,1040, 24-Jan-2012
905,Revenue,CCHD,Elderly Mental Health,Residential Homes,Kenver House Residential Home,1496.44, 24-Jan-2012
906,Revenue,CCHD,Section 117 Placements,Residential Homes,Kenver House Residential Home,1848, 24-Jan-2012
907,Revenue,CCHD,Elderly Mental Health,Residential Homes,Kenver House Residential Home,1358.84, 24-Jan-2012
908,Revenue,CCHD,Elderly Mental Health,Residential Homes,Kenver House Residential Home,1621, 24-Jan-2012
909,Revenue,CCHD,Frenchay Hospital Purchasing,Residential Homes,Kenver House Residential Home,1621, 24-Jan-2012
910,Revenue,CCHD,Elderly Mental Health,Residential Homes,Kenver House Residential Home,740.11, 24-Jan-2012
911,Revenue,CCHD,Southmead Hospital Purchasing,Residential Homes,Kenver House Residential Home,1510.32, 24-Jan-2012
912,Revenue,CCHD,Elderly Mental Health,Residential Homes,Kenver House Residential Home,1621, 24-Jan-2012
913,Revenue,CCHD,Frenchay Hospital Purchasing,Residential Homes,Kenver House Residential Home,1621, 24-Jan-2012
914,Revenue,CCHD,Frenchay Hospital Purchasing,Residential Homes,Kenver House Residential Home,1105.4, 24-Jan-2012
915,Revenue,CCHD,Elderly Mental Health,Residential Homes,Kenver House Residential Home,1178.52, 24-Jan-2012
916,Revenue,CCHD,Elderly Mental Health,Residential Homes,Kenver House Residential Home,1210.44, 24-Jan-2012
917,Revenue,CCHD,Frenchay Hospital Purchasing,Residential Homes,Kenver House Residential Home,1409.04, 24-Jan-2012
918,Revenue,CCHD,Elderly Mental Health,Residential Homes,Kenver House Residential Home,1174.16, 24-Jan-2012
919,Revenue,CCHD,Elderly Mental Health,Residential Homes,Kenver House Residential Home,1387.64, 24-Jan-2012
920,Revenue,CCHD,Elderly Purchasing - South,Residential Homes,Kenver House Residential Home,1382.24, 24-Jan-2012
921,Revenue,CCHD,Frenchay Hospital Purchasing,Residential Homes,Kenver House Residential Home,1536.6, 24-Jan-2012
922,Revenue,CCHD,Elderly Mental Health,Residential Homes,Kenver House Residential Home,1447.92, 24-Jan-2012
923,Revenue,CCHD,Elderly Mental Health,Residential Homes,Kenver House Residential Home,1284.48, 24-Jan-2012
924,Revenue,CCHD,Elderly Purchasing - North,Residential Homes,Keyers Bridge House,1133.48, 24-Jan-2012
925,Revenue,CCHD,Supporting People Programme,Grants to Voluntary Bodies,Keyring Living Support Networks,2577.6, 20-Jan-2012
926,Revenue,CCHD,LD - Kingswood PCT,Other Transport Costs,Kingswood Congregational Church,560, 24-Jan-2012
927,Revenue,CCHD,Frenchay Hospital Purchasing,Residential Homes,Kingswood Lodge Care Centre,527.35, 24-Jan-2012
928,Revenue,CCHD,Elderly Purchasing - North,Nursing Homes,Kingswood Lodge Care Centre,578.14, 24-Jan-2012
929,Revenue,CCHD,Under 65s PWLD - KH,Residential Homes,Kisimul Group,11078.72, 24-Jan-2012
930,Revenue,CCHD,Supporting People Programme,Grants to Voluntary Bodies,Knightstone Housing Association Limited,516.64, 30-Jan-2012
931,Revenue,CCHD,Supporting People Programme,Grants to Voluntary Bodies,Knightstone Housing Association Limited,1387.68, 30-Jan-2012
932,Revenue,CCHD,Supporting People Programme,Grants to Voluntary Bodies,Knightstone Housing Association Limited,1968, 30-Jan-2012
933,Revenue,CCHD,Supporting People Programme,Grants to Voluntary Bodies,Knightstone Housing Association Limited,2193.84, 30-Jan-2012
934,Revenue,CCHD,Supporting People Programme,Grants to Voluntary Bodies,Knightstone Housing Association Limited,2194.4, 30-Jan-2012
935,Revenue,CCHD,Supporting People Programme,Grants to Voluntary Bodies,Knightstone Housing Association Limited,6717.92, 30-Jan-2012
936,Revenue,CCHD,Supporting People Programme,Grants to Voluntary Bodies,Knightstone Housing Association Limited,19485.84, 30-Jan-2012
937,Revenue,CCHD,Home Care Purch North,Other Small Contracts,Kumari Care Limited,809.87, 11-Jan-2012
938,Revenue,CCHD,Home Care Purch North,Other Small Contracts,Kumari Care Limited,809.87, 11-Jan-2012
939,Revenue,CCHD,Home Care Purch North,Other Small Contracts,Kumari Care Limited,809.87, 16-Jan-2012
940,Revenue,CCHD,Home Care Purch South,Other Small Contracts,Kumari Care Limited,4481.25, 24-Jan-2012
941,Revenue,CCHD,Home Care Purch North,Other Small Contracts,Kumari Care Limited,52.5, 24-Jan-2012
942,Revenue,CCHD,Day Care - South,Private & Voluntary Day Care,Kumari Care Limited,270, 24-Jan-2012
943,Revenue,CCHD,Under 65s -MH  Home Care Purch,Other Small Contracts,Kumari Care Limited,127.5, 24-Jan-2012
944,Revenue,CCHD,Elderly MH Home Care,Other Small Contracts,Kumari Care Limited,30, 24-Jan-2012
945,Revenue,CCHD,PWLD Home Care - Under 65 - KH,Private & Voluntary Home Care,Kumari Care Limited,296.25, 24-Jan-2012
946,Revenue,CCHD,Home Care Purch South,Other Small Contracts,Kumari Care Limited,4398.75, 31-Jan-2012
947,Revenue,CCHD,Home Care Purch North,Other Small Contracts,Kumari Care Limited,52.5, 31-Jan-2012
948,Revenue,CCHD,Day Care - South,Private & Voluntary Day Care,Kumari Care Limited,292.5, 31-Jan-2012
949,Revenue,CCHD,Under 65s -MH  Home Care Purch,Other Small Contracts,Kumari Care Limited,157.5, 31-Jan-2012
950,Revenue,CCHD,Elderly MH Home Care,Other Small Contracts,Kumari Care Limited,37.5, 31-Jan-2012
951,Revenue,CCHD,PWLD Home Care - Under 65 - KH,Private & Voluntary Home Care,Kumari Care Limited,168.75, 31-Jan-2012
952,Revenue,CCHD,Home Care Purch South,Other Small Contracts,Kumari Care Limited,4203.75, 31-Jan-2012
953,Revenue,CCHD,Home Care Purch North,Other Small Contracts,Kumari Care Limited,30, 31-Jan-2012
954,Revenue,CCHD,Day Care - South,Private & Voluntary Day Care,Kumari Care Limited,183.75, 31-Jan-2012
955,Revenue,CCHD,Under 65s -MH  Home Care Purch,Other Small Contracts,Kumari Care Limited,120, 31-Jan-2012
956,Revenue,CCHD,Elderly MH Home Care,Other Small Contracts,Kumari Care Limited,22.5, 31-Jan-2012
957,Revenue,CCHD,PWLD Home Care - Under 65 - KH,Private & Voluntary Home Care,Kumari Care Limited,213.75, 31-Jan-2012
958,Revenue,CCHD,Purchasing Phys Dis - North,Nursing Homes,Leonard Cheshire  National Account Centr,2588.28, 24-Jan-2012
959,Revenue,CCHD,Purchasing Phys Dis - North,Residential Homes,Leonard Cheshire  National Account Centr,2303.36, 24-Jan-2012
960,Revenue,CCHD,Under 65s PWLD - KH,Residential Homes,Leonard Cheshire  National Account Centr,2894.92, 24-Jan-2012
961,Revenue,CCHD,Purchasing Phys Dis - North,Nursing Homes,Leonard Cheshire  National Account Centr,2693.2, 24-Jan-2012
962,Revenue,CCHD,Elderly Purchasing - North,Residential Homes,Leonard Cheshire  National Account Centr,3084.48, 24-Jan-2012
963,Revenue,CCHD,Elderly Purchasing - South,Residential Homes,Leonard Cheshire  National Account Centr,8672.32, 24-Jan-2012
964,Revenue,CCHD,Purchasing Phys Dis - North,Nursing Homes,Leonard Cheshire  National Account Centr,2777.24, 24-Jan-2012
965,Revenue,CCHD,Purchasing Phys Dis - North,Nursing Homes,Leonard Cheshire  National Account Centr,3143.8, 24-Jan-2012
966,Revenue,CCHD,Purchasing Phys Dis - North,Residential Homes,Leonard Cheshire  National Account Centr,2837.08, 24-Jan-2012
967,Revenue,CCHD,Elderly Purchasing - North,Nursing Homes,Leonard Cheshire  National Account Centr,3464.96, 24-Jan-2012
968,Revenue,CCHD,Purchasing Phys Dis - South,Nursing Homes,Leonard Cheshire  National Account Centr,6280.8, 24-Jan-2012
969,Revenue,CCHD,Purchasing Phys Dis - South,Nursing Homes,Leonard Cheshire  National Account Centr,11913.12, 24-Jan-2012
970,Revenue,CCHD,Purchasing Phys Dis - North,Nursing Homes,Leonard Cheshire  National Account Centr,10756.96, 24-Jan-2012
971,Revenue,CCHD,Elderly Purchasing - South,Nursing Homes,Leonard Cheshire  National Account Centr,2878.32, 24-Jan-2012
972,Revenue,CCHD,Southmead Hospital Purchasing,Nursing Homes,Leonard Cheshire  National Account Centr,2940.48, 24-Jan-2012
973,Revenue,CCHD,South Glos Users in all other LA Homes,Nursing Homes,Leonard Cheshire  National Account Centr,598.4, 24-Jan-2012
974,Revenue,CCHD,Purchasing Phys Dis - North,Nursing Homes,Leonard Cheshire  National Account Centr,3235.6, 24-Jan-2012
975,Revenue,CCHD,Frenchay Hospital Purchasing,Residential Homes,Leonard Cheshire  National Account Centr,3687.8, 24-Jan-2012
976,Revenue,CCHD,Elderly Purchasing - North,Nursing Homes,Leonard Cheshire  National Account Centr,8529.68, 24-Jan-2012
977,Revenue,CCHD,S28A - Over 65,Residential Homes,Leonard Cheshire  National Account Centr,5682.88, 24-Jan-2012
978,Revenue,CCHD,Under 65s PWLD - KD,Residential Homes,Littlecroft Residential Homes  Longcroft,6427.88, 24-Jan-2012
979,Revenue,CCHD,Supported Living - PS,Private & Voluntary Home Care,Lloyds TSB Commercial Finance Limited,1031.3, 25-Jan-2012
980,Revenue,CCHD,Supported Living - PS,Private & Voluntary Home Care,Lloyds TSB Commercial Finance Limited,3734.33, 25-Jan-2012
981,Revenue,CCHD,Supported Living - PS,Private & Voluntary Home Care,Lloyds TSB Commercial Finance Limited,3753.37, 30-Jan-2012
982,Revenue,CCHD,Supported Living - PS,Private & Voluntary Home Care,Lloyds TSB Commercial Finance Limited,3715.53, 11-Jan-2012
983,Revenue,CCHD,Supported Living - PS,Private & Voluntary Home Care,Lloyds TSB Commercial Finance Limited,3880.05, 24-Jan-2012
984,Revenue,CCHD,Supported Living - KD,Private & Voluntary Home Care,Lloyds TSB Commercial Finance Limited,3674.02, 23-Jan-2012
985,Revenue,CCHD,Supported Living - PS,Private & Voluntary Home Care,Lloyds TSB Commercial Finance Limited,5860.01, 11-Jan-2012
986,Revenue,CCHD,Supported Living - PS,Private & Voluntary Home Care,Lloyds TSB Commercial Finance Limited,6077.68, 24-Jan-2012
987,Revenue,CCHD,Supported Living - KD,Private & Voluntary Home Care,Lloyds TSB Commercial Finance Limited,3671.88, 17-Jan-2012
988,Revenue,CCHD,Supported Living - KD,Private & Voluntary Home Care,Lloyds TSB Commercial Finance Limited,3787.62, 24-Jan-2012
989,Revenue,CCHD,Supported Living - PS,Private & Voluntary Home Care,Lloyds TSB Commercial Finance Limited,4052.28, 10-Jan-2012
990,Revenue,CCHD,Supported Living - PS,Private & Voluntary Home Care,Lloyds TSB Commercial Finance Limited,4052.28, 24-Jan-2012
991,Revenue,CCHD,Supported Living - PS,Private & Voluntary Home Care,Lloyds TSB Commercial Finance Limited,938.92, 25-Jan-2012
992,Revenue,CCHD,Supported Living - PS,Private & Voluntary Home Care,Lloyds TSB Commercial Finance Limited,3527.98, 25-Jan-2012
993,Revenue,CCHD,Supported Living - PS,Private & Voluntary Home Care,Lloyds TSB Commercial Finance Limited,3652.22, 25-Jan-2012
994,Revenue,CCHD,Supported Living - PS,Private & Voluntary Home Care,Lloyds TSB Commercial Finance Limited,3707.23, 25-Jan-2012
995,Revenue,CCHD,Supported Living - PS,Private & Voluntary Home Care,Lloyds TSB Commercial Finance Limited,3478.72, 30-Jan-2012
996,Revenue,CCHD,Home Care Purch South,Other Small Contracts,Lloyds TSB Commercial Finance Limited,1276.8, 12-Jan-2012
997,Revenue,CCHD,Home Care Purch North,Other Small Contracts,Lloyds TSB Commercial Finance Limited,5354.2, 12-Jan-2012
998,Revenue,CCHD,Day Care - South,Private & Voluntary Day Care,Lloyds TSB Commercial Finance Limited,91.2, 12-Jan-2012
999,Revenue,CCHD,Day Care - North,Private & Voluntary Day Care,Lloyds TSB Commercial Finance Limited,516.8, 12-Jan-2012
1000,Revenue,CCHD,Elderly MH Home Care,Other Small Contracts,Lloyds TSB Commercial Finance Limited,323, 12-Jan-2012
1001,Revenue,CCHD,Home Care Purch South,Other Small Contracts,Lloyds TSB Commercial Finance Limited,1421.2, 12-Jan-2012
1002,Revenue,CCHD,Home Care Purch North,Other Small Contracts,Lloyds TSB Commercial Finance Limited,6136.67, 12-Jan-2012
1003,Revenue,CCHD,Day Care - South,Private & Voluntary Day Care,Lloyds TSB Commercial Finance Limited,87.4, 12-Jan-2012
1004,Revenue,CCHD,Day Care - North,Private & Voluntary Day Care,Lloyds TSB Commercial Finance Limited,554.8, 12-Jan-2012
1005,Revenue,CCHD,Elderly MH Home Care,Other Small Contracts,Lloyds TSB Commercial Finance Limited,440.8, 12-Jan-2012
1006,Revenue,CCHD,Elderly MH non-res purchasing,Private & Voluntary Day Care,Lloyds TSB Commercial Finance Limited,38, 12-Jan-2012
1007,Revenue,CCHD,Home Care Purch South,Other Small Contracts,Lloyds TSB Commercial Finance Limited,1352.8, 12-Jan-2012
1008,Revenue,CCHD,Home Care Purch North,Other Small Contracts,Lloyds TSB Commercial Finance Limited,5940.98, 12-Jan-2012
1009,Revenue,CCHD,Day Care - South,Private & Voluntary Day Care,Lloyds TSB Commercial Finance Limited,91.2, 12-Jan-2012
1010,Revenue,CCHD,Day Care - North,Private & Voluntary Day Care,Lloyds TSB Commercial Finance Limited,490.2, 12-Jan-2012
1011,Revenue,CCHD,Elderly MH Home Care,Other Small Contracts,Lloyds TSB Commercial Finance Limited,414.2, 12-Jan-2012
1012,Revenue,CCHD,Elderly MH non-res purchasing,Private & Voluntary Day Care,Lloyds TSB Commercial Finance Limited,45.6, 12-Jan-2012
1013,Revenue,CCHD,Home Care Purch South,Other Small Contracts,Lloyds TSB Commercial Finance Limited,1265.4, 12-Jan-2012
1014,Revenue,CCHD,Home Care Purch North,Other Small Contracts,Lloyds TSB Commercial Finance Limited,5369.4, 12-Jan-2012
1015,Revenue,CCHD,Day Care - South,Private & Voluntary Day Care,Lloyds TSB Commercial Finance Limited,114, 12-Jan-2012
1016,Revenue,CCHD,Day Care - North,Private & Voluntary Day Care,Lloyds TSB Commercial Finance Limited,539.6, 12-Jan-2012
1017,Revenue,CCHD,Elderly MH Home Care,Other Small Contracts,Lloyds TSB Commercial Finance Limited,414.2, 12-Jan-2012
1018,Revenue,CCHD,Elderly MH non-res purchasing,Private & Voluntary Day Care,Lloyds TSB Commercial Finance Limited,38, 12-Jan-2012
1019,Revenue,CCHD,Supported Living - KD,Private & Voluntary Home Care,Lloyds TSB Commercial Finance Limited,3592.86, 23-Jan-2012
1020,Revenue,CCHD,Supported Living - KH,Private & Voluntary Home Care,Lloyds TSB Commercial Finance Limited,3449.21, 09-Jan-2012
1021,Revenue,CCHD,Under 65s PWLD - KH,Residential Homes,Longton Court,9361.2, 24-Jan-2012
1022,Revenue,CCHD,Social Lettings Agency,Other Supplies & Services,Individual,565, 12-Jan-2012
1023,Revenue,CCHD,Under 65s PWLD - KH,Residential Homes,Lufton Manor College,15539.04, 24-Jan-2012
1024,Revenue,CCHD,Southmead Hospital Purchasing,Nursing Homes,Majestic 3 Limited,1017.44, 24-Jan-2012
1025,Revenue,CCHD,Frenchay Hospital Purchasing,Residential Homes,Manor Cottage,1975.18, 24-Jan-2012
1026,Revenue,CCHD,Elderly Purchasing - South,Residential Homes,Manor Cottage,738.68, 24-Jan-2012
1027,Revenue,CCHD,Elderly Purchasing - South,Residential Homes,Manor Cottage,1421.44, 24-Jan-2012
1028,Revenue,CCHD,Elderly Purchasing - South,Residential Homes,Manor Cottage,1296.68, 24-Jan-2012
1029,Revenue,CCHD,Elderly Purchasing - North,Residential Homes,Manton Hall Residential Home,1460.76, 24-Jan-2012
1030,Revenue,CCHD,Under 65s PWLD - PS,Residential Homes,Marsden Healthcare Limited,865.12, 20-Jan-2012
1031,Revenue,CCHD,Elderly PWLD - KH,Residential Homes,Marsden Healthcare Limited,3134.56, 20-Jan-2012
1032,Revenue,CCHD,Elderly PWLD - KH,Residential Homes,Marsden Healthcare Limited,1481.4, 20-Jan-2012
1033,Revenue,CCHD,Home Care Purch South,Private & Voluntary Home Care,Mears Care,47442.58, 27-Jan-2012
1034,Revenue,CCHD,Home Care Purch South,Other Small Contracts,Mears Care,640.8, 10-Jan-2012
1035,Revenue,CCHD,Home Care Purch North,Other Small Contracts,Mears Care,6411, 10-Jan-2012
1036,Revenue,CCHD,Day Care - South,Private & Voluntary Day Care,Mears Care,201.6, 10-Jan-2012
1037,Revenue,CCHD,Day Care - North,Private & Voluntary Day Care,Mears Care,280.8, 10-Jan-2012
1038,Revenue,CCHD,Under 65s -MH  Home Care Purch,Other Small Contracts,Mears Care,108, 10-Jan-2012
1039,Revenue,CCHD,Elderly MH Home Care,Other Small Contracts,Mears Care,648, 10-Jan-2012
1040,Revenue,CCHD,Elderly MH non-res purchasing,Private & Voluntary Day Care,Mears Care,86.4, 10-Jan-2012
1041,Revenue,CCHD,Home Care - Elderly LD - KH,Private & Voluntary Home Care,Mears Care,50.4, 10-Jan-2012
1042,Revenue,CCHD,Home Care Purch South,Other Small Contracts,Mears Care,673.2, 10-Jan-2012
1043,Revenue,CCHD,Home Care Purch North,Other Small Contracts,Mears Care,6534.75, 10-Jan-2012
1044,Revenue,CCHD,Day Care - South,Private & Voluntary Day Care,Mears Care,187.2, 10-Jan-2012
1045,Revenue,CCHD,Day Care - North,Private & Voluntary Day Care,Mears Care,352.8, 10-Jan-2012
1046,Revenue,CCHD,Under 65s -MH  Home Care Purch,Other Small Contracts,Mears Care,108, 10-Jan-2012
1047,Revenue,CCHD,Elderly MH Home Care,Other Small Contracts,Mears Care,644.4, 10-Jan-2012
1048,Revenue,CCHD,Elderly MH non-res purchasing,Private & Voluntary Day Care,Mears Care,86.4, 10-Jan-2012
1049,Revenue,CCHD,Home Care - Elderly LD - KH,Private & Voluntary Home Care,Mears Care,50.4, 10-Jan-2012
1050,Revenue,CCHD,Home Care Purch South,Other Small Contracts,Mears Care,630, 10-Jan-2012
1051,Revenue,CCHD,Home Care Purch North,Other Small Contracts,Mears Care,6099.45, 10-Jan-2012
1052,Revenue,CCHD,Day Care - South,Private & Voluntary Day Care,Mears Care,205.2, 10-Jan-2012
1053,Revenue,CCHD,Day Care - North,Private & Voluntary Day Care,Mears Care,309.6, 10-Jan-2012
1054,Revenue,CCHD,Under 65s -MH  Home Care Purch,Other Small Contracts,Mears Care,100.8, 10-Jan-2012
1055,Revenue,CCHD,Elderly MH Home Care,Other Small Contracts,Mears Care,655.2, 10-Jan-2012
1056,Revenue,CCHD,Elderly MH non-res purchasing,Private & Voluntary Day Care,Mears Care,95.2, 10-Jan-2012
1057,Revenue,CCHD,Home Care - Elderly LD - KH,Private & Voluntary Home Care,Mears Care,50.4, 10-Jan-2012
1058,Revenue,CCHD,Home Care Purch South,Other Small Contracts,Mears Care,608.4, 31-Jan-2012
1059,Revenue,CCHD,Home Care Purch North,Other Small Contracts,Mears Care,5796.6, 31-Jan-2012
1060,Revenue,CCHD,Day Care - South,Private & Voluntary Day Care,Mears Care,172.8, 31-Jan-2012
1061,Revenue,CCHD,Day Care - North,Private & Voluntary Day Care,Mears Care,320.4, 31-Jan-2012
1062,Revenue,CCHD,Under 65s -MH  Home Care Purch,Other Small Contracts,Mears Care,108, 31-Jan-2012
1063,Revenue,CCHD,Elderly MH Home Care,Other Small Contracts,Mears Care,655.2, 31-Jan-2012
1064,Revenue,CCHD,Elderly MH non-res purchasing,Private & Voluntary Day Care,Mears Care,66.4, 31-Jan-2012
1065,Revenue,CCHD,Home Care Purch South,Other Small Contracts,Mears Care,637.2, 31-Jan-2012
1066,Revenue,CCHD,Home Care Purch North,Other Small Contracts,Mears Care,6316.2, 31-Jan-2012
1067,Revenue,CCHD,Day Care - South,Private & Voluntary Day Care,Mears Care,201.6, 31-Jan-2012
1068,Revenue,CCHD,Day Care - North,Private & Voluntary Day Care,Mears Care,288, 31-Jan-2012
1069,Revenue,CCHD,Under 65s -MH  Home Care Purch,Other Small Contracts,Mears Care,108, 31-Jan-2012
1070,Revenue,CCHD,Elderly MH Home Care,Other Small Contracts,Mears Care,748.8, 31-Jan-2012
1071,Revenue,CCHD,Elderly MH non-res purchasing,Private & Voluntary Day Care,Mears Care,66.4, 31-Jan-2012
1072,Revenue,CCHD,Home Care Purch South,Other Small Contracts,Medacs Home Care,40.8, 19-Jan-2012
1073,Revenue,CCHD,Home Care Purch North,Other Small Contracts,Medacs Home Care,1077.8, 19-Jan-2012
1074,Revenue,CCHD,Elderly MH Home Care,Other Small Contracts,Medacs Home Care,108.8, 19-Jan-2012
1075,Revenue,CCHD,Elderly MH non-res purchasing,Private & Voluntary Day Care,Medacs Home Care,34, 19-Jan-2012
1076,Revenue,CCHD,Home Care Purch South,Other Small Contracts,Medacs Home Care,51, 19-Jan-2012
1077,Revenue,CCHD,Home Care Purch North,Other Small Contracts,Medacs Home Care,1037, 19-Jan-2012
1078,Revenue,CCHD,Day Care - North,Private & Voluntary Day Care,Medacs Home Care,27.2, 19-Jan-2012
1079,Revenue,CCHD,Elderly MH Home Care,Other Small Contracts,Medacs Home Care,125.8, 19-Jan-2012
1080,Revenue,CCHD,Home Care Purch South,Other Small Contracts,Medacs Home Care,40.8, 19-Jan-2012
1081,Revenue,CCHD,Home Care Purch North,Other Small Contracts,Medacs Home Care,1054, 19-Jan-2012
1082,Revenue,CCHD,Day Care - North,Private & Voluntary Day Care,Medacs Home Care,27.2, 19-Jan-2012
1083,Revenue,CCHD,Elderly MH Home Care,Other Small Contracts,Medacs Home Care,112.2, 19-Jan-2012
1084,Revenue,CCHD,Elderly MH non-res purchasing,Private & Voluntary Day Care,Medacs Home Care,34, 19-Jan-2012
1085,Revenue,CCHD,Home Care Purch South,Other Small Contracts,Medacs Home Care,54.4, 19-Jan-2012
1086,Revenue,CCHD,Home Care Purch North,Other Small Contracts,Medacs Home Care,1190, 19-Jan-2012
1087,Revenue,CCHD,Day Care - North,Private & Voluntary Day Care,Medacs Home Care,27.2, 19-Jan-2012
1088,Revenue,CCHD,Elderly MH Home Care,Other Small Contracts,Medacs Home Care,115.6, 19-Jan-2012
1089,Revenue,CCHD,Elderly MH non-res purchasing,Private & Voluntary Day Care,Medacs Home Care,34, 19-Jan-2012
1090,Revenue,CCHD,Home Care Purch South,Other Small Contracts,Medacs Home Care,54.4, 19-Jan-2012
1091,Revenue,CCHD,Home Care Purch North,Other Small Contracts,Medacs Home Care,992.8, 19-Jan-2012
1092,Revenue,CCHD,Elderly MH Home Care,Other Small Contracts,Medacs Home Care,85, 19-Jan-2012
1093,Revenue,CCHD,Elderly MH non-res purchasing,Private & Voluntary Day Care,Medacs Home Care,34, 19-Jan-2012
1094,Revenue,CCHD,Home Care Purch South,Other Small Contracts,Medacs Home Care,54.4, 19-Jan-2012
1095,Revenue,CCHD,Home Care Purch North,Other Small Contracts,Medacs Home Care,1142.4, 19-Jan-2012
1096,Revenue,CCHD,Day Care - North,Private & Voluntary Day Care,Medacs Home Care,30.6, 19-Jan-2012
1097,Revenue,CCHD,Elderly MH Home Care,Other Small Contracts,Medacs Home Care,108.8, 19-Jan-2012
1098,Revenue,CCHD,Elderly MH non-res purchasing,Private & Voluntary Day Care,Medacs Home Care,34, 19-Jan-2012
1099,Revenue,CCHD,Home Care Purch South,Other Small Contracts,Medacs Home Care,54.4, 19-Jan-2012
1100,Revenue,CCHD,Home Care Purch North,Other Small Contracts,Medacs Home Care,1071, 19-Jan-2012
1101,Revenue,CCHD,Elderly MH Home Care,Other Small Contracts,Medacs Home Care,122.4, 19-Jan-2012
1102,Revenue,CCHD,Elderly MH non-res purchasing,Private & Voluntary Day Care,Medacs Home Care,34, 19-Jan-2012
1103,Revenue,CCHD,NRS Contract,Daily Living Equipment,Medequip Assistive Technology Ltd,35703.11, 05-Jan-2012
1104,Revenue,CCHD,NRS Contract,Daily Living Equipment,Medequip Assistive Technology Ltd,64294.7, 05-Jan-2012
1105,Revenue,CCHD,NRS Contract,Other Supplies & Services,Medequip Assistive Technology Ltd,7519.77, 05-Jan-2012
1106,Revenue,CCHD,NRS Contract,Daily Living Equipment,Medequip Assistive Technology Ltd,23709.93, 23-Jan-2012
1107,Revenue,CCHD,NRS Contract,Daily Living Equipment,Medequip Assistive Technology Ltd,52029.35, 23-Jan-2012
1108,Revenue,CCHD,NRS Contract,Other Supplies & Services,Medequip Assistive Technology Ltd,7637.47, 23-Jan-2012
1109,Revenue,CCHD,Home Care Purch North,Other Small Contracts,Medico Nursing & Homecare Ltd,1927.73, 11-Jan-2012
1110,Revenue,CCHD,Home Care Purch North,Other Small Contracts,Medico Nursing & Homecare Ltd,1927.46, 11-Jan-2012
1111,Revenue,CCHD,Home Care Purch North,Other Small Contracts,Medico Nursing & Homecare Ltd,1927.73, 23-Jan-2012
1112,Revenue,CCHD,Home Care Purch North,Other Small Contracts,Medico Nursing & Homecare Ltd,1927.73, 23-Jan-2012
1113,Revenue,CCHD,Under 65s PWLD - KH,Residential Homes,Mencap,2173.8, 24-Jan-2012
1114,Revenue,CCHD,Supported Living (S28a),Private & Voluntary Home Care,Mencap - PSH West,3689, 11-Jan-2012
1115,Revenue,CCHD,Supported Living (S28a),Private & Voluntary Home Care,Mencap - PSH West,3689, 11-Jan-2012
1116,Revenue,CCHD,Supporting People Programme,Grants to Voluntary Bodies,Merlin Housing Society,920.55, 30-Jan-2012
1117,Revenue,CCHD,Supporting People Programme,Grants to Voluntary Bodies,Merlin Housing Society,2172.8, 30-Jan-2012
1118,Revenue,CCHD,Supporting People Programme,Grants to Voluntary Bodies,Merlin Housing Society,2186.3, 30-Jan-2012
1119,Revenue,CCHD,Supporting People Programme,Grants to Voluntary Bodies,Merlin Housing Society,2416.44, 30-Jan-2012
1120,Revenue,CCHD,Supporting People Programme,Grants to Voluntary Bodies,Merlin Housing Society,13808.8, 30-Jan-2012
1121,Revenue,CCHD,Supporting People Programme,Grants to Voluntary Bodies,Merlin Housing Society,41424.66, 30-Jan-2012
1122,Revenue,CCHD,Home Care Purch South,Other Small Contracts,Milestones Outreach Dementia Services,573.75, 24-Jan-2012
1123,Revenue,CCHD,Home Care Purch North,Other Small Contracts,Milestones Outreach Dementia Services,22.5, 24-Jan-2012
1124,Revenue,CCHD,Day Care - South,Private & Voluntary Day Care,Milestones Outreach Dementia Services,30, 24-Jan-2012
1125,Revenue,CCHD,Day Care - North,Private & Voluntary Day Care,Milestones Outreach Dementia Services,52.5, 24-Jan-2012
1126,Revenue,CCHD,Elderly MH Home Care,Other Small Contracts,Milestones Outreach Dementia Services,832.5, 24-Jan-2012
1127,Revenue,CCHD,Elderly MH non-res purchasing,Private & Voluntary Day Care,Milestones Outreach Dementia Services,765, 24-Jan-2012
1128,Revenue,CCHD,Home Care Purch South,Other Small Contracts,Milestones Outreach Dementia Services,543.75, 24-Jan-2012
1129,Revenue,CCHD,Day Care - South,Private & Voluntary Day Care,Milestones Outreach Dementia Services,30, 24-Jan-2012
1130,Revenue,CCHD,Elderly MH Home Care,Other Small Contracts,Milestones Outreach Dementia Services,795, 24-Jan-2012
1131,Revenue,CCHD,Elderly MH non-res purchasing,Private & Voluntary Day Care,Milestones Outreach Dementia Services,870, 24-Jan-2012
1132,Revenue,CCHD,Home Care Purch South,Other Small Contracts,Milestones Outreach Dementia Services,566.25, 24-Jan-2012
1133,Revenue,CCHD,Day Care - South,Private & Voluntary Day Care,Milestones Outreach Dementia Services,45, 24-Jan-2012
1134,Revenue,CCHD,Elderly MH Home Care,Other Small Contracts,Milestones Outreach Dementia Services,847.5, 24-Jan-2012
1135,Revenue,CCHD,Elderly MH non-res purchasing,Private & Voluntary Day Care,Milestones Outreach Dementia Services,881.25, 24-Jan-2012
1136,Revenue,CCHD,Home Care Purch South,Other Small Contracts,Milestones Outreach Dementia Services,438.75, 24-Jan-2012
1137,Revenue,CCHD,Day Care - South,Private & Voluntary Day Care,Milestones Outreach Dementia Services,30, 24-Jan-2012
1138,Revenue,CCHD,Day Care - North,Private & Voluntary Day Care,Milestones Outreach Dementia Services,60, 24-Jan-2012
1139,Revenue,CCHD,Elderly MH Home Care,Other Small Contracts,Milestones Outreach Dementia Services,855, 24-Jan-2012
1140,Revenue,CCHD,Elderly MH non-res purchasing,Private & Voluntary Day Care,Milestones Outreach Dementia Services,922.5, 24-Jan-2012
1141,Revenue,CCHD,Home Care Purch South,Other Small Contracts,Milestones Outreach Dementia Services,513.75, 24-Jan-2012
1142,Revenue,CCHD,Day Care - South,Private & Voluntary Day Care,Milestones Outreach Dementia Services,30, 24-Jan-2012
1143,Revenue,CCHD,Elderly MH Home Care,Other Small Contracts,Milestones Outreach Dementia Services,1050, 24-Jan-2012
1144,Revenue,CCHD,Elderly MH non-res purchasing,Private & Voluntary Day Care,Milestones Outreach Dementia Services,592.5, 24-Jan-2012
1145,Revenue,CCHD,Home Care Purch South,Other Small Contracts,Milestones Outreach Dementia Services,502.5, 31-Jan-2012
1146,Revenue,CCHD,Day Care - South,Private & Voluntary Day Care,Milestones Outreach Dementia Services,45, 31-Jan-2012
1147,Revenue,CCHD,Elderly MH Home Care,Other Small Contracts,Milestones Outreach Dementia Services,1038.75, 31-Jan-2012
1148,Revenue,CCHD,Elderly MH non-res purchasing,Private & Voluntary Day Care,Milestones Outreach Dementia Services,675, 31-Jan-2012
1149,Revenue,CCHD,Supported Living (S28a),Private & Voluntary Home Care,Milestones Trust,3116, 13-Jan-2012
1150,Revenue,CCHD,Supported Living (S28a),Private & Voluntary Home Care,Milestones Trust,6104.38, 16-Jan-2012
1151,Revenue,CCHD,Younger MH non-res purchasing,Private & Voluntary Day Care,Milestones Trust,786.75, 20-Jan-2012
1152,Revenue,CCHD,Supported Living (S28a),Private & Voluntary Home Care,Milestones Trust,7723.3, 11-Jan-2012
1153,Revenue,CCHD,Supported Living - KH,Private & Voluntary Home Care,Milestones Trust,926.1, 09-Jan-2012
1154,Revenue,CCHD,Elderly MH non-res purchasing,Private & Voluntary Day Care,Milestones Trust,532.86, 09-Jan-2012
1155,Revenue,CCHD,Elderly MH non-res purchasing,Private & Voluntary Day Care,Milestones Trust,542.36, 09-Jan-2012
1156,Revenue,CCHD,Elderly MH non-res purchasing,Private & Voluntary Day Care,Milestones Trust,697.32, 09-Jan-2012
1157,Revenue,CCHD,Supported Living (S28a),Private & Voluntary Home Care,Milestones Trust,3637, 11-Jan-2012
1158,Revenue,CCHD,Supported Living (S28a),Private & Voluntary Home Care,Milestones Trust,3925, 11-Jan-2012
1159,Revenue,CCHD,Supported Living - KH,Private & Voluntary Home Care,Milestones Trust,3573, 19-Jan-2012
1160,Revenue,CCHD,Supported Living (S28a),Private & Voluntary Home Care,Milestones Trust,3825, 11-Jan-2012
1161,Revenue,CCHD,Supported Living (S28a),Private & Voluntary Home Care,Milestones Trust,6778.95, 11-Jan-2012
1162,Revenue,CCHD,Supported Living - KD,Private & Voluntary Home Care,Milestones Trust,5600.49, 12-Jan-2012
1163,Revenue,CCHD,Supported Living (S28a),Private & Voluntary Home Care,Milestones Trust,5179.2, 11-Jan-2012
1164,Revenue,CCHD,Supported Living (S28a),Private & Voluntary Home Care,Milestones Trust,4577.9, 11-Jan-2012
1165,Revenue,CCHD,Supported Living (S28a),Private & Voluntary Home Care,Milestones Trust,4577.9, 11-Jan-2012
1166,Revenue,CCHD,Supported Living (S28a),Private & Voluntary Home Care,Milestones Trust,4577.9, 11-Jan-2012
1167,Revenue,CCHD,Supported Living (S28a),Private & Voluntary Home Care,Milestones Trust,6178.64, 17-Jan-2012
1168,Revenue,CCHD,Supported Living - PS,Private & Voluntary Home Care,Milestones Trust,998.51, 11-Jan-2012
1169,Revenue,CCHD,Supported Living - PS,Private & Voluntary Home Care,Milestones Trust,999, 11-Jan-2012
1170,Revenue,CCHD,Supported Living - KH,Private & Voluntary Home Care,Milestones Trust,1453.15, 13-Jan-2012
1171,Revenue,CCHD,Supported Living (S28a),Private & Voluntary Home Care,Milestones Trust,4752.94, 11-Jan-2012
1172,Revenue,CCHD,Supported Living (S28a),Private & Voluntary Home Care,Milestones Trust,11634.15, 11-Jan-2012
1173,Revenue,CCHD,Purchase of Non-Res Care - PS,Private & Voluntary Day Care,Milestones Trust,1004.61, 11-Jan-2012
1174,Revenue,CCHD,Purchase of Non-Res Care - PS,Private & Voluntary Day Care,Milestones Trust,539.8, 13-Jan-2012
1175,Revenue,CCHD,Purchase of Non-Res Care - KH,Private & Voluntary Day Care,Milestones Trust,1510.35, 16-Jan-2012
1176,Revenue,CCHD,Purchase of Non-Res Care - PS,Private & Voluntary Day Care,Milestones Trust,1749.75, 11-Jan-2012
1177,Revenue,CCHD,Purchase of Non-Res Care - PS,Private & Voluntary Day Care,Milestones Trust,1464.08, 11-Jan-2012
1178,Revenue,CCHD,Supported Living - PS,Private & Voluntary Home Care,Milestones Trust,539.8, 13-Jan-2012
1179,Revenue,CCHD,Purchase of Non-Res Care - PS,Private & Voluntary Day Care,Milestones Trust,1763.46, 11-Jan-2012
1180,Revenue,CCHD,Purchase of Non-Res Care - KH,Private & Voluntary Day Care,Milestones Trust,1761.9, 16-Jan-2012
1181,Revenue,CCHD,Purchase of Non-Res Care - KH,Private & Voluntary Day Care,Milestones Trust,1514.26, 16-Jan-2012
1182,Revenue,CCHD,Purchase of Non-Res Care - KH,Private & Voluntary Day Care,Milestones Trust,1247.38, 13-Jan-2012
1183,Revenue,CCHD,Purchase of Non-Res Care - PS,Private & Voluntary Day Care,Milestones Trust,1491.64, 13-Jan-2012
1184,Revenue,CCHD,Purchase of Non-Res Care - KH,Private & Voluntary Day Care,Milestones Trust,1754.57, 16-Jan-2012
1185,Revenue,CCHD,Purchase of Non-Res Care - KH,Private & Voluntary Day Care,Milestones Trust,1243.88, 16-Jan-2012
1186,Revenue,CCHD,Supported Living - KD,Private & Voluntary Home Care,Milestones Trust,2073.31, 13-Jan-2012
1187,Revenue,CCHD,Supported Living - KH,Private & Voluntary Home Care,Milestones Trust,1099.17, 19-Jan-2012
1188,Revenue,CCHD,Supported Living - PS,Private & Voluntary Home Care,Milestones Trust,502.1, 13-Jan-2012
1189,Revenue,CCHD,Supported Living - PS,Private & Voluntary Home Care,Milestones Trust,750.02, 16-Jan-2012
1190,Revenue,CCHD,Supported Living - PS,Private & Voluntary Home Care,Milestones Trust,1026.91, 16-Jan-2012
1191,Revenue,CCHD,Supported Living (S28a),Private & Voluntary Home Care,Milestones Trust,764.4, 11-Jan-2012
1192,Revenue,CCHD,Supported Living (S28a),Private & Voluntary Home Care,Milestones Trust,1030.5, 11-Jan-2012
1193,Revenue,CCHD,Supported Living - PS,Private & Voluntary Home Care,Milestones Trust,2247.59, 11-Jan-2012
1194,Revenue,CCHD,Supported Living - PS,Private & Voluntary Home Care,Milestones Trust,3285.95, 23-Jan-2012
1195,Revenue,CCHD,Supported Living (S28a),Private & Voluntary Home Care,Milestones Trust,7832.64, 24-Jan-2012
1196,Revenue,CCHD,Supported Living (S28a),Private & Voluntary Home Care,Milestones Trust,11186.76, 24-Jan-2012
1197,Revenue,CCHD,Elderly MH non-res purchasing,Private & Voluntary Day Care,Milestones Trust,600, 20-Jan-2012
1198,Revenue,CCHD,Elderly MH non-res purchasing,Private & Voluntary Day Care,Milestones Trust,567.15, 27-Jan-2012
1199,Revenue,CCHD,Section 117 Placements MH Younger,Private & Voluntary Day Care,Milestones Trust,1092.47, 27-Jan-2012
1200,Revenue,CCHD,Supported Living (S28a),Private & Voluntary Home Care,Milestones Trust,19690.92, 24-Jan-2012
1201,Revenue,CCHD,Supported Living (S28a),Private & Voluntary Home Care,Milestones Trust,4143.36, 26-Jan-2012
1202,Revenue,CCHD,Supported Living (S28a),Private & Voluntary Home Care,Milestones Trust,4143.36, 26-Jan-2012
1203,Revenue,CCHD,Supported Living (S28a),Private & Voluntary Home Care,Milestones Trust,3662.32, 26-Jan-2012
1204,Revenue,CCHD,Supported Living (S28a),Private & Voluntary Home Care,Milestones Trust,3662.32, 26-Jan-2012
1205,Revenue,CCHD,Supported Living (S28a),Private & Voluntary Home Care,Milestones Trust,3662.32, 26-Jan-2012
1206,Revenue,CCHD,Supported Living (S28a),Private & Voluntary Home Care,Milestones Trust,739.8, 26-Jan-2012
1207,Revenue,CCHD,Supported Living (S28a),Private & Voluntary Home Care,Milestones Trust,3719.12, 26-Jan-2012
1208,Revenue,CCHD,Supported Living (S28a),Private & Voluntary Home Care,Milestones Trust,9317.04, 26-Jan-2012
1209,Revenue,CCHD,Supported Living (S28a),Private & Voluntary Home Care,Milestones Trust,2800.89, 26-Jan-2012
1210,Revenue,CCHD,Supported Living (S28a),Private & Voluntary Home Care,Milestones Trust,2905.98, 26-Jan-2012
1211,Revenue,CCHD,Supported Living (S28a),Private & Voluntary Home Care,Milestones Trust,2996.69, 26-Jan-2012
1212,Revenue,CCHD,Supported Living (S28a),Private & Voluntary Home Care,Milestones Trust,5569.81, 26-Jan-2012
1213,Revenue,CCHD,Supported Living (S28a),Private & Voluntary Home Care,Milestones Trust,5602.95, 26-Jan-2012
1214,Revenue,CCHD,Supported Living (S28a),Private & Voluntary Home Care,Milestones Trust,3077.08, 31-Jan-2012
1215,Revenue,CCHD,Supported Living (S28a),Private & Voluntary Home Care,Milestones Trust,4394.77, 31-Jan-2012
1216,Revenue,CCHD,Under 65s PWLD - PS,Residential Homes,Miller Farm,3305, 24-Jan-2012
1217,Revenue,CCHD,Section 117 Placements,Nursing Homes,Mimosa Healthcare Holdings Ltd,1888, 24-Jan-2012
1218,Revenue,CCHD,Under 65s PWLD - KH,Residential Homes,Mmcg  Westcourt,12745.2, 24-Jan-2012
1219,Revenue,CCHD,Elderly Purchasing - North,Nursing Homes,Mortimer House Nursing Home,2552.88, 20-Jan-2012
1220,Revenue,CCHD,S28A - Over 65,Nursing Homes,Mortimer House Nursing Home,2521.56, 20-Jan-2012
1221,Revenue,CCHD,Elderly PWLD - KD,Nursing Homes,Mortimer House Nursing Home,10335.5, 20-Jan-2012
1222,Revenue,CCHD,Elderly PWLD - KD,Nursing Homes,Mortimer House Nursing Home,2953, 20-Jan-2012
1223,Revenue,CCHD,S28A - Over 65,Nursing Homes,Mortimer House Nursing Home,2521.56, 20-Jan-2012
1224,Revenue,CCHD,S28A - Over 65,Nursing Homes,Mortimer House Nursing Home,3227.8, 20-Jan-2012
1225,Revenue,CCHD,Elderly PWLD - PS,Nursing Homes,Mortimer House Nursing Home,2910.2, 20-Jan-2012
1226,Revenue,CCHD,S28A - Over 65,Nursing Homes,Mortimer House Nursing Home,3233, 20-Jan-2012
1227,Revenue,CCHD,Southmead Hospital Purchasing,Residential Homes,Mostyn Lodge Residential Home,1253, 24-Jan-2012
1228,Revenue,CCHD,Section 117 Placements,Residential Homes,Mostyn Lodge Residential Home,1848, 24-Jan-2012
1229,Revenue,CCHD,Supported Living - PS,Private & Voluntary Home Care,Moving On,3558.52, 09-Jan-2012
1230,Revenue,CCHD,Supported Living - PS,Private & Voluntary Home Care,Moving On,6255.06, 09-Jan-2012
1231,Revenue,CCHD,Under 65s PWLD - KH,Residential Homes,Mr J Davis & Mrs S Davis,1840, 31-Jan-2012
1232,Revenue,CCHD,Homelessness Grant,Other Supplies & Services,Mr Jack Davis,565, 11-Jan-2012
1233,Revenue,CCHD,Tenancy Start Up Scheme,Other Supplies & Services,Individual,625, 10-Jan-2012
1234,Revenue,CCHD,Homelessness Grant,Other Supplies & Services,Mr Peter Sargent,551.44, 11-Jan-2012
1235,Revenue,CCHD,Elderly MH non-res purchasing,Private & Voluntary Day Care,Mrs B Kimber,708.63, 16-Jan-2012
1236,Revenue,CCHD,Supported Living - KH,Private & Voluntary Home Care,Mrs B Kimber,1090.2, 09-Jan-2012
1237,Revenue,CCHD,Purchase of Non-Res Care - KH,Private & Voluntary Day Care,Mrs B Kimber,1343.4, 12-Jan-2012
1238,Revenue,CCHD,Day Care - North,Private & Voluntary Day Care,Mrs B Kimber,668.05, 12-Jan-2012
1239,Revenue,CCHD,Elderly MH non-res purchasing,Private & Voluntary Day Care,Mrs B Kimber,545.1, 20-Jan-2012
1240,Revenue,CCHD,Day Care - South,Private & Voluntary Day Care,Mrs B Kimber,591, 17-Jan-2012
1241,Revenue,CCHD,Purchase of Non-Res Care - KD,Private & Voluntary Day Care,Mrs B Kimber,598.34, 23-Jan-2012
1242,Revenue,CCHD,Supported Living - KD,Private & Voluntary Home Care,Mrs B Kimber,1093.46, 24-Jan-2012
1243,Revenue,CCHD,Supported Living - PS,Private & Voluntary Home Care,Mrs B Kimber,8475.36, 16-Jan-2012
1244,Revenue,CCHD,Supported Living - PS,Private & Voluntary Home Care,Mrs B Kimber,10440.58, 23-Jan-2012
1245,Revenue,CCHD,Day Care - South,Private & Voluntary Day Care,Mrs B Kimber,817.62, 26-Jan-2012
1246,Revenue,CCHD,Day Care - North,Private & Voluntary Day Care,Mrs B Kimber,1308.24, 26-Jan-2012
1247,Revenue,CCHD,Contracts & Commissioning Team,Other Small Contracts,Mrs B Kimber,88098.44, 24-Jan-2012
1248,Revenue,CCHD,Home Care Purch South,Other Small Contracts,Mrs B Kimber - Stepping Stones,2395.52, 19-Jan-2012
1249,Revenue,CCHD,Home Care Purch North,Other Small Contracts,Mrs B Kimber - Stepping Stones,1938.48, 19-Jan-2012
1250,Revenue,CCHD,Day Care - South,Private & Voluntary Day Care,Mrs B Kimber - Stepping Stones,669.8, 19-Jan-2012
1251,Revenue,CCHD,Day Care - North,Private & Voluntary Day Care,Mrs B Kimber - Stepping Stones,63.04, 19-Jan-2012
1252,Revenue,CCHD,Under 65s -MH  Home Care Purch,Other Small Contracts,Mrs B Kimber - Stepping Stones,193.06, 19-Jan-2012
1253,Revenue,CCHD,Elderly MH Home Care,Other Small Contracts,Mrs B Kimber - Stepping Stones,177.3, 19-Jan-2012
1254,Revenue,CCHD,Elderly MH non-res purchasing,Private & Voluntary Day Care,Mrs B Kimber - Stepping Stones,346.72, 19-Jan-2012
1255,Revenue,CCHD,Supported Living - KD,Private & Voluntary Home Care,Mrs B Kimber - Stepping Stones,788, 19-Jan-2012
1256,Revenue,CCHD,PWLD Home Care - Under 65 - KD,Private & Voluntary Home Care,Mrs B Kimber - Stepping Stones,47.28, 19-Jan-2012
1257,Revenue,CCHD,PWLD Home Care - Under 65 - KH,Private & Voluntary Home Care,Mrs B Kimber - Stepping Stones,153.66, 19-Jan-2012
1258,Revenue,CCHD,Home Care - Elderly LD - KD,Private & Voluntary Home Care,Mrs B Kimber - Stepping Stones,929.84, 19-Jan-2012
1259,Revenue,CCHD,Home Care Purch South,Other Small Contracts,Mrs B Kimber - Stepping Stones,2430.98, 19-Jan-2012
1260,Revenue,CCHD,Home Care Purch North,Other Small Contracts,Mrs B Kimber - Stepping Stones,1650.86, 19-Jan-2012
1261,Revenue,CCHD,Day Care - South,Private & Voluntary Day Care,Mrs B Kimber - Stepping Stones,614.64, 19-Jan-2012
1262,Revenue,CCHD,Day Care - North,Private & Voluntary Day Care,Mrs B Kimber - Stepping Stones,149.72, 19-Jan-2012
1263,Revenue,CCHD,Under 65s -MH  Home Care Purch,Other Small Contracts,Mrs B Kimber - Stepping Stones,187.09, 19-Jan-2012
1264,Revenue,CCHD,Elderly MH Home Care,Other Small Contracts,Mrs B Kimber - Stepping Stones,358.54, 19-Jan-2012
1265,Revenue,CCHD,Elderly MH non-res purchasing,Private & Voluntary Day Care,Mrs B Kimber - Stepping Stones,453.1, 19-Jan-2012
1266,Revenue,CCHD,Supported Living - KD,Private & Voluntary Home Care,Mrs B Kimber - Stepping Stones,858.92, 19-Jan-2012
1267,Revenue,CCHD,PWLD Home Care - Under 65 - KD,Private & Voluntary Home Care,Mrs B Kimber - Stepping Stones,47.28, 19-Jan-2012
1268,Revenue,CCHD,PWLD Home Care - Under 65 - KH,Private & Voluntary Home Care,Mrs B Kimber - Stepping Stones,118.2, 19-Jan-2012
1269,Revenue,CCHD,Home Care - Elderly LD - KD,Private & Voluntary Home Care,Mrs B Kimber - Stepping Stones,854.98, 19-Jan-2012
1270,Revenue,CCHD,Home Care Purch South,Other Small Contracts,Mrs B Kimber - Stepping Stones,2458.56, 19-Jan-2012
1271,Revenue,CCHD,Home Care Purch North,Other Small Contracts,Mrs B Kimber - Stepping Stones,2033.04, 19-Jan-2012
1272,Revenue,CCHD,Day Care - South,Private & Voluntary Day Care,Mrs B Kimber - Stepping Stones,661.92, 19-Jan-2012
1273,Revenue,CCHD,Day Care - North,Private & Voluntary Day Care,Mrs B Kimber - Stepping Stones,208.82, 19-Jan-2012
1274,Revenue,CCHD,Under 65s -MH  Home Care Purch,Other Small Contracts,Mrs B Kimber - Stepping Stones,209.1, 19-Jan-2012
1275,Revenue,CCHD,Elderly MH Home Care,Other Small Contracts,Mrs B Kimber - Stepping Stones,311.26, 19-Jan-2012
1276,Revenue,CCHD,Elderly MH non-res purchasing,Private & Voluntary Day Care,Mrs B Kimber - Stepping Stones,445.22, 19-Jan-2012
1277,Revenue,CCHD,Supported Living - KD,Private & Voluntary Home Care,Mrs B Kimber - Stepping Stones,795.88, 19-Jan-2012
1278,Revenue,CCHD,PWLD Home Care - Under 65 - KD,Private & Voluntary Home Care,Mrs B Kimber - Stepping Stones,47.28, 19-Jan-2012
1279,Revenue,CCHD,PWLD Home Care - Under 65 - KH,Private & Voluntary Home Care,Mrs B Kimber - Stepping Stones,27.58, 19-Jan-2012
1280,Revenue,CCHD,Home Care - Elderly LD - KD,Private & Voluntary Home Care,Mrs B Kimber - Stepping Stones,918.02, 19-Jan-2012
1281,Revenue,CCHD,Tenancy Start Up Scheme,Other Supplies & Services,Individual,595, 10-Jan-2012
1282,Revenue,CCHD,Social Lettings Agency,Other Supplies & Services,Individual,700.01, 13-Jan-2012
1283,Revenue,CCHD,Younger MH non-res purchasing,Private & Voluntary Home Care,Mrs Felicity Cooksley,1676, 16-Jan-2012
1284,Revenue,CCHD,Social Lettings Agency,Other Supplies & Services,Individual,565, 13-Jan-2012
1285,Revenue,CCHD,Tenancy Start Up Scheme,Other Supplies & Services,Individual,1425, 24-Jan-2012
1286,Revenue,CCHD,Purchase of Non-Res Care - KD,Private & Voluntary Day Care,Mrs W Thompson,1460, 13-Jan-2012
1287,Revenue,CCHD,Purchase of Non-Res Care - KD,Private & Voluntary Day Care,Mrs W Thompson,554, 13-Jan-2012
1288,Revenue,CCHD,Younger MH non-res purchasing,Private & Voluntary Day Care,NAS Services Limited,525.25, 23-Jan-2012
1289,Revenue,CCHD,Younger MH non-res purchasing,Private & Voluntary Day Care,NAS Services Limited,615.4, 27-Jan-2012
1290,Revenue,CCHD,Younger MH non-res purchasing,Private & Voluntary Day Care,NAS Services Limited,744.75, 18-Jan-2012
1291,Revenue,CCHD,Younger MH non-res purchasing,Private & Voluntary Day Care,Natureworks Training Community Interest,585, 09-Jan-2012
1292,Revenue,CCHD,Home Care Purch South,Other Small Contracts,Network Health & Social Care,544.32, 31-Jan-2012
1293,Revenue,CCHD,Home Care Purch North,Other Small Contracts,Network Health & Social Care,1769.04, 31-Jan-2012
1294,Revenue,CCHD,Elderly MH Home Care,Other Small Contracts,Network Health & Social Care,90.72, 31-Jan-2012
1295,Revenue,CCHD,Home Care Purch South,Other Small Contracts,Network Health & Social Care,540.54, 31-Jan-2012
1296,Revenue,CCHD,Home Care Purch North,Other Small Contracts,Network Health & Social Care,2013.65, 31-Jan-2012
1297,Revenue,CCHD,Elderly MH Home Care,Other Small Contracts,Network Health & Social Care,79.38, 31-Jan-2012
1298,Revenue,CCHD,Home Care Purch South,Other Small Contracts,Network Health & Social Care,548.1, 31-Jan-2012
1299,Revenue,CCHD,Home Care Purch North,Other Small Contracts,Network Health & Social Care,1833.3, 31-Jan-2012
1300,Revenue,CCHD,Elderly MH Home Care,Other Small Contracts,Network Health & Social Care,83.16, 31-Jan-2012
1301,Revenue,CCHD,Home Care Purch South,Other Small Contracts,Network Health & Social Care,548.1, 09-Jan-2012
1302,Revenue,CCHD,Home Care Purch North,Other Small Contracts,Network Health & Social Care,2088.97, 09-Jan-2012
1303,Revenue,CCHD,Elderly MH Home Care,Other Small Contracts,Network Health & Social Care,83.16, 09-Jan-2012
1304,Revenue,CCHD,Home Care Purch South,Other Small Contracts,Network Health & Social Care,536.76, 24-Jan-2012
1305,Revenue,CCHD,Home Care Purch North,Other Small Contracts,Network Health & Social Care,2114.4, 24-Jan-2012
1306,Revenue,CCHD,Elderly MH Home Care,Other Small Contracts,Network Health & Social Care,79.38, 24-Jan-2012
1307,Revenue,CCHD,Home Care Purch South,Other Small Contracts,Network Health & Social Care,510.3, 24-Jan-2012
1308,Revenue,CCHD,Home Care Purch North,Other Small Contracts,Network Health & Social Care,1780.38, 24-Jan-2012
1309,Revenue,CCHD,Elderly MH Home Care,Other Small Contracts,Network Health & Social Care,86.94, 24-Jan-2012
1310,Revenue,CCHD,Home Care Purch South,Other Small Contracts,Network Health & Social Care,540.54, 24-Jan-2012
1311,Revenue,CCHD,Home Care Purch North,Other Small Contracts,Network Health & Social Care,1651.86, 24-Jan-2012
1312,Revenue,CCHD,Elderly MH Home Care,Other Small Contracts,Network Health & Social Care,75.6, 24-Jan-2012
1313,Revenue,CCHD,Elderly Purchasing - North,Residential Homes,Newton House,850.48, 24-Jan-2012
1314,Revenue,CCHD,Purchase of Non-Res Care - KH,Private & Voluntary Day Care,Nightingale Care Homes,1471.75, 23-Jan-2012
1315,Revenue,CCHD,Under 65s PWLD - KH,Residential Homes,Nightingale Nursing Home,3037.08, 24-Jan-2012
1316,Revenue,CCHD,Training - Adult Services,Training Expenses,North Bristol NHS Trust,595, 18-Jan-2012
1317,Revenue,CCHD,Purchase of RAC places,Other L.A.'s - General,North Somerset Council,10124.83, 27-Jan-2012
1318,Revenue,CCHD,Under 65s PWLD - PS,Residential Homes,Norwood   Broadway House,4784.72, 24-Jan-2012
1319,Revenue,CCHD,LD - Kingswood PCT,Gas,npower,504.43, 09-Jan-2012
1320,Revenue,CCHD,Home Care Purch South,Other Small Contracts,Nursing Solutions Limited,1144.58, 10-Jan-2012
1321,Revenue,CCHD,Elderly MH Home Care,Other Small Contracts,Nursing Solutions Limited,329.73, 10-Jan-2012
1322,Revenue,CCHD,Elderly MH non-res purchasing,Private & Voluntary Day Care,Nursing Solutions Limited,197.08, 10-Jan-2012
1323,Revenue,CCHD,Home Care Purch South,Other Small Contracts,Nursing Solutions Limited,1114.26, 10-Jan-2012
1324,Revenue,CCHD,Elderly MH Home Care,Other Small Contracts,Nursing Solutions Limited,276.67, 10-Jan-2012
1325,Revenue,CCHD,Elderly MH non-res purchasing,Private & Voluntary Day Care,Nursing Solutions Limited,197.08, 10-Jan-2012
1326,Revenue,CCHD,Home Care Purch South,Other Small Contracts,Nursing Solutions Limited,1125.63, 19-Jan-2012
1327,Revenue,CCHD,Elderly MH Home Care,Other Small Contracts,Nursing Solutions Limited,318.36, 19-Jan-2012
1328,Revenue,CCHD,Elderly MH non-res purchasing,Private & Voluntary Day Care,Nursing Solutions Limited,136.44, 19-Jan-2012
1329,Revenue,CCHD,Home Care Purch South,Other Small Contracts,Nursing Solutions Limited,977.82, 19-Jan-2012
1330,Revenue,CCHD,Elderly MH Home Care,Other Small Contracts,Nursing Solutions Limited,329.73, 19-Jan-2012
1331,Revenue,CCHD,Elderly MH non-res purchasing,Private & Voluntary Day Care,Nursing Solutions Limited,147.81, 19-Jan-2012
1332,Revenue,CCHD,Elderly Purchasing - South,Residential Homes,Oaktree Lodge,1384.11, 24-Jan-2012
1333,Revenue,CCHD,Housing Advice,Grants to Voluntary Bodies,Orchard & Shipman PLC,13333.25, 30-Jan-2012
1334,Revenue,CCHD,S28A - Under 65,Residential Homes,Orchard End Limited,7466.16, 24-Jan-2012
1335,Revenue,CCHD,Elderly Mental Health,Residential Homes,Osborne House,1404.12, 24-Jan-2012
1336,Revenue,CCHD,Elderly Purchasing - North,Residential Homes,Osbourne Court,967.84, 24-Jan-2012
1337,Revenue,CCHD,Elderly Mental Health,Residential Homes,Osbourne Court,1389, 24-Jan-2012
1338,Revenue,CCHD,Section 117 Placements,Residential Homes,Osbourne Court,1848, 24-Jan-2012
1339,Revenue,CCHD,Section 117 Placements,Residential Homes,Osbourne Court,1688, 24-Jan-2012
1340,Revenue,CCHD,Elderly Purchasing - North,Residential Homes,Osbourne Court,1030.76, 24-Jan-2012
1341,Revenue,CCHD,Elderly Mental Health,Residential Homes,Osbourne Court,1421, 24-Jan-2012
1342,Revenue,CCHD,Section 117 Placements,Residential Homes,Osbourne Court,1848, 24-Jan-2012
1343,Revenue,CCHD,Frenchay Hospital Purchasing,Residential Homes,Osbourne Court,1187.8, 24-Jan-2012
1344,Revenue,CCHD,Elderly Mental Health,Residential Homes,Park Farm House,1331.48, 24-Jan-2012
1345,Revenue,CCHD,Elderly Purchasing - South,Residential Homes,Park Farm House,1498.8, 24-Jan-2012
1346,Revenue,CCHD,Elderly Mental Health,Residential Homes,Park Farm House,1566.4, 24-Jan-2012
1347,Revenue,CCHD,Elderly Mental Health,Residential Homes,Park Farm House,1106, 24-Jan-2012
1348,Revenue,CCHD,Elderly PWLD - KH,Residential Homes,Park Hall,4785.48, 24-Jan-2012
1349,Revenue,CCHD,Under 65s PWLD - KH,Residential Homes,Park Hall,4196.32, 24-Jan-2012
1350,Revenue,CCHD,Under 65s PWLD - KH,Residential Homes,Park Hall,4825.08, 24-Jan-2012
1351,Revenue,CCHD,Under 65s PWLD - KH,Residential Homes,Park Hall,12336.4, 24-Jan-2012
1352,Revenue,CCHD,Under 65s PWLD - PS,Residential Homes,Park Hall,5420.4, 24-Jan-2012
1353,Revenue,CCHD,Elderly PWLD - KH,Residential Homes,Park Hall,2470.16, 24-Jan-2012
1354,Revenue,CCHD,Under 65s PWLD - KD,Residential Homes,Park Hall,2720.8, 24-Jan-2012
1355,Revenue,CCHD,S28A - Under 65,Residential Homes,Park Hall,4506.8, 24-Jan-2012
1356,Revenue,CCHD,S28A - Over 65,Residential Homes,Park Hall,5163.72, 24-Jan-2012
1357,Revenue,CCHD,Under 65s PWLD - KH,Residential Homes,Park Hall,6276.68, 24-Jan-2012
1358,Revenue,CCHD,Under 65s PWLD - KD,Residential Homes,Park Hall,2149.28, 24-Jan-2012
1359,Revenue,CCHD,Under 65s PWLD - KH,Residential Homes,Park Hall,4801.96, 24-Jan-2012
1360,Revenue,CCHD,S28A - Under 65,Residential Homes,Park Hall,5705, 24-Jan-2012
1361,Revenue,CCHD,S28A - Under 65,Residential Homes,Park Hall,5436.32, 24-Jan-2012
1362,Revenue,CCHD,Southmead Hospital Purchasing,Residential Homes,Park House,1287.96, 24-Jan-2012
1363,Revenue,CCHD,Southmead Hospital Purchasing,Residential Homes,Park House,1389, 24-Jan-2012
1364,Revenue,CCHD,Elderly Purchasing - South,Residential Homes,Park Street Home,2012.48, 24-Jan-2012
1365,Revenue,CCHD,Under 65s PWLD - KH,Residential Homes,Penleigh House Care Home,4389.32, 24-Jan-2012
1366,Revenue,CCHD,Under 65s PWLD - KD,Residential Homes,Penleigh House Care Home,5101.28, 24-Jan-2012
1367,Revenue,CCHD,Elderly PWLD - KD,Residential Homes,Penleigh House Care Home,4162.72, 24-Jan-2012
1368,Revenue,CCHD,Under 65s PWLD - KD,Residential Homes,Penleigh House Care Home,4326.72, 24-Jan-2012
1369,Revenue,CCHD,S28A - Under 65,Residential Homes,Penleigh House Care Home,5288.92, 24-Jan-2012
1370,Revenue,CCHD,Under 65s PWLD - KD,Residential Homes,Penleigh House Care Home,4778.72, 24-Jan-2012
1371,Revenue,CCHD,Southmead Hospital Purchasing,Residential Homes,Petersfield Ad Care Home,815.76, 24-Jan-2012
1372,Revenue,CCHD,LD - Kingswood PCT,Refuse Collection Charges,PHS Group Plc,447.06, 26-Jan-2012
1373,Revenue,CCHD,Bed and Breakfast,Bed & Breakfast,Pleasant Bed & Breakfast Limited,504, 27-Jan-2012
1374,Revenue,CCHD,Bed and Breakfast,Bed & Breakfast,Pleasant Bed & Breakfast Limited,532, 13-Jan-2012
1375,Revenue,CCHD,Home Care Purch North,Other Small Contracts,Premier Homecare Limited,5475.48, 04-Jan-2012
1376,Revenue,CCHD,Day Care - North,Private & Voluntary Day Care,Premier Homecare Limited,177.2, 04-Jan-2012
1377,Revenue,CCHD,Elderly MH Home Care,Other Small Contracts,Premier Homecare Limited,305.67, 04-Jan-2012
1378,Revenue,CCHD,Elderly MH non-res purchasing,Private & Voluntary Day Care,Premier Homecare Limited,416.42, 04-Jan-2012
1379,Revenue,CCHD,Home Care Purch North,Other Small Contracts,Premier Homecare Limited,4865.62, 12-Jan-2012
1380,Revenue,CCHD,Day Care - North,Private & Voluntary Day Care,Premier Homecare Limited,198.16, 12-Jan-2012
1381,Revenue,CCHD,Elderly MH Home Care,Other Small Contracts,Premier Homecare Limited,235.68, 12-Jan-2012
1382,Revenue,CCHD,Elderly MH non-res purchasing,Private & Voluntary Day Care,Premier Homecare Limited,420.85, 12-Jan-2012
1383,Revenue,CCHD,Home Care Purch North,Other Small Contracts,Premier Homecare Limited,4429.11, 23-Jan-2012
1384,Revenue,CCHD,Day Care - North,Private & Voluntary Day Care,Premier Homecare Limited,145.32, 23-Jan-2012
1385,Revenue,CCHD,Elderly MH Home Care,Other Small Contracts,Premier Homecare Limited,266.69, 23-Jan-2012
1386,Revenue,CCHD,Elderly MH non-res purchasing,Private & Voluntary Day Care,Premier Homecare Limited,352.33, 23-Jan-2012
1387,Revenue,CCHD,Home Care Purch North,Other Small Contracts,Premier Homecare Limited,4542.26, 24-Jan-2012
1388,Revenue,CCHD,Day Care - North,Private & Voluntary Day Care,Premier Homecare Limited,202.3, 24-Jan-2012
1389,Revenue,CCHD,Elderly MH Home Care,Other Small Contracts,Premier Homecare Limited,310.99, 24-Jan-2012
1390,Revenue,CCHD,Elderly MH non-res purchasing,Private & Voluntary Day Care,Premier Homecare Limited,420.85, 24-Jan-2012
1391,Revenue,CCHD,Home Care Purch South,Other Small Contracts,Prestige Nursing,676.2, 24-Jan-2012
1392,Revenue,CCHD,Home Care Purch North,Other Small Contracts,Prestige Nursing,676.2, 24-Jan-2012
1393,Revenue,CCHD,Day Care - South,Private & Voluntary Day Care,Prestige Nursing,424.2, 24-Jan-2012
1394,Revenue,CCHD,Day Care - North,Private & Voluntary Day Care,Prestige Nursing,1323, 24-Jan-2012
1395,Revenue,CCHD,Elderly MH Home Care,Other Small Contracts,Prestige Nursing,289.8, 24-Jan-2012
1396,Revenue,CCHD,Elderly MH non-res purchasing,Private & Voluntary Day Care,Prestige Nursing,798, 24-Jan-2012
1397,Revenue,CCHD,Home Care Purch South,Other Small Contracts,Prestige Nursing,541.8, 24-Jan-2012
1398,Revenue,CCHD,Home Care Purch North,Other Small Contracts,Prestige Nursing,663.6, 24-Jan-2012
1399,Revenue,CCHD,Day Care - South,Private & Voluntary Day Care,Prestige Nursing,319.2, 24-Jan-2012
1400,Revenue,CCHD,Day Care - North,Private & Voluntary Day Care,Prestige Nursing,1146.6, 24-Jan-2012
1401,Revenue,CCHD,Elderly MH Home Care,Other Small Contracts,Prestige Nursing,327.6, 24-Jan-2012
1402,Revenue,CCHD,Elderly MH non-res purchasing,Private & Voluntary Day Care,Prestige Nursing,676.2, 24-Jan-2012
1403,Revenue,CCHD,Home Care Purch South,Other Small Contracts,Prestige Nursing,541.8, 31-Jan-2012
1404,Revenue,CCHD,Home Care Purch North,Other Small Contracts,Prestige Nursing,735, 31-Jan-2012
1405,Revenue,CCHD,Day Care - South,Private & Voluntary Day Care,Prestige Nursing,168, 31-Jan-2012
1406,Revenue,CCHD,Day Care - North,Private & Voluntary Day Care,Prestige Nursing,1071, 31-Jan-2012
1407,Revenue,CCHD,Elderly MH Home Care,Other Small Contracts,Prestige Nursing,310.8, 31-Jan-2012
1408,Revenue,CCHD,Elderly MH non-res purchasing,Private & Voluntary Day Care,Prestige Nursing,491.4, 31-Jan-2012
1409,Revenue,CCHD,Home Care Purch South,Other Small Contracts,Prestige Nursing,596.4, 31-Jan-2012
1410,Revenue,CCHD,Home Care Purch North,Other Small Contracts,Prestige Nursing,726.6, 31-Jan-2012
1411,Revenue,CCHD,Day Care - South,Private & Voluntary Day Care,Prestige Nursing,389.95, 31-Jan-2012
1412,Revenue,CCHD,Day Care - North,Private & Voluntary Day Care,Prestige Nursing,1297.8, 31-Jan-2012
1413,Revenue,CCHD,Elderly MH Home Care,Other Small Contracts,Prestige Nursing,327.6, 31-Jan-2012
1414,Revenue,CCHD,Elderly MH non-res purchasing,Private & Voluntary Day Care,Prestige Nursing,747.6, 31-Jan-2012
1415,Revenue,CCHD,Home Care Purch South,Other Small Contracts,Prestige Nursing,814.8, 31-Jan-2012
1416,Revenue,CCHD,Home Care Purch North,Other Small Contracts,Prestige Nursing,726.6, 31-Jan-2012
1417,Revenue,CCHD,Day Care - South,Private & Voluntary Day Care,Prestige Nursing,420, 31-Jan-2012
1418,Revenue,CCHD,Day Care - North,Private & Voluntary Day Care,Prestige Nursing,1369.2, 31-Jan-2012
1419,Revenue,CCHD,Elderly MH Home Care,Other Small Contracts,Prestige Nursing,340.2, 31-Jan-2012
1420,Revenue,CCHD,Elderly MH non-res purchasing,Private & Voluntary Day Care,Prestige Nursing,743.4, 31-Jan-2012
1421,Revenue,CCHD,Purchasing Phys Dis - North,Nursing Homes,Prior Mews Care Home,5700.16, 24-Jan-2012
1422,Revenue,CCHD,South Glos Users in all other LA Homes,Nursing Homes,Prior Mews Care Home,598.4, 24-Jan-2012
1423,Revenue,CCHD,Elderly Mental Health,Residential Homes,Prior Mews Care Home,1006.32, 24-Jan-2012
1424,Revenue,CCHD,Emersons Green Offices,Prop.Serv. General Repairs,Professional Hygiene Ltd,952.6, 26-Jan-2012
1425,Revenue,CCHD,Kingswood District Office,Postages,Purchase Power,513, 13-Jan-2012
1426,Revenue,CCHD,Frenchay Hospital Purchasing,Residential Homes,Quality Care Homes Ltd,1229, 24-Jan-2012
1427,Revenue,CCHD,Elderly Purchasing - South,Residential Homes,Quality Care Homes Ltd,1238.96, 24-Jan-2012
1428,Revenue,CCHD,Elderly Purchasing - South,Residential Homes,Quality Care Homes Ltd,1229, 24-Jan-2012
1429,Revenue,CCHD,Elderly Purchasing - South,Residential Homes,Quality Care Homes Ltd,1396, 24-Jan-2012
1430,Revenue,CCHD,Elderly Purchasing - South,Residential Homes,Quality Care Homes Ltd,1128.96, 24-Jan-2012
1431,Revenue,CCHD,Elderly Purchasing - South,Residential Homes,Quality Care Homes Ltd,1808, 24-Jan-2012
1432,Revenue,CCHD,Elderly Purchasing - South,Residential Homes,Quality Care Homes Ltd,1242.8, 24-Jan-2012
1433,Revenue,CCHD,Southmead Hospital Purchasing,Residential Homes,Quality Care Homes Ltd,2473.68, 24-Jan-2012
1434,Revenue,CCHD,Southmead Hospital Purchasing,Residential Homes,Quality Care Homes Ltd,1254.16, 24-Jan-2012
1435,Revenue,CCHD,Southmead Hospital Purchasing,Residential Homes,Quality Care Homes Ltd,1199.04, 24-Jan-2012
1436,Revenue,CCHD,Elderly Mental Health,Residential Homes,Quality Care Homes Ltd,1229, 24-Jan-2012
1437,Revenue,CCHD,Elderly Mental Health,Residential Homes,Quality Care Homes Ltd,1053.43, 24-Jan-2012
1438,Revenue,CCHD,Southmead Hospital Purchasing,Residential Homes,Quality Care Homes Ltd,1232.16, 24-Jan-2012
1439,Revenue,CCHD,Southmead Hospital Purchasing,Residential Homes,Quality Care Homes Ltd,727.52, 24-Jan-2012
1440,Revenue,CCHD,Elderly Mental Health,Nursing Homes,Ravenswood,1266.8, 24-Jan-2012
1441,Revenue,CCHD,Elderly Mental Health,Residential Homes,Ravenswood,2148.24, 24-Jan-2012
1442,Revenue,CCHD,Section 117 Placements,Nursing Homes,Redholme Memory Care Limited,1912, 24-Jan-2012
1443,Revenue,CCHD,Elderly Purchasing - South,Nursing Homes,Regent House,1620.8, 24-Jan-2012
1444,Revenue,CCHD,South Glos Users in South Glos Homes,Nursing Homes,Regent House,2500.1, 24-Jan-2012
1445,Revenue,CCHD,Southmead Hospital Purchasing,Nursing Homes,Regent House,2577.36, 24-Jan-2012
1446,Revenue,CCHD,Elderly Purchasing - South,Nursing Homes,Regent House,1620.8, 24-Jan-2012
1447,Revenue,CCHD,South Glos Users in South Glos Homes,Nursing Homes,Regent House,4394.59, 24-Jan-2012
1448,Revenue,CCHD,Elderly Purchasing - South,Nursing Homes,Regent House,621.2, 24-Jan-2012
1449,Revenue,CCHD,Southmead Hospital Purchasing,Nursing Homes,Regent House,1367, 24-Jan-2012
1450,Revenue,CCHD,Elderly Purchasing - South,Nursing Homes,Regent House,2465.2, 24-Jan-2012
1451,Revenue,CCHD,Elderly Purchasing - South,Nursing Homes,Regent House,1102.6, 24-Jan-2012
1452,Revenue,CCHD,Elderly Mental Health,Nursing Homes,Regent House,1906.2, 24-Jan-2012
1453,Revenue,CCHD,Elderly Mental Health,Nursing Homes,Regent House,1053.04, 24-Jan-2012
1454,Revenue,CCHD,Elderly Mental Health,Nursing Homes,Regent House,1282.72, 24-Jan-2012
1455,Revenue,CCHD,Elderly PWLD - PS,Residential Homes,Renaissance,2156.6, 24-Jan-2012
1456,Revenue,CCHD,Under 65s PWLD - PS,Residential Homes,Ridgeway House,3373.32, 24-Jan-2012
1457,Revenue,CCHD,Under 65s PWLD - PS,Residential Homes,Ridingleaze,5956, 24-Jan-2012
1458,Revenue,CCHD,Elderly Purchasing - South,Nursing Homes,Riversway Nursing Home,1146.88, 24-Jan-2012
1459,Revenue,CCHD,Southmead Hospital Purchasing,Nursing Homes,Riversway Nursing Home,1334.52, 24-Jan-2012
1460,Revenue,CCHD,Southmead Hospital Purchasing,Nursing Homes,Riversway Nursing Home,1690.2, 24-Jan-2012
1461,Revenue,CCHD,Elderly PWLD - PS,Residential Homes,Rockleaze,2134.16, 24-Jan-2012
1462,Revenue,CCHD,Elderly PWLD - PS,Residential Homes,Rockleaze,1386.56, 24-Jan-2012
1463,Revenue,CCHD,S28A - Over 65,Residential Homes,Rockleaze,2015.52, 24-Jan-2012
1464,Revenue,CCHD,Under 65s PWLD - PS,Residential Homes,Rockleaze,2335.08, 24-Jan-2012
1465,Revenue,CCHD,Elderly PWLD - PS,Residential Homes,Rockleaze,1386.56, 24-Jan-2012
1466,Revenue,CCHD,Under 65s PWLD - PS,Residential Homes,Rosewood Lodge & Brook House,15676.32, 24-Jan-2012
1467,Revenue,CCHD,Elderly Mental Health,Residential Homes,Ross Healthcare,1265.36, 24-Jan-2012
1468,Revenue,CCHD,Frenchay Hospital Purchasing,Residential Homes,Roundham Court,1229, 24-Jan-2012
1469,Revenue,CCHD,MH Purchasing - Younger,Residential Homes,Ruskin Mill College,2664.09, 24-Jan-2012
1470,Revenue,CCHD,LD - Kingswood PCT,Agency Staff (Operational)/PCT Pay,Ryeford Cleaning Services Limited,628.33, 31-Jan-2012
1471,Revenue,CCHD,Home Care Purch North,Other Small Contracts,Saga Homecare,1927.73, 10-Jan-2012
1472,Revenue,CCHD,Home Care Purch North,Other Small Contracts,Saga Homecare,1927.73, 10-Jan-2012
1473,Revenue,CCHD,Home Care Purch North,Other Small Contracts,Saga Homecare,1927.73, 10-Jan-2012
1474,Revenue,CCHD,Under 65s PWLD - PS,Residential Homes,Salters Hill Barn,1964.08, 24-Jan-2012
1475,Revenue,CCHD,Woodleaze,"Provisions (Food, etc)",School Milk Services Limited,920.91, 30-Jan-2012
1476,Revenue,CCHD,Charlton,"Provisions (Food, etc)",School Milk Services Limited,781.2, 30-Jan-2012
1477,Revenue,CCHD,Under 65s PWLD - KH,Residential Homes,Scope   Accounts Dept,4926.6, 24-Jan-2012
1478,Revenue,CCHD,Under 65s PWLD - KH,Residential Homes,Scope   Accounts Dept,3016.28, 24-Jan-2012
1479,Revenue,CCHD,Section 117 Placements,Residential Homes,Sedbury Park Care Centre,847.63, 24-Jan-2012
1480,Revenue,CCHD,Frenchay Hospital Purchasing,Residential Homes,Sedbury Park Care Centre,764.16, 24-Jan-2012
1481,Revenue,CCHD,Frenchay Hospital Purchasing,Nursing Homes,Sedbury Park Care Centre,534.48, 24-Jan-2012
1482,Revenue,CCHD,Supported Living - KH,Private & Voluntary Home Care,SeeAbility,825, 13-Jan-2012
1483,Revenue,CCHD,Supported Living - KH,Private & Voluntary Home Care,SeeAbility,1650, 13-Jan-2012
1484,Revenue,CCHD,Supported Living - KH,Private & Voluntary Home Care,SeeAbility,1617, 13-Jan-2012
1485,Revenue,CCHD,Supported Living - KH,Private & Voluntary Home Care,SeeAbility,1947, 13-Jan-2012
1486,Revenue,CCHD,Supported Living - KH,Private & Voluntary Home Care,SeeAbility,1278.75, 13-Jan-2012
1487,Revenue,CCHD,Supported Living - KH,Private & Voluntary Home Care,SeeAbility,1551, 13-Jan-2012
1488,Revenue,CCHD,Supported Living - KH,Private & Voluntary Home Care,SeeAbility,1023, 13-Jan-2012
1489,Revenue,CCHD,Supported Living - PS,Private & Voluntary Home Care,Selborne Care Ltd,1706.4, 17-Jan-2012
1490,Revenue,CCHD,Supported Living - PS,Private & Voluntary Home Care,Selborne Care Ltd,1706.4, 03-Jan-2012
1491,Revenue,CCHD,Supported Living - PS,Private & Voluntary Home Care,Selborne Care Ltd,2602.88, 09-Jan-2012
1492,Revenue,CCHD,Supported Living - PS,Private & Voluntary Home Care,Selborne Care Ltd,4877, 03-Jan-2012
1493,Revenue,CCHD,Supported Living - PS,Private & Voluntary Home Care,Selborne Care Ltd,4997.44, 09-Jan-2012
1494,Revenue,CCHD,Supported Living - KH,Private & Voluntary Home Care,Selborne Care Ltd,1129.6, 12-Jan-2012
1495,Revenue,CCHD,Supported Living - KH,Private & Voluntary Home Care,Selborne Care Ltd,501.76, 12-Jan-2012
1496,Revenue,CCHD,Supported Living - PS,Private & Voluntary Home Care,Selborne Care Ltd,4557, 09-Jan-2012
1497,Revenue,CCHD,Supported Living - KH,Private & Voluntary Home Care,Selborne Care Ltd,540.44, 09-Jan-2012
1498,Revenue,CCHD,Supported Living - PS,Private & Voluntary Home Care,Selborne Care Ltd,1848.64, 03-Jan-2012
1499,Revenue,CCHD,Supported Living - PS,Private & Voluntary Home Care,Selborne Care Ltd,1706.4, 31-Jan-2012
1500,Revenue,CCHD,Supported Living - PS,Private & Voluntary Home Care,Selborne Care Ltd,2657.76, 31-Jan-2012
1501,Revenue,CCHD,Supported Living - PS,Private & Voluntary Home Care,Selborne Care Ltd,1129.92, 31-Jan-2012
1502,Revenue,CCHD,Supported Living - PS,Private & Voluntary Home Care,Selborne Care Ltd,4883, 31-Jan-2012
1503,Revenue,CCHD,Supported Living - PS,Private & Voluntary Home Care,Selborne Care Ltd,4557, 31-Jan-2012
1504,Revenue,CCHD,Home Care Purch South,Other Small Contracts,Servoca Nursing & Care,1189.87, 04-Jan-2012
1505,Revenue,CCHD,Home Care Purch North,Other Small Contracts,Servoca Nursing & Care,104.44, 04-Jan-2012
1506,Revenue,CCHD,Day Care - South,Private & Voluntary Day Care,Servoca Nursing & Care,660.21, 04-Jan-2012
1507,Revenue,CCHD,Day Care - North,Private & Voluntary Day Care,Servoca Nursing & Care,343.16, 04-Jan-2012
1508,Revenue,CCHD,Younger MH non-res purchasing,Private & Voluntary Day Care,Servoca Nursing & Care,44.76, 04-Jan-2012
1509,Revenue,CCHD,Elderly MH non-res purchasing,Private & Voluntary Day Care,Servoca Nursing & Care,93.25, 04-Jan-2012
1510,Revenue,CCHD,Home Care Purch South,Other Small Contracts,Servoca Nursing & Care,1167.49, 10-Jan-2012
1511,Revenue,CCHD,Home Care Purch North,Other Small Contracts,Servoca Nursing & Care,111.9, 10-Jan-2012
1512,Revenue,CCHD,Day Care - South,Private & Voluntary Day Care,Servoca Nursing & Care,600.53, 10-Jan-2012
1513,Revenue,CCHD,Day Care - North,Private & Voluntary Day Care,Servoca Nursing & Care,253.64, 10-Jan-2012
1514,Revenue,CCHD,Younger MH non-res purchasing,Private & Voluntary Day Care,Servoca Nursing & Care,48.49, 10-Jan-2012
1515,Revenue,CCHD,Supported Living - KD,Private & Voluntary Home Care,Servoca Nursing & Care,29.84, 10-Jan-2012
1516,Revenue,CCHD,Home Care Purch South,Other Small Contracts,Servoca Nursing & Care,999.64, 24-Jan-2012
1517,Revenue,CCHD,Home Care Purch North,Other Small Contracts,Servoca Nursing & Care,89.52, 24-Jan-2012
1518,Revenue,CCHD,Day Care - South,Private & Voluntary Day Care,Servoca Nursing & Care,462.52, 24-Jan-2012
1519,Revenue,CCHD,Day Care - North,Private & Voluntary Day Care,Servoca Nursing & Care,134.28, 24-Jan-2012
1520,Revenue,CCHD,Younger MH non-res purchasing,Private & Voluntary Day Care,Servoca Nursing & Care,44.76, 24-Jan-2012
1521,Revenue,CCHD,Elderly MH non-res purchasing,Private & Voluntary Day Care,Servoca Nursing & Care,93.25, 24-Jan-2012
1522,Revenue,CCHD,Supported Living - KD,Private & Voluntary Home Care,Servoca Nursing & Care,59.68, 24-Jan-2012
1523,Revenue,CCHD,Home Care Purch South,Other Small Contracts,Servoca Nursing & Care,1249.55, 24-Jan-2012
1524,Revenue,CCHD,Home Care Purch North,Other Small Contracts,Servoca Nursing & Care,134.28, 24-Jan-2012
1525,Revenue,CCHD,Day Care - South,Private & Voluntary Day Care,Servoca Nursing & Care,630.37, 24-Jan-2012
1526,Revenue,CCHD,Day Care - North,Private & Voluntary Day Care,Servoca Nursing & Care,238.72, 24-Jan-2012
1527,Revenue,CCHD,Younger MH non-res purchasing,Private & Voluntary Day Care,Servoca Nursing & Care,44.76, 24-Jan-2012
1528,Revenue,CCHD,Elderly MH non-res purchasing,Private & Voluntary Day Care,Servoca Nursing & Care,93.25, 24-Jan-2012
1529,Revenue,CCHD,Supported Living - KD,Private & Voluntary Home Care,Servoca Nursing & Care,89.52, 24-Jan-2012
1530,Revenue,CCHD,Home Care Purch South,Other Small Contracts,Servoca Nursing & Care,1298.04, 31-Jan-2012
1531,Revenue,CCHD,Home Care Purch North,Other Small Contracts,Servoca Nursing & Care,134.28, 31-Jan-2012
1532,Revenue,CCHD,Day Care - South,Private & Voluntary Day Care,Servoca Nursing & Care,671.4, 31-Jan-2012
1533,Revenue,CCHD,Day Care - North,Private & Voluntary Day Care,Servoca Nursing & Care,264.83, 31-Jan-2012
1534,Revenue,CCHD,Younger MH non-res purchasing,Private & Voluntary Day Care,Servoca Nursing & Care,52.22, 31-Jan-2012
1535,Revenue,CCHD,Elderly MH non-res purchasing,Private & Voluntary Day Care,Servoca Nursing & Care,123.09, 31-Jan-2012
1536,Revenue,CCHD,Supported Living - KD,Private & Voluntary Home Care,Servoca Nursing & Care,89.52, 31-Jan-2012
1537,Revenue,CCHD,Purchase of Non-Res Care - KH,Private & Voluntary Day Care,Servoca Nursing & Care,1253.77, 09-Jan-2012
1538,Revenue,CCHD,Purchase of Non-Res Care - KH,Private & Voluntary Day Care,Servoca Nursing & Care,1238.77, 09-Jan-2012
1539,Revenue,CCHD,Purchase of Non-Res Care - KH,Private & Voluntary Day Care,Servoca Nursing & Care,1238.77, 09-Jan-2012
1540,Revenue,CCHD,Purchase of Non-Res Care - KH,Private & Voluntary Day Care,Servoca Nursing & Care,1238.77, 19-Jan-2012
1541,Revenue,CCHD,Adult Learning Difficulties - Kingswood,Other Employee Expenses,Seven Social Care Limited,639.38, 11-Jan-2012
1542,Revenue,CCHD,Adult Learning Difficulties - Kingswood,Other Employee Expenses,Seven Social Care Limited,1074.75, 11-Jan-2012
1543,Revenue,CCHD,Adult Learning Difficulties - Kingswood,Other Employee Expenses,Seven Social Care Limited,928.13, 16-Jan-2012
1544,Revenue,CCHD,Southmead Hospital Purchasing,Nursing Homes,Shaw Healthcare Ltd,1453, 24-Jan-2012
1545,Revenue,CCHD,Elderly Mental Health,Nursing Homes,Shaw Healthcare Ltd,1231.84, 24-Jan-2012
1546,Revenue,CCHD,S28A - Under 65,Residential Homes,Shaw Healthcare Ltd,10457.12, 24-Jan-2012
1547,Revenue,CCHD,S28A - Under 65,Residential Homes,Shaw Healthcare Ltd,10293.12, 24-Jan-2012
1548,Revenue,CCHD,S28A - Under 65,Residential Homes,Shaw Healthcare Ltd,10457.12, 24-Jan-2012
1549,Revenue,CCHD,S117 Placements PCT,Residential Homes,Shaw Healthcare Ltd,15106.96, 24-Jan-2012
1550,Revenue,CCHD,Under 65s PWLD - PS,Nursing Homes,Shaw Healthcare Ltd,9513.68, 24-Jan-2012
1551,Revenue,CCHD,Under 65s PWLD - KD,Residential Homes,Shaw Healthcare Ltd,8935.92, 24-Jan-2012
1552,Revenue,CCHD,S28A - Under 65,Residential Homes,Shaw Healthcare Ltd,10137, 24-Jan-2012
1553,Revenue,CCHD,S28A - Under 65,Residential Homes,Shaw Healthcare Ltd,11756.44, 24-Jan-2012
1554,Revenue,CCHD,S28A - Under 65,Residential Homes,Shaw Healthcare Ltd,4681.16, 24-Jan-2012
1555,Revenue,CCHD,S28A - Over 65,Residential Homes,Shaw Healthcare Ltd,4681.16, 24-Jan-2012
1556,Revenue,CCHD,Under 65s PWLD - PS,Nursing Homes,Shaw Healthcare Ltd,9842, 24-Jan-2012
1557,Revenue,CCHD,S28A - Over 65,Residential Homes,Shaw Healthcare Ltd,4681.16, 24-Jan-2012
1558,Revenue,CCHD,S28A - Over 65,Residential Homes,Shaw Healthcare Ltd,4681.16, 24-Jan-2012
1559,Revenue,CCHD,S28A - Over 65,Residential Homes,Shaw Healthcare Ltd,4688.84, 24-Jan-2012
1560,Revenue,CCHD,S28A - Under 65,Residential Homes,Shaw Healthcare Ltd,9131.32, 24-Jan-2012
1561,Revenue,CCHD,S28A - Over 65,Residential Homes,Shaw Healthcare Ltd,8935.92, 24-Jan-2012
1562,Revenue,CCHD,Purchase of Non-Res Care - KD,Private & Voluntary Day Care,Shaw Healthcare Specialist Services Ltd,696.83, 24-Jan-2012
1563,Revenue,CCHD,Supported Living - KH,Private & Voluntary Home Care,Silva Care Limited,4415.44, 09-Jan-2012
1564,Revenue,CCHD,Day Care - North,Private & Voluntary Day Care,Silva Care Limited,757.53, 12-Jan-2012
1565,Revenue,CCHD,Elderly Purchasing - North,Residential Homes,Simeon Care For The Elderly,2853.28, 24-Jan-2012
1566,Revenue,CCHD,Blackhorse RAC,Refuse Collection Charges,SITA UK LTD,583.14, 06-Jan-2012
1567,Revenue,CCHD,Newton House,Refuse Collection Charges,SITA UK LTD,583.14, 25-Jan-2012
1568,Revenue,CCHD,Downend Day Centre,Refuse Collection Charges,SITA UK LTD,793.1, 26-Jan-2012
1569,Revenue,CCHD,Under 65s PWLD - KD,Residential Homes,Small House Homes Limited,34617.36, 24-Jan-2012
1570,Revenue,CCHD,Day Care - South,Private & Voluntary Day Care,Smile Independent Living Support Limited,576.2, 12-Jan-2012
1571,Revenue,CCHD,Purchase of Non-Res Care - PS,Private & Voluntary Day Care,Smile Independent Living Support Limited,566.7, 17-Jan-2012
1572,Revenue,CCHD,Purchase of Non-Res Care - KD,Private & Voluntary Day Care,Smile Independent Living Support Limited,930.4, 16-Jan-2012
1573,Revenue,CCHD,Supported Living - KD,Private & Voluntary Home Care,Smile Independent Living Support Limited,4133.86, 16-Jan-2012
1574,Revenue,CCHD,Supported Living - KD,Private & Voluntary Home Care,Smile Independent Living Support Limited,4236.41, 16-Jan-2012
1575,Revenue,CCHD,Purchase of Non-Res Care - KD,Private & Voluntary Day Care,Smile Independent Living Support Limited,881.3, 16-Jan-2012
1576,Revenue,CCHD,Supported Living - KD,Private & Voluntary Home Care,Smile Independent Living Support Limited,1055.93, 16-Jan-2012
1577,Revenue,CCHD,Supported Living - KD,Private & Voluntary Home Care,Smile Independent Living Support Limited,1931.73, 16-Jan-2012
1578,Revenue,CCHD,Purchase of Non-Res Care - KD,Private & Voluntary Day Care,Smile Independent Living Support Limited,1181.65, 16-Jan-2012
1579,Revenue,CCHD,Purchase of Non-Res Care - KD,Private & Voluntary Day Care,Smile Independent Living Support Limited,923.22, 16-Jan-2012
1580,Revenue,CCHD,Purchase of Non-Res Care - KD,Private & Voluntary Day Care,Smile Independent Living Support Limited,911.2, 16-Jan-2012
1581,Revenue,CCHD,Purchase of Non-Res Care - KD,Private & Voluntary Day Care,Smile Independent Living Support Limited,2817.03, 16-Jan-2012
1582,Revenue,CCHD,Purchase of Non-Res Care - KD,Private & Voluntary Day Care,Smile Indpendent Living Support Ltd,1048.8, 09-Jan-2012
1583,Revenue,CCHD,Purchase of Non-Res Care - KD,Private & Voluntary Day Care,Smile Indpendent Living Support Ltd,558.5, 16-Jan-2012
1584,Revenue,CCHD,Minor Adaptations Service,Maintenance by Contractor,Southern Electric Contracting Limited,149, 24-Jan-2012
1585,Revenue,CCHD,Minor Adaptations Service,Maintenance by Contractor,Southern Electric Contracting Limited,466.2, 24-Jan-2012
1586,Revenue,CCHD,Minor Adaptations Service,Maintenance by Contractor,Southern Electric Contracting Limited,883.13, 24-Jan-2012
1587,Revenue,CCHD,Under 65s PWLD - KH,Residential Homes,St Brigas,2014.4, 24-Jan-2012
1588,Revenue,CCHD,Under 65s PWLD - PS,Residential Homes,St Brigas,2907.24, 24-Jan-2012
1589,Revenue,CCHD,Under 65s PWLD - KH,Residential Homes,St Brigas,1963.52, 24-Jan-2012
1590,Revenue,CCHD,Frenchay Hospital Purchasing,Nursing Homes,St George Nursing Home,1285, 24-Jan-2012
1591,Revenue,CCHD,Elderly Purchasing - South,Nursing Homes,St George Nursing Home,1293, 24-Jan-2012
1592,Revenue,CCHD,Elderly Purchasing - South,Nursing Homes,St George Nursing Home,1698.03, 24-Jan-2012
1593,Revenue,CCHD,Frenchay Hospital Purchasing,Residential Homes,St Monicas Trust,1232.16, 24-Jan-2012
1594,Revenue,CCHD,Under 65s PWLD - PS,Residential Homes,Stepping Stones Re-Sett. Unit,8464.68, 24-Jan-2012
1595,Revenue,CCHD,Elderly Mental Health,Residential Homes,Stuart House,1809.24, 24-Jan-2012
1596,Revenue,CCHD,Southmead Hospital Purchasing,Residential Homes,Stuart House,1345.92, 24-Jan-2012
1597,Revenue,CCHD,Supporting People Programme,Grants to Voluntary Bodies,Supported Independence Ltd,2678.48, 20-Jan-2012
1598,Revenue,CCHD,Supporting People Programme,Grants to Voluntary Bodies,Supported Independence Ltd,5538.4, 20-Jan-2012
1599,Revenue,CCHD,Younger MH non-res purchasing,Private & Voluntary Day Care,Supported Independence Ltd,1443, 20-Jan-2012
1600,Revenue,CCHD,Younger MH non-res purchasing,Private & Voluntary Day Care,Supported Independence Ltd,565.5, 23-Jan-2012
1601,Revenue,CCHD,Younger MH non-res purchasing,Private & Voluntary Day Care,Supported Independence Ltd,2318, 20-Jan-2012
1602,Revenue,CCHD,Younger MH non-res purchasing,Private & Voluntary Day Care,Supported Independence Ltd,1014, 27-Jan-2012
1603,Revenue,CCHD,Supported Living - PS,Private & Voluntary Home Care,Supported Independence Ltd,663, 23-Jan-2012
1604,Revenue,CCHD,Section 117 Placements MH Younger,Private & Voluntary Day Care,Supported Independence Ltd,858, 27-Jan-2012
1605,Revenue,CCHD,Younger MH non-res purchasing,Private & Voluntary Day Care,Supported Independence Ltd,507.6, 27-Jan-2012
1606,Revenue,CCHD,Younger MH non-res purchasing,Private & Voluntary Day Care,Supported Independence Ltd,780, 27-Jan-2012
1607,Revenue,CCHD,Day Care - North,Private & Voluntary Day Care,Supported Independence Ltd,507, 31-Jan-2012
1608,Revenue,CCHD,Younger MH non-res purchasing,Private & Voluntary Day Care,Supported Independence Ltd,1053, 27-Jan-2012
1609,Revenue,CCHD,Supporting People Programme,Grants to Voluntary Bodies,Supported Independent Living Schemes,4465.92, 10-Jan-2012
1610,Revenue,CCHD,Supporting People Programme,Grants to Voluntary Bodies,Supported Independent Living Schemes,5388.32, 10-Jan-2012
1611,Revenue,CCHD,Frenchay Hospital Purchasing,Residential Homes,T/A Stonebow House Residential Home,1218.16, 24-Jan-2012
1612,Revenue,CCHD,Southmead Hospital Purchasing,Residential Homes,The Beeches,1404.57, 24-Jan-2012
1613,Revenue,CCHD,Southmead Hospital Purchasing,Residential Homes,The Beeches,1229, 24-Jan-2012
1614,Revenue,CCHD,Frenchay Hospital Purchasing,Residential Homes,The Beeches,1125.12, 24-Jan-2012
1615,Revenue,CCHD,Frenchay Hospital Purchasing,Residential Homes,The Beeches,686.44, 24-Jan-2012
1616,Revenue,CCHD,Southmead Hospital Purchasing,Residential Homes,The Beeches,2282.43, 24-Jan-2012
1617,Revenue,CCHD,Southmead Hospital Purchasing,Residential Homes,The Beeches,1229, 24-Jan-2012
1618,Revenue,CCHD,Elderly Purchasing - South,Residential Homes,The Beeches,1098.68, 24-Jan-2012
1619,Revenue,CCHD,Day Care - South,Private & Voluntary Day Care,The Brandon Trust,622.2, 23-Jan-2012
1620,Revenue,CCHD,Purchase of Non-Res Care - KD,Private & Voluntary Day Care,The Brandon Trust,1824.5, 09-Jan-2012
1621,Revenue,CCHD,Supported Living - KH,Private & Voluntary Home Care,The Brandon Trust,871.08, 09-Jan-2012
1622,Revenue,CCHD,Day Care - South,Private & Voluntary Day Care,The Brandon Trust,622.2, 12-Jan-2012
1623,Revenue,CCHD,Purchase of Non-Res Care - PS,Private & Voluntary Day Care,The Brandon Trust,808.86, 12-Jan-2012
1624,Revenue,CCHD,Day Care - South,Private & Voluntary Day Care,The Brandon Trust,622.2, 12-Jan-2012
1625,Revenue,CCHD,Supported Living - KD,Private & Voluntary Home Care,The Brandon Trust,8856.25, 12-Jan-2012
1626,Revenue,CCHD,Brandon Day Care,Private & Voluntary Day Care,The Brandon Trust,18310.73, 13-Jan-2012
1627,Revenue,CCHD,Day Care - North,Private & Voluntary Day Care,The Brandon Trust,738, 27-Jan-2012
1628,Revenue,CCHD,Purchase of Non-Res Care - PS,Private & Voluntary Day Care,The Brandon Trust,558.63, 18-Jan-2012
1629,Revenue,CCHD,Purchase of Non-Res Care - KD,Private & Voluntary Day Care,The Brandon Trust,1117.25, 23-Jan-2012
1630,Revenue,CCHD,Purchase of Non-Res Care - KD,Private & Voluntary Day Care,The Brandon Trust,1599, 23-Jan-2012
1631,Revenue,CCHD,Supported Living - PS,Private & Voluntary Home Care,The Brandon Trust,738, 24-Jan-2012
1632,Revenue,CCHD,Purchase of Non-Res Care - PS,Private & Voluntary Day Care,The Brandon Trust,1461.35, 30-Jan-2012
1633,Revenue,CCHD,Purchase of Non-Res Care - KD,Private & Voluntary Day Care,The Brandon Trust,620.13, 24-Jan-2012
1634,Revenue,CCHD,Purchase of Non-Res Care - KD,Private & Voluntary Day Care,The Brandon Trust,4592, 23-Jan-2012
1635,Revenue,CCHD,Brandon Day Care,Private & Voluntary Day Care,The Brandon Trust,18311, 25-Jan-2012
1636,Revenue,CCHD,Younger MH non-res purchasing,Private & Voluntary Day Care,The Brandon Trust,1182.18, 27-Jan-2012
1637,Revenue,CCHD,Under 65s PWLD - PS,Nursing Homes,The Brandon Trust  Olympus House,5641, 24-Jan-2012
1638,Revenue,CCHD,S28A - Over 65,Residential Homes,The Brandon Trust  Olympus House,3537.96, 24-Jan-2012
1639,Revenue,CCHD,Under 65s PWLD - PS,Residential Homes,The Brandon Trust  Olympus House,11149.88, 24-Jan-2012
1640,Revenue,CCHD,Under 65s PWLD - KD,Residential Homes,The Brandon Trust  Olympus House,3227.8, 24-Jan-2012
1641,Revenue,CCHD,Under 65s PWLD - KD,Residential Homes,The Brandon Trust  Olympus House,5108.24, 24-Jan-2012
1642,Revenue,CCHD,Elderly PWLD - PS,Residential Homes,The Brandon Trust  Olympus House,3338.16, 24-Jan-2012
1643,Revenue,CCHD,S28A - Over 65,Residential Homes,The Brandon Trust  Olympus House,3781.68, 24-Jan-2012
1644,Revenue,CCHD,Under 65s PWLD - PS,Nursing Homes,The Brandon Trust  Olympus House,5054.2, 24-Jan-2012
1645,Revenue,CCHD,S28A - Under 65,Residential Homes,The Brandon Trust  Olympus House,5944.52, 24-Jan-2012
1646,Revenue,CCHD,S28A - Under 65,Residential Homes,The Brandon Trust  Olympus House,4815.96, 24-Jan-2012
1647,Revenue,CCHD,S28A - Under 65,Residential Homes,The Brandon Trust  Olympus House,5944.52, 24-Jan-2012
1648,Revenue,CCHD,S28A - Under 65,Residential Homes,The Brandon Trust  Olympus House,5780.52, 24-Jan-2012
1649,Revenue,CCHD,S28A - Over 65,Nursing Homes,The Brandon Trust  Olympus House,5368.28, 24-Jan-2012
1650,Revenue,CCHD,S28A - Over 65,Nursing Homes,The Brandon Trust  Olympus House,5720.76, 24-Jan-2012
1651,Revenue,CCHD,S28A - Under 65,Residential Homes,The Brandon Trust  Olympus House,5189.52, 24-Jan-2012
1652,Revenue,CCHD,S28A - Under 65,Residential Homes,The Brandon Trust  Olympus House,5262.04, 24-Jan-2012
1653,Revenue,CCHD,S28A - Over 65,Residential Homes,The Brandon Trust  Olympus House,7104.36, 24-Jan-2012
1654,Revenue,CCHD,S28A - Under 65,Residential Homes,The Brandon Trust  Olympus House,5944.52, 24-Jan-2012
1655,Revenue,CCHD,S28A - Under 65,Residential Homes,The Brandon Trust  Olympus House,5944.48, 24-Jan-2012
1656,Revenue,CCHD,S28A - Under 65,Residential Homes,The Brandon Trust  Olympus House,4603.08, 24-Jan-2012
1657,Revenue,CCHD,S28A - Under 65,Residential Homes,The Brandon Trust  Olympus House,5262.08, 24-Jan-2012
1658,Revenue,CCHD,S28A - Over 65,Residential Homes,The Brandon Trust  Olympus House,4662.84, 24-Jan-2012
1659,Revenue,CCHD,S28A - Over 65,Residential Homes,The Brandon Trust  Olympus House,3969, 24-Jan-2012
1660,Revenue,CCHD,Elderly Mental Health,Residential Homes,The Cidermill,536.27, 24-Jan-2012
1661,Revenue,CCHD,Elderly Mental Health,Nursing Homes,The Cidermill,954, 24-Jan-2012
1662,Revenue,CCHD,Elderly Mental Health,Residential Homes,The Cidermill,1389, 24-Jan-2012
1663,Revenue,CCHD,Elderly Mental Health,Nursing Homes,The Cidermill,1181.8, 24-Jan-2012
1664,Revenue,CCHD,Elderly Mental Health,Residential Homes,The Cidermill,1389, 24-Jan-2012
1665,Revenue,CCHD,Under 65s PWLD - PS,Residential Homes,The Conifers,48194.4, 24-Jan-2012
1666,Revenue,CCHD,Elderly Purchasing - South,Residential Homes,The Gables Residential Home,1285.04, 24-Jan-2012
1667,Revenue,CCHD,Frenchay Hospital Purchasing,Residential Homes,The Gables Residential Home,1229, 24-Jan-2012
1668,Revenue,CCHD,Elderly Purchasing - South,Residential Homes,The Gables Residential Home,1084.28, 24-Jan-2012
1669,Revenue,CCHD,Elderly Mental Health,Residential Homes,The Gables Residential Home,1172.52, 24-Jan-2012
1670,Revenue,CCHD,Section 117 Placements,Residential Homes,The Gables Residential Home,2156.84, 24-Jan-2012
1671,Revenue,CCHD,Elderly Mental Health,Residential Homes,The Gables Residential Home,1229, 24-Jan-2012
1672,Revenue,CCHD,Elderly Mental Health,Residential Homes,The Gables Residential Home,818.75, 24-Jan-2012
1673,Revenue,CCHD,Elderly Mental Health,Residential Homes,The Grove,983.64, 24-Jan-2012
1674,Revenue,CCHD,Elderly Mental Health,Residential Homes,The Grove,1582.4, 24-Jan-2012
1675,Revenue,CCHD,Elderly Mental Health,Residential Homes,The Grove,1112.08, 24-Jan-2012
1676,Revenue,CCHD,Elderly Mental Health,Residential Homes,The Grove,580.64, 24-Jan-2012
1677,Revenue,CCHD,Section 117 Placements,Residential Homes,The Grove,2040, 24-Jan-2012
1678,Revenue,CCHD,Elderly Mental Health,Residential Homes,The Grove,1475.92, 24-Jan-2012
1679,Revenue,CCHD,Southmead Hospital Purchasing,Residential Homes,The Grove,1318.76, 24-Jan-2012
1680,Revenue,CCHD,Elderly Mental Health,Residential Homes,The Grove,1480.48, 24-Jan-2012
1681,Revenue,CCHD,Elderly Purchasing - South,Residential Homes,The Grove,1024.85, 24-Jan-2012
1682,Revenue,CCHD,Frenchay Hospital Purchasing,Residential Homes,The Grove,814.32, 24-Jan-2012
1683,Revenue,CCHD,Supporting People Programme,Grants to Voluntary Bodies,The Hatch Camphill Community,1168.28, 30-Jan-2012
1684,Revenue,CCHD,Supporting People Programme,Grants to Voluntary Bodies,The Hatch Camphill Community,1168.28, 30-Jan-2012
1685,Revenue,CCHD,Supporting People Programme,Grants to Voluntary Bodies,The Hatch Camphill Community,1168.28, 30-Jan-2012
1686,Revenue,CCHD,Supporting People Programme,Grants to Voluntary Bodies,The Hatch Camphill Community,1168.28, 30-Jan-2012
1687,Revenue,CCHD,Supporting People Programme,Grants to Voluntary Bodies,The Hatch Camphill Community,1168.28, 30-Jan-2012
1688,Revenue,CCHD,Supporting People Programme,Grants to Voluntary Bodies,The Hatch Camphill Community,1168.28, 30-Jan-2012
1689,Revenue,CCHD,Supporting People Programme,Grants to Voluntary Bodies,The Hatch Camphill Community,1168.28, 30-Jan-2012
1690,Revenue,CCHD,Supporting People Programme,Grants to Voluntary Bodies,The Hatch Camphill Community,1168.28, 30-Jan-2012
1691,Revenue,CCHD,Supporting People Programme,Grants to Voluntary Bodies,The Hatch Camphill Community,1168.28, 30-Jan-2012
1692,Revenue,CCHD,Frenchay Hospital Purchasing,Nursing Homes,The Heathers,1285, 24-Jan-2012
1693,Revenue,CCHD,Elderly Mental Health,Nursing Homes,The Heathers,1262.52, 24-Jan-2012
1694,Revenue,CCHD,South Glos Users in South Glos Homes,Nursing Homes,The Heathers,1040.41, 24-Jan-2012
1695,Revenue,CCHD,South Glos Users in South Glos Homes,Nursing Homes,The Heathers,1583.91, 24-Jan-2012
1696,Revenue,CCHD,Elderly Purchasing - South,Nursing Homes,The Heathers,1285, 24-Jan-2012
1697,Revenue,CCHD,Frenchay Hospital Purchasing,Nursing Homes,The Heathers,718.6, 24-Jan-2012
1698,Revenue,CCHD,South Glos Users in South Glos Homes,Nursing Homes,The Heathers,4285.89, 24-Jan-2012
1699,Revenue,CCHD,Southmead Hospital Purchasing,Nursing Homes,The Heathers,1249.44, 24-Jan-2012
1700,Revenue,CCHD,Frenchay Hospital Purchasing,Nursing Homes,The Heathers,1288.24, 24-Jan-2012
1701,Revenue,CCHD,South Glos Users in South Glos Homes,Nursing Homes,The Heathers,2391.4, 24-Jan-2012
1702,Revenue,CCHD,Elderly Mental Health,Nursing Homes,The Heathers,1075.92, 24-Jan-2012
1703,Revenue,CCHD,Frenchay Hospital Purchasing,Nursing Homes,The Heathers,1215.84, 24-Jan-2012
1704,Revenue,CCHD,South Glos Users in South Glos Homes,Nursing Homes,The Heathers,1521.8, 24-Jan-2012
1705,Revenue,CCHD,Frenchay Hospital Purchasing,Nursing Homes,The Heathers,1286.64, 24-Jan-2012
1706,Revenue,CCHD,Southmead Hospital Purchasing,Nursing Homes,The Heathers,738.32, 24-Jan-2012
1707,Revenue,CCHD,Elderly Purchasing - North,Nursing Homes,The Heathers,1140.72, 24-Jan-2012
1708,Revenue,CCHD,Elderly Mental Health,Residential Homes,The Hollies,1256.16, 24-Jan-2012
1709,Revenue,CCHD,Elderly Purchasing - North,Nursing Homes,The Hollies Nursing Home,1285, 24-Jan-2012
1710,Revenue,CCHD,Detained,Nursing Homes,The Huntercombe Group,13181.27, 03-Jan-2012
1711,Revenue,CCHD,Under 65s PWLD - KH,Residential Homes,The Manor House,4779.6, 24-Jan-2012
1712,Revenue,CCHD,Under 65s PWLD - KH,Residential Homes,The Manor House,3398.2, 24-Jan-2012
1713,Revenue,CCHD,Under 65s PWLD - KH,Residential Homes,The Manor House,2607.12, 24-Jan-2012
1714,Revenue,CCHD,Under 65s PWLD - KD,Residential Homes,The Manor House,2713, 24-Jan-2012
1715,Revenue,CCHD,Under 65s PWLD - PS,Residential Homes,The Manor House,3177.2, 24-Jan-2012
1716,Revenue,CCHD,Under 65s PWLD - KD,Residential Homes,The Manor House,2755.4, 24-Jan-2012
1717,Revenue,CCHD,Under 65s PWLD - KH,Residential Homes,The Manor House,2607.12, 24-Jan-2012
1718,Revenue,CCHD,Under 65s PWLD - KH,Residential Homes,The Manor House,3249.44, 24-Jan-2012
1719,Revenue,CCHD,Under 65s PWLD - KH,Residential Homes,The Manor House,5850.64, 24-Jan-2012
1720,Revenue,CCHD,S28A - Under 65,Residential Homes,The Manor House,4723.6, 24-Jan-2012
1721,Revenue,CCHD,Under 65s PWLD - KH,Residential Homes,The Manor House,2655.68, 24-Jan-2012
1722,Revenue,CCHD,Under 65s PWLD - KH,Residential Homes,The Manor House,3315.88, 24-Jan-2012
1723,Revenue,CCHD,Under 65s PWLD - KH,Residential Homes,The Manor House,2898.32, 24-Jan-2012
1724,Revenue,CCHD,Under 65s PWLD - KH,Residential Homes,The Manor House,3227.2, 24-Jan-2012
1725,Revenue,CCHD,Under 65s PWLD - KH,Residential Homes,The Manor House,4799.32, 24-Jan-2012
1726,Revenue,CCHD,Under 65s PWLD - PS,Residential Homes,The Manor House,3011.72, 24-Jan-2012
1727,Revenue,CCHD,Under 65s PWLD - PS,Residential Homes,The Manor House,2829.88, 24-Jan-2012
1728,Revenue,CCHD,Under 65s PWLD - KH,Residential Homes,The Manor House,4322.32, 24-Jan-2012
1729,Revenue,CCHD,Under 65s PWLD - KH,Residential Homes,The Manor House,4204.96, 24-Jan-2012
1730,Revenue,CCHD,Under 65s PWLD - KD,Residential Homes,The Manor House,3155.32, 24-Jan-2012
1731,Revenue,CCHD,Elderly PWLD - KH,Residential Homes,The Manor House,2250.04, 24-Jan-2012
1732,Revenue,CCHD,Under 65s PWLD - PS,Residential Homes,The Manor House,3140.28, 24-Jan-2012
1733,Revenue,CCHD,Under 65s PWLD - KH,Residential Homes,The Manor House,4686.4, 24-Jan-2012
1734,Revenue,CCHD,Under 65s PWLD - KH,Residential Homes,The Manor House,2655.68, 24-Jan-2012
1735,Revenue,CCHD,Elderly PWLD - KD,Residential Homes,The Red House Residential Home,4808.51, 24-Jan-2012
1736,Revenue,CCHD,Home Care Purch North,Other Small Contracts,The Royal Bank of Scotland Commercial,1095, 09-Jan-2012
1737,Revenue,CCHD,Under 65s PWLD - PS,Residential Homes,The Stanstead Centre,3477.88, 24-Jan-2012
1738,Revenue,CCHD,Under 65s PWLD - KD,Residential Homes,The Thomas Moore Project,1894.32, 24-Jan-2012
1739,Revenue,CCHD,Elderly Purchasing - South,Nursing Homes,Thornhill House,1790.64, 24-Jan-2012
1740,Revenue,CCHD,Under 65s PWLD - KD,Residential Homes,Three Roses Home,1854.64, 24-Jan-2012
1741,Revenue,CCHD,Learning Difficulties PSL,Rent,Individual,650, 20-Jan-2012
1742,Revenue,CCHD,Learning Difficulties PSL,Rent,Individual,750, 20-Jan-2012
1743,Revenue,CCHD,Learning Difficulties PSL,Rent,Individual,488, 20-Jan-2012
1744,Revenue,CCHD,Under 65s PWLD - KH,Residential Homes,Tomlen,6388.84, 24-Jan-2012
1745,Revenue,CCHD,Purchasing Phys Dis - North,Residential Homes,Tracs Group Ltd,6112.4, 24-Jan-2012
1746,Revenue,CCHD,Purchasing Phys Dis - North,Residential Homes,Tracs Group Ltd,4467.68, 24-Jan-2012
1747,Revenue,CCHD,Under 65s PWLD - PS,Residential Homes,Tracs Group Ltd,6414.36, 24-Jan-2012
1748,Revenue,CCHD,Training - Adult Services,Training Expenses,Tracy Packer,530, 27-Jan-2012
1749,Revenue,CCHD,Preventative Technology Grant,Other Supplies & Services,Tunstall Healthcare (UK) Limited,625, 20-Jan-2012
1750,Revenue,CCHD,Minor Adaptations Service,Daily Living Equipment,TVM Cheltenham Limited,797.95, 06-Jan-2012
1751,Revenue,CCHD,Minor Adaptations Service,Daily Living Equipment,TVM Cheltenham Limited,845, 17-Jan-2012
1752,Revenue,CCHD,Minor Adaptations Service,Daily Living Equipment,TVM Cheltenham Limited,957.08, 17-Jan-2012
1753,Revenue,CCHD,Under 65s PWLD - KD,Residential Homes,Ty Hafod Tudor,3787.16, 24-Jan-2012
1754,Revenue,CCHD,Frenchay Hospital Purchasing,Residential Homes,Unit 9 St Stephens Court,1026.12, 24-Jan-2012
1755,Revenue,CCHD,Supported Living - KH,Private & Voluntary Home Care,United Response,2794.63, 16-Jan-2012
1756,Revenue,CCHD,Training - Adult Services,Training Expenses,University Of Bristol,3400, 16-Jan-2012
1757,Revenue,CCHD,Training - Adult Services,Training Expenses,University Of The West Of England,915, 23-Jan-2012
1758,Revenue,CCHD,Training - Adult Services,Training Expenses,University Of The West Of England,568, 12-Jan-2012
1759,Revenue,CCHD,Southmead Hospital Purchasing,Residential Homes,Vaughan Lee House,1162.2, 24-Jan-2012
1760,Revenue,CCHD,Homelessness Grant,Agency Staff (Admin/Support Staff) Pay,Venn Group Limited,669.33, 18-Jan-2012
1761,Revenue,CCHD,Elderly Mental Health,Residential Homes,Ventura Residential Care Home,1229, 24-Jan-2012
1762,Revenue,CCHD,Under 65s PWLD - PS,Residential Homes,Victoria Court,11023.36, 24-Jan-2012
1763,Revenue,CCHD,Elderly PWLD - KD,Residential Homes,Victoria Court,8535.32, 24-Jan-2012
1764,Revenue,CCHD,Under 65s PWLD - PS,Residential Homes,Visions,3542.56, 24-Jan-2012
1765,Revenue,CCHD,Finance - FAB,Radio Pager/Mobile Phones,Vodafone Corporate Limited,-7.74, 16-Jan-2012
1766,Revenue,CCHD,Enabling Activities,Radio Pager/Mobile Phones,Vodafone Corporate Limited,6, 16-Jan-2012
1767,Revenue,CCHD,Homelessness Administration Costs,Radio Pager/Mobile Phones,Vodafone Corporate Limited,63.85, 16-Jan-2012
1768,Revenue,CCHD,Housing Needs,Radio Pager/Mobile Phones,Vodafone Corporate Limited,482.75, 16-Jan-2012
1769,Revenue,CCHD,Housing Needs,Radio Pager/Mobile Phones,Vodafone Corporate Limited,457.81, 13-Jan-2012
1770,Revenue,CCHD,Under 65s PWLD - PS,Residential Homes,Voyage Ltd,2931.44, 24-Jan-2012
1771,Revenue,CCHD,Under 65s PWLD - KD,Residential Homes,Voyage Ltd,6775.4, 24-Jan-2012
1772,Revenue,CCHD,Under 65s PWLD - KD,Residential Homes,Voyage Ltd,8041.56, 24-Jan-2012
1773,Revenue,CCHD,S28A - Under 65,Residential Homes,Voyage Ltd,5945, 24-Jan-2012
1774,Revenue,CCHD,Under 65s PWLD - PS,Residential Homes,Voyage Ltd,6295.08, 24-Jan-2012
1775,Revenue,CCHD,Under 65s PWLD - PS,Residential Homes,Voyage Ltd,5458.52, 24-Jan-2012
1776,Revenue,CCHD,Under 65s PWLD - PS,Residential Homes,Voyage Ltd,6072.92, 24-Jan-2012
1777,Revenue,CCHD,Under 65s PWLD - PS,Residential Homes,Voyage Ltd,6233, 24-Jan-2012
1778,Revenue,CCHD,Purchasing Phys Dis - South,Residential Homes,Voyage Ltd,5493.72, 24-Jan-2012
1779,Revenue,CCHD,Under 65s PWLD - KH,Residential Homes,Voyage Ltd,5578.56, 24-Jan-2012
1780,Revenue,CCHD,Under 65s PWLD - KH,Residential Homes,Voyage Ltd,5144.08, 24-Jan-2012
1781,Revenue,CCHD,Frenchay Hospital Purchasing,Residential Homes,Walton-On-Thames Charity,1234, 24-Jan-2012
1782,Revenue,CCHD,Woodleaze,Cleaning & Domestic Supplies,Wash Technix,424.05, 13-Jan-2012
1783,Revenue,CCHD,Elderly Mental Health,Residential Homes,Wayside Residential Care Home,1389, 24-Jan-2012
1784,Revenue,CCHD,Elderly Mental Health,Residential Homes,Wayside Residential Care Home,1322.32, 24-Jan-2012
1785,Revenue,CCHD,Frenchay Hospital Purchasing,Residential Homes,Wayside Residential Care Home,1305.84, 24-Jan-2012
1786,Revenue,CCHD,Elderly Mental Health,Residential Homes,Wayside Residential Care Home,1175.4, 24-Jan-2012
1787,Revenue,CCHD,Southmead Hospital Purchasing,Residential Homes,Wayside Residential Care Home,1264.56, 24-Jan-2012
1788,Revenue,CCHD,Elderly Purchasing - South,Residential Homes,Wayside Residential Care Home,1203.52, 24-Jan-2012
1789,Revenue,CCHD,Homeless - Private Sector Leasing,Prop.Serv. General Repairs,WE Care & Repair,1245.3, 11-Jan-2012
1790,Revenue,CCHD,Alexandra Way,Furniture & Fittings Loose,Webber & Spencer Limited,1332.3, 03-Jan-2012
1791,Revenue,CCHD,PWLD S 117 Placements,Residential Homes,West Court,7773.44, 24-Jan-2012
1792,Revenue,CCHD,Section 117 Placements,Residential Homes,Westbury House,1688, 24-Jan-2012
1793,Revenue,CCHD,Elderly Purchasing - North,Nursing Homes,Westbury Nursing Home,1619.48, 24-Jan-2012
1794,Revenue,CCHD,Southmead Hospital Purchasing,Nursing Homes,Westbury Nursing Home,1881.6, 24-Jan-2012
1795,Revenue,CCHD,Elderly Mental Health,Residential Homes,Westbury Nursing Home,1723.84, 24-Jan-2012
1796,Revenue,CCHD,Elderly Purchasing - North,Nursing Homes,Wickwar Nursing Home  Castle House,816.95, 24-Jan-2012
1797,Revenue,CCHD,Elderly Purchasing - North,Nursing Homes,Wickwar Nursing Home  Castle House,4049.27, 24-Jan-2012
1798,Revenue,CCHD,Frenchay Hospital Purchasing,Nursing Homes,Wickwar Nursing Home  Castle House,10516.4, 24-Jan-2012
1799,Revenue,CCHD,Elderly Purchasing - North,Residential Homes,Wickwar Nursing Home  Castle House,1688, 24-Jan-2012
1800,Revenue,CCHD,Elderly Purchasing - North,Residential Homes,Wickwar Nursing Home  Castle House,1389, 24-Jan-2012
1801,Revenue,CCHD,Elderly Purchasing - North,Residential Homes,Wickwar Nursing Home  Castle House,1201.88, 24-Jan-2012
1802,Revenue,CCHD,Frenchay Hospital Purchasing,Nursing Homes,Wickwar Nursing Home  Castle House,969.24, 24-Jan-2012
1803,Revenue,CCHD,Elderly Purchasing - North,Nursing Homes,Wickwar Nursing Home  Castle House,1706.2, 24-Jan-2012
1804,Revenue,CCHD,Elderly Purchasing - North,Residential Homes,Wickwar Nursing Home  Castle House,1339.48, 24-Jan-2012
1805,Revenue,CCHD,Elderly Purchasing - North,Nursing Homes,Wickwar Nursing Home  Castle House,1285, 24-Jan-2012
1806,Revenue,CCHD,Elderly Purchasing - North,Residential Homes,Wickwar Nursing Home  Castle House,770.5, 24-Jan-2012
1807,Revenue,CCHD,Elderly Purchasing - North,Residential Homes,Wickwar Nursing Home  Castle House,1216.04, 24-Jan-2012
1808,Revenue,CCHD,Frenchay Hospital Purchasing,Nursing Homes,Wickwar Nursing Home  Castle House,750.72, 24-Jan-2012
1809,Revenue,CCHD,Elderly Purchasing - North,Nursing Homes,Wickwar Nursing Home  Castle House,1590.48, 24-Jan-2012
1810,Revenue,CCHD,Frenchay Hospital Purchasing,Nursing Homes,Wickwar Nursing Home  Castle House,1009.72, 24-Jan-2012
1811,Revenue,CCHD,Southmead Hospital Purchasing,Nursing Homes,Wickwar Nursing Home  Castle House,1070.52, 24-Jan-2012
1812,Revenue,CCHD,Elderly Purchasing - North,Residential Homes,Wickwar Nursing Home  Castle House,1363.76, 24-Jan-2012
1813,Revenue,CCHD,Frenchay Hospital Purchasing,Nursing Homes,Wickwar Nursing Home  Castle House,1557.51, 24-Jan-2012
1814,Revenue,CCHD,Elderly Purchasing - North,Residential Homes,Wickwar Nursing Home  Castle House,766.64, 24-Jan-2012
1815,Revenue,CCHD,Elderly Purchasing - South,Nursing Homes,Wickwar Nursing Home  Castle House,1378.44, 24-Jan-2012
1816,Revenue,CCHD,Purchasing Phys Dis - North,Nursing Homes,Wickwar Nursing Home  Castle House,1101.84, 24-Jan-2012
1817,Revenue,CCHD,Frenchay Hospital Purchasing,Residential Homes,Willow Cottage,1055.12, 24-Jan-2012
1818,Revenue,CCHD,Southmead Hospital Purchasing,Residential Homes,Willow Cottage,1382.6, 24-Jan-2012
1819,Revenue,CCHD,Southmead Hospital Purchasing,Residential Homes,Willow Cottage,5562, 24-Jan-2012
1820,Revenue,CCHD,Southmead Hospital Purchasing,Residential Homes,Willow Cottage,1383.32, 24-Jan-2012
1821,Revenue,CCHD,Elderly Mental Health,Residential Homes,Willow Cottage,694.5, 24-Jan-2012
1822,Revenue,CCHD,Frenchay Hospital Purchasing,Nursing Homes,Willow Cottage,969.96, 24-Jan-2012
1823,Revenue,CCHD,Elderly Purchasing - North,Nursing Homes,Willow Cottage,1945.44, 24-Jan-2012
1824,Revenue,CCHD,Southmead Hospital Purchasing,Nursing Homes,Willow Cottage,1442.72, 24-Jan-2012
1825,Revenue,CCHD,Purchasing Phys Dis - North,Nursing Homes,Willow Cottage,1652.08, 24-Jan-2012
1826,Revenue,CCHD,Elderly Purchasing - North,Nursing Homes,Willow Cottage,1215.44, 24-Jan-2012
1827,Revenue,CCHD,Southmead Hospital Purchasing,Nursing Homes,Willow Cottage,1294.68, 24-Jan-2012
1828,Revenue,CCHD,Supporting People Programme,Grants to Voluntary Bodies,Willowbank Care Limited,1329.28, 03-Jan-2012
1829,Revenue,CCHD,Supporting People Programme,Grants to Voluntary Bodies,Willowbank Care Limited,1329.28, 03-Jan-2012
1830,Revenue,CCHD,Supported Living - KD,Private & Voluntary Home Care,Willowbank Care Limited,1560, 03-Jan-2012
1831,Revenue,CCHD,Supported Living - KD,Private & Voluntary Home Care,Willowbank Care Limited,1874.56, 03-Jan-2012
1832,Revenue,CCHD,Supported Living - KD,Private & Voluntary Home Care,Willowbank Care Limited,1920, 03-Jan-2012
1833,Revenue,CCHD,Supported Living - KD,Private & Voluntary Home Care,Willowbank Care Limited,1920, 03-Jan-2012
1834,Revenue,CCHD,Supported Living - KD,Private & Voluntary Home Care,Willowbank Care Limited,1920, 13-Jan-2012
1835,Revenue,CCHD,Supported Living - KD,Private & Voluntary Home Care,Willowbank Care Limited,2400.8, 03-Jan-2012
1836,Revenue,CCHD,Supported Living - KD,Private & Voluntary Home Care,Willowbank Care Limited,2400.8, 13-Jan-2012
1837,Revenue,CCHD,Supported Living - KD,Private & Voluntary Home Care,Willowbank Care Limited,6191.18, 13-Jan-2012
1838,Revenue,CCHD,Supported Living - KD,Private & Voluntary Home Care,Willowbank Care Limited,4237.16, 13-Jan-2012
1839,Revenue,CCHD,Supported Living - KD,Private & Voluntary Home Care,Willowbank Care Limited,1709.88, 03-Jan-2012
1840,Revenue,CCHD,Supported Living - KD,Private & Voluntary Home Care,Willowbank Care Limited,4091.56, 03-Jan-2012
1841,Revenue,CCHD,Supported Living - KD,Private & Voluntary Home Care,Willowbank Care Limited,4091.56, 12-Jan-2012
1842,Revenue,CCHD,Supported Living - KD,Private & Voluntary Home Care,Willowbank Care Limited,1920, 03-Jan-2012
1843,Revenue,CCHD,Supported Living - KD,Private & Voluntary Home Care,Willowbank Care Limited,2756.94, 13-Jan-2012
1844,Revenue,CCHD,Supported Living - KD,Private & Voluntary Home Care,Willowbank Care Limited,917.42, 13-Jan-2012
1845,Revenue,CCHD,Supported Living - KD,Private & Voluntary Home Care,Willowbank Care Limited,4743.08, 12-Jan-2012
1846,Revenue,CCHD,Supported Living - KD,Private & Voluntary Home Care,Willowbank Care Limited,1902.43, 23-Jan-2012
1847,Revenue,CCHD,Supported Living - KD,Private & Voluntary Home Care,Willowbank Care Limited,2598.36, 13-Jan-2012
1848,Revenue,CCHD,Supported Living (S28a),Private & Voluntary Home Care,Willowbank Care Limited,4186.02, 12-Jan-2012
1849,Revenue,CCHD,Supported Living (S28a),Private & Voluntary Home Care,Willowbank Care Limited,4186.02, 24-Jan-2012
1850,Revenue,CCHD,Supported Living (S28a),Private & Voluntary Home Care,Willowbank Care Limited,4200, 12-Jan-2012
1851,Revenue,CCHD,Supported Living (S28a),Private & Voluntary Home Care,Willowbank Care Limited,4616.5, 12-Jan-2012
1852,Revenue,CCHD,Supported Living (S28a),Private & Voluntary Home Care,Willowbank Care Limited,4616.5, 24-Jan-2012
1853,Revenue,CCHD,Supported Living - KD,Private & Voluntary Home Care,Willowbank Care Limited,2999.98, 13-Jan-2012
1854,Revenue,CCHD,Supported Living - KD,Private & Voluntary Home Care,Willowbank Care Limited,3024.78, 13-Jan-2012
1855,Revenue,CCHD,Supported Living - KD,Private & Voluntary Home Care,Willowbank Care Limited,2251.48, 13-Jan-2012
1856,Revenue,CCHD,Day Care - North,Private & Voluntary Day Care,Windmill Care Limited,720, 27-Jan-2012
1857,Revenue,CCHD,Day Care - North,Private & Voluntary Day Care,Windmill Care Limited,760, 09-Jan-2012
1858,Revenue,CCHD,Elderly Purchasing - North,Residential Homes,Windmill House,1106.92, 24-Jan-2012
1859,Revenue,CCHD,Elderly Mental Health,Residential Homes,Windmill House,1279.12, 24-Jan-2012
1860,Revenue,CCHD,Elderly Mental Health,Residential Homes,Windmill House,1215.96, 24-Jan-2012
1861,Revenue,CCHD,Frenchay Hospital Purchasing,Residential Homes,Windmill House,763.52, 24-Jan-2012
1862,Revenue,CCHD,Elderly Purchasing - North,Residential Homes,Windmill House,891.12, 24-Jan-2012
1863,Revenue,CCHD,Southmead Hospital Purchasing,Residential Homes,Windmill House,1261, 24-Jan-2012
1864,Revenue,CCHD,Southmead Hospital Purchasing,Nursing Homes,Woodland Healthcare Ltd,2570, 24-Jan-2012
1865,Revenue,CCHD,South Glos Users in B&NES Homes,Nursing Homes,Woodland Healthcare Ltd,869.6, 24-Jan-2012
1866,Revenue,CCHD,South Glos Users in B&NES Homes,Nursing Homes,Woodland Healthcare Ltd,1941.07, 24-Jan-2012
1867,Revenue,CCHD,Elderly Purchasing - South,Nursing Homes,Wyncourt Nursing Home,5461.25, 24-Jan-2012
,,,,,,4550876.72,
1871,Revenue,CECR,Filton Surestart Centre,Water Charges,3 Trees Community Support Ltd,5496.86, 24-Jan-2012
1872,Revenue,CECR,Infrastructure - Discr,Computer Equipment - Purchase,8 Solutions Limited,2325, 12-Jan-2012
1873,Revenue,CECR,District Audit Fees,Audit Fees,Audit Commision,23752.5, 17-Jan-2012
1874,Revenue,CECR,District Audit Fees,Audit Fees,Audit Commision,24970, 11-Jan-2012
1875,Revenue,CECR,District Audit Fees,Audit Fees,Audit Commision,5440, 11-Jan-2012
1876,Revenue,CECR,Corporate Legal Section,Agency Staff (Admin/Support Staff) Pay,Badenoch & Clark,859.95, 17-Jan-2012
1877,Revenue,CECR,Corporate Legal Section,Agency Staff (Admin/Support Staff) Pay,Badenoch & Clark,1333.8, 17-Jan-2012
1878,Revenue,CECR,Corporate Legal Section,Agency Staff (Admin/Support Staff) Pay,Badenoch & Clark,1368.9, 17-Jan-2012
1879,Revenue,CECR,Corporate Legal Section,Agency Staff (Admin/Support Staff) Pay,Badenoch & Clark,1430.33, 17-Jan-2012
1880,Revenue,CECR,Corporate Legal Section,Agency Staff (Admin/Support Staff) Pay,Badenoch & Clark,1404, 17-Jan-2012
1881,Revenue,CECR,Corporate Legal Section,Agency Staff (Admin/Support Staff) Pay,Badenoch & Clark,1412.78, 17-Jan-2012
1882,Revenue,CECR,Corporate Legal Section,Agency Staff (Admin/Support Staff) Pay,Badenoch & Clark,649.35, 23-Jan-2012
1883,Revenue,CECR,Corporate Legal Section,Agency Staff (Admin/Support Staff) Pay,Badenoch & Clark,1281.15, 23-Jan-2012
1884,Revenue,CECR,Corporate Legal Section,Agency Staff (Admin/Support Staff) Pay,Badenoch & Clark,1465.43, 31-Jan-2012
1885,Revenue,CECR,Pre 1996 Pensions,Annual Pension,Bath & North East Somerset Dist Council,9082.92, 12-Jan-2012
1886,Revenue,CECR,Pre 1996 Pensions,Annual Pension,Bath & North East Somerset Dist Council,9223.24, 12-Jan-2012
1887,Revenue,CECR,Pre 1996 Pensions,Annual Pension,Bath & North East Somerset Dist Council,16001.94, 12-Jan-2012
1888,Revenue,CECR,Pre 1996 Pensions,Annual Pension,Bath & North East Somerset Dist Council,33580, 12-Jan-2012
1889,Revenue,CECR,Chief Executive,Other L.A.'s - General,Bristol City Council,2730, 12-Jan-2012
1890,Revenue,CECR,Benefits Fraud,Legal Fees,Bristol City Council,12297.5, 31-Jan-2012
1891,Revenue,CECR,Future Jobs Phase 2,Grant Income - Government Depts,Bristol City Council,47822, 26-Jan-2012
1892,Revenue,CECR,Members Support,Other Premises Costs,Bristol Sound Systems Limited,210, 16-Jan-2012
1893,Revenue,CECR,Members Support,Other Premises Costs,Bristol Sound Systems Limited,210, 16-Jan-2012
1894,Revenue,CECR,Members Support,Other Premises Costs,Bristol Sound Systems Limited,210, 16-Jan-2012
1895,Revenue,CECR,Broad Lane Depot,Water Charges,Bristol Wessex Billing Services Limited,518.05, 20-Jan-2012
1896,Revenue,CECR,Smallholdings,Water Charges,Bristol Wessex Billing Services Limited,2191.15, 16-Jan-2012
